Department Family,Entity,Date,Expense Type,Expense Area,Supplier,Transaction Number,AP Amount,Description,Supplier Postcode
Department of Health,NHS Sheffield CCG,7/31/2020,Clinical&Medical-Independent Sector,Mental Health Services - S117 Mental Health,MOORVILLE RESIDENTIAL,32970524,"29,376.84",,S10 5FA
Department of Health,NHS Sheffield CCG,7/31/2020,Cont Care-Learning Disab(<65),CHC ADULT FULLY FUNDED,MOORVILLE RESIDENTIAL,32970524,"9,423.38",https://nww.einvoice-prod.sbs.nhs.uk:8179/invoicepdf/f56fa8ba-bae2-5bb8-a7a5-a0c4a38b041e,S10 5FA
Department of Health,NHS Sheffield CCG,7/31/2020,Cont Care-Learning Disab(<65),CHC ADULT JOINT FUNDED,MOORVILLE RESIDENTIAL,32970524,"4,333.18",,S10 5FA
Department of Health,NHS Sheffield CCG,7/31/2020,Cont Care-Mental Health (<65),CHC ADULT JOINT FUNDED,MOORVILLE RESIDENTIAL,32970524,506.23,,S10 5FA
Department of Health,NHS Sheffield CCG,7/31/2020,Cont Care-Physical Disab (65+),CHC ADULT FULLY FUNDED,BC SHEFFIELD LTD,32970539,"39,504.08",https://nww.einvoice-prod.sbs.nhs.uk:8179/invoicepdf/acd626c9-f31a-585b-bada-d853e27f3a7e,S9 2TJ
Department of Health,NHS Sheffield CCG,7/31/2020,Clinical&Medical-Othe Public Sector,COMMUNITY SERVICES,SHEFFIELD CITY COUNCIL,33003262,"150,416.67",,S1 1UJ
Department of Health,NHS Sheffield CCG,7/31/2020,Clinical&Medical-Othe Public Sector,MENTAL HEALTH SERVICES - COLLABORATIVE COMMISSIONING,SHEFFIELD CITY COUNCIL,33003262,"143,104.55",,S1 1UJ
Department of Health,NHS Sheffield CCG,7/31/2020,Clinical&Medical-Othe Public Sector,REABLEMENT,SHEFFIELD CITY COUNCIL,33003262,"21,808.67",,S1 1UJ
Department of Health,NHS Sheffield CCG,7/31/2020,Clinical&Medical-Othe Public Sector,SAFEGUARDING,SHEFFIELD CITY COUNCIL,33003262,"16,596.34",,S1 1UJ
Department of Health,NHS Sheffield CCG,7/31/2020,Soc Care-Joint H&C Teams/Working,INTERMEDIATE CARE,SHEFFIELD CITY COUNCIL,33003262,"151,447.58",,S1 1UJ
Department of Health,NHS Sheffield CCG,7/31/2020,Soc Care-Other Soc Care,COMMISSIONING - NON ACUTE,SHEFFIELD CITY COUNCIL,33003262,"1,635,250.00",,S1 1UJ
Department of Health,NHS Sheffield CCG,7/31/2020,Soc Care-Support Prim Care,COMMUNITY SERVICES,SHEFFIELD CITY COUNCIL,33003262,"58,000.00",,S1 1UJ
Department of Health,NHS Sheffield CCG,7/31/2020,Cont Care- Adult 100% Fully Funded,CHC ADULT FULLY FUNDED,SOUTH YORKSHIRE HOUSING ASSOCIATION LTD,33004212,"25,500.00",Birch Avenue - Additional Staff July 20,S1 4HF
Department of Health,NHS Sheffield CCG,7/31/2020,Cont Care- Adult 100% Fully Funded,CHC ADULT FULLY FUNDED,SOUTH YORKSHIRE HOUSING ASSOCIATION LTD,33004213,"46,763.59",Birch Avenue - July 20,S1 4HF
Department of Health,NHS Sheffield CCG,7/31/2020,Clinical&Medical-Independent Sector,MENTAL HEALTH CONTRACTS,SUSASH GB LTD T/A EAGLE HOUSE,33004215,"30,091.75",Eagle House - July 20,S11 8NP
Department of Health,NHS Sheffield CCG,7/31/2020,Clinical&Medical-Independent Sector,MENTAL HEALTH CONTRACTS,SOUTH YORKSHIRE HOUSING ASSOCIATION LTD,33004216,"34,434.83",Lister Avenue - July 20,S1 4HF
Department of Health,NHS Sheffield CCG,7/31/2020,Cont Care- Palliative Care,CHC ADULT FULLY FUNDED,DERBYSHIRE COUNTY COUNCIL,33018194,"1,373.60",,DE4 3AG
Department of Health,NHS Sheffield CCG,7/31/2020,Cont Care-Learning Disab(<65),CHC ADULT JOINT FUNDED,DERBYSHIRE COUNTY COUNCIL,33018194,"54,948.67",,DE4 3AG
Department of Health,NHS Sheffield CCG,7/31/2020,Cont Care-Learning Disab(<65),CHC ADULT JOINT FUNDED,DERBYSHIRE COUNTY COUNCIL,33018224,"-52,683.58",,DE4 3AG
Department of Health,NHS Sheffield CCG,7/31/2020,Protective Clothing,LOCAL ENHANCED SERVICES,SHEFFIELD CITY COUNCIL,33036507,"27,755.34",,S1 1UJ
Department of Health,NHS Sheffield CCG,7/31/2020,Cont Care-Physical Disab (65+),CHC ADULT FULLY FUNDED,SHEFFIELD CITY COUNCIL,33046418,"951,588.52",RMT SCHEDULE JULY 2020,S1 1UJ
Department of Health,NHS Sheffield CCG,7/31/2020,Cont Care- Prior Year Payments,CHC ADULT FULLY FUNDED,SHEFFIELD CITY COUNCIL,33046425,"-74,649.12",RMT SCHEDULE JULY 2020PY,S1 1UJ
Department of Health,NHS Sheffield CCG,7/31/2020,Cont Care- Children,CHC CHILDREN,SHEFFIELD CITY COUNCIL,33046432,"105,022.92",CHILDRENS SCHEDULE JULY 2020,S1 1UJ
Department of Health,NHS Sheffield CCG,7/31/2020,Hcare Srv Rec Fdtn Trust-Non Contract,ACUTE COMMISSIONING,SHEFFIELD TEACHING HOSPITALS NHS FOUNDATION TRUST,33051482,"33,368.00",,S5 7AU
Department of Health,NHS Sheffield CCG,7/31/2020,Hcare Srv Rec Fdtn Trust-Non Contract,ACUTE COMMISSIONING,SHEFFIELD TEACHING HOSPITALS NHS FOUNDATION TRUST,33051577,"50,646.45",,S5 7AU
Department of Health,NHS Sheffield CCG,7/31/2020,Hcare Srv Rec Fdtn Trust-Non Contract,ACUTE COMMISSIONING,SHEFFIELD TEACHING HOSPITALS NHS FOUNDATION TRUST,33051586,"-33,367.00",,S5 7AU
Department of Health,NHS Sheffield CCG,7/31/2020,Hcare Srv Rec Fdtn Trust-Non Contract,ACUTE COMMISSIONING,SHEFFIELD TEACHING HOSPITALS NHS FOUNDATION TRUST,33051607,"-33,368.00",,S5 7AU
Department of Health,NHS Sheffield CCG,7/31/2020,C&M-PMS Contract Value,PRC DELEGATED CO-COMMISSIONING,AVENUE MEDICAL CENTRE SHEFFIELD,33073502,-254.48,BABALP,S8 7FH
Department of Health,NHS Sheffield CCG,7/31/2020,C&M-PMS GP Statutory Levy,PRC DELEGATED CO-COMMISSIONING,AVENUE MEDICAL CENTRE SHEFFIELD,33073502,-248.19,STATL,S8 7FH
Department of Health,NHS Sheffield CCG,7/31/2020,C&M-PMS Out of Hours Opt Outs,PRC DELEGATED CO-COMMISSIONING,AVENUE MEDICAL CENTRE SHEFFIELD,33073502,"-2,889.48",APMOOH,S8 7FH
Department of Health,NHS Sheffield CCG,7/31/2020,C&M-PMS Contract Value,PRC DELEGATED CO-COMMISSIONING,ABBEY LANE SURGERY,33073504,"24,832.28",BABALP,S8 0BJ
Department of Health,NHS Sheffield CCG,7/31/2020,C&M-PMS DES Minor Surgery,PRC DELEGATED CO-COMMISSIONING,ABBEY LANE SURGERY,33073504,170.00,DEMSUP,S8 0BJ
Department of Health,NHS Sheffield CCG,7/31/2020,C&M-PMS Funding Differential Review,PRC DELEGATED CO-COMMISSIONING,ABBEY LANE SURGERY,33073504,"1,818.24",ZFUNFP,S8 0BJ
Department of Health,NHS Sheffield CCG,7/31/2020,C&M-PMS PCN DES Participation,PRC DELEGATED CO-COMMISSIONING,ABBEY LANE SURGERY,33073504,449.67,PARTIP,S8 0BJ
Department of Health,NHS Sheffield CCG,7/31/2020,C&M-PMS Prem Notional Rent,PRC DELEGATED CO-COMMISSIONING,ABBEY LANE SURGERY,33073504,"3,478.81",NRENT,S8 0BJ
Department of Health,NHS Sheffield CCG,7/31/2020,C&M-PMS Prem Rates,PRC DELEGATED CO-COMMISSIONING,ABBEY LANE SURGERY,33073504,773.00,RANDRP,S8 0BJ
Department of Health,NHS Sheffield CCG,7/31/2020,C&M-PMS QOF Achievement,PRC DELEGATED CO-COMMISSIONING,ABBEY LANE SURGERY,33073504,"3,422.67",QUACHP,S8 0BJ
Department of Health,NHS Sheffield CCG,7/31/2020,C&M-PMS QOF Aspiration,PRC DELEGATED CO-COMMISSIONING,ABBEY LANE SURGERY,33073504,"2,440.19",QUASPP,S8 0BJ
Department of Health,NHS Sheffield CCG,7/31/2020,C&M-PMS Voluntary Levy,PRC DELEGATED CO-COMMISSIONING,ABBEY LANE SURGERY,33073504,32.58,VOLL,S8 0BJ
Department of Health,NHS Sheffield CCG,7/31/2020,C&M-PMS Contract Value,PRC DELEGATED CO-COMMISSIONING,BARNSLEY ROAD SURGERY,33073506,"21,493.55",BABALP,S5 0QJ
Department of Health,NHS Sheffield CCG,7/31/2020,C&M-PMS Funding Differential Review,PRC DELEGATED CO-COMMISSIONING,BARNSLEY ROAD SURGERY,33073506,"2,025.77",ZFUNFP,S5 0QJ
Department of Health,NHS Sheffield CCG,7/31/2020,C&M-PMS PCN DES Participation,PRC DELEGATED CO-COMMISSIONING,BARNSLEY ROAD SURGERY,33073506,393.76,PARTIP,S5 0QJ
Department of Health,NHS Sheffield CCG,7/31/2020,C&M-PMS Prem Notional Rent,PRC DELEGATED CO-COMMISSIONING,BARNSLEY ROAD SURGERY,33073506,"2,652.17",NRENT,S5 0QJ
Department of Health,NHS Sheffield CCG,7/31/2020,C&M-PMS QOF Aspiration,PRC DELEGATED CO-COMMISSIONING,BARNSLEY ROAD SURGERY,33073506,"2,289.13",QUASPP,S5 0QJ
Department of Health,NHS Sheffield CCG,7/31/2020,C&M-PMS Voluntary Levy,PRC DELEGATED CO-COMMISSIONING,BARNSLEY ROAD SURGERY,33073506,25.22,VOLL,S5 0QJ
Department of Health,NHS Sheffield CCG,7/31/2020,C&M-PMS Contract Value,PRC DELEGATED CO-COMMISSIONING,BIRLEY HEALTH CENTRE,33073508,"67,240.58",BABALP,S12 3BP
Department of Health,NHS Sheffield CCG,7/31/2020,C&M-PMS DES Minor Surgery,PRC DELEGATED CO-COMMISSIONING,BIRLEY HEALTH CENTRE,33073508,"3,678.00",DEMSUP,S12 3BP
Department of Health,NHS Sheffield CCG,7/31/2020,C&M-PMS Funding Differential Review,PRC DELEGATED CO-COMMISSIONING,BIRLEY HEALTH CENTRE,33073508,"4,473.59",ZFUNFP,S12 3BP
Department of Health,NHS Sheffield CCG,7/31/2020,C&M-PMS PCN DES Participation,PRC DELEGATED CO-COMMISSIONING,BIRLEY HEALTH CENTRE,33073508,"1,222.93",PARTIP,S12 3BP
Department of Health,NHS Sheffield CCG,7/31/2020,C&M-PMS PCO Other,PRC DELEGATED CO-COMMISSIONING,BIRLEY HEALTH CENTRE,33073508,539.80,CQCRP,S12 3BP
Department of Health,NHS Sheffield CCG,7/31/2020,C&M-PMS Prem Notional Rent,PRC DELEGATED CO-COMMISSIONING,BIRLEY HEALTH CENTRE,33073508,"7,600.58",NRENT,S12 3BP
Department of Health,NHS Sheffield CCG,7/31/2020,C&M-PMS Prem Rates,PRC DELEGATED CO-COMMISSIONING,BIRLEY HEALTH CENTRE,33073508,"1,697.00",RANDRP,S12 3BP
Department of Health,NHS Sheffield CCG,7/31/2020,C&M-PMS QOF Achievement,PRC DELEGATED CO-COMMISSIONING,BIRLEY HEALTH CENTRE,33073508,"19,893.74",QUACHP,S12 3BP
Department of Health,NHS Sheffield CCG,7/31/2020,C&M-PMS QOF Aspiration,PRC DELEGATED CO-COMMISSIONING,BIRLEY HEALTH CENTRE,33073508,"6,800.34",QUASPP,S12 3BP
Department of Health,NHS Sheffield CCG,7/31/2020,C&M-PMS Voluntary Levy,PRC DELEGATED CO-COMMISSIONING,BIRLEY HEALTH CENTRE,33073508,85.64,VOLL,S12 3BP
Department of Health,NHS Sheffield CCG,7/31/2020,C&M-PMS GP Statutory Levy,PRC DELEGATED CO-COMMISSIONING,BURNCROSS SURGERY,33073509,-527.77,STATL,S35 1RN
Department of Health,NHS Sheffield CCG,7/31/2020,C&M-PMS Contract Value,PRC DELEGATED CO-COMMISSIONING,BURNCROSS SURGERY,33073510,"125,602.59",BABALP,S35 1RN
Department of Health,NHS Sheffield CCG,7/31/2020,C&M-PMS DES Minor Surgery,PRC DELEGATED CO-COMMISSIONING,BURNCROSS SURGERY,33073510,"2,821.00",DEMSUP,S35 1RN
Department of Health,NHS Sheffield CCG,7/31/2020,C&M-PMS Funding Differential Review,PRC DELEGATED CO-COMMISSIONING,BURNCROSS SURGERY,33073510,"10,985.27",ZFUNFP,S35 1RN
Department of Health,NHS Sheffield CCG,7/31/2020,C&M-PMS PCN DES Participation,PRC DELEGATED CO-COMMISSIONING,BURNCROSS SURGERY,33073510,"2,282.33",PARTIP,S35 1RN
Department of Health,NHS Sheffield CCG,7/31/2020,C&M-PMS PCO Other,PRC DELEGATED CO-COMMISSIONING,BURNCROSS SURGERY,33073510,"18,354.00",CQCRP,S35 1RN
Department of Health,NHS Sheffield CCG,7/31/2020,C&M-PMS Prem Notional Rent,PRC DELEGATED CO-COMMISSIONING,BURNCROSS SURGERY,33073510,"56,865.75",NRENT,S35 1RN
Department of Health,NHS Sheffield CCG,7/31/2020,C&M-PMS Prem Rates,PRC DELEGATED CO-COMMISSIONING,BURNCROSS SURGERY,33073510,"22,836.89",RANDRP,S35 1RN
Department of Health,NHS Sheffield CCG,7/31/2020,C&M-PMS QOF Aspiration,PRC DELEGATED CO-COMMISSIONING,BURNCROSS SURGERY,33073510,"15,253.36",QUASPP,S35 1RN
Department of Health,NHS Sheffield CCG,7/31/2020,C&M-PMS Voluntary Levy,PRC DELEGATED CO-COMMISSIONING,BURNCROSS SURGERY,33073510,151.24,VOLL,S35 1RN
Department of Health,NHS Sheffield CCG,7/31/2020,C&M-PMS Contract Value,PRC DELEGATED CO-COMMISSIONING,BURNGREAVE SURGERY,33073512,"60,178.96",BABALP,S3 9DA
Department of Health,NHS Sheffield CCG,7/31/2020,C&M-PMS DES Minor Surgery,PRC DELEGATED CO-COMMISSIONING,BURNGREAVE SURGERY,33073512,"1,156.00",DEMSUP,S3 9DA
Department of Health,NHS Sheffield CCG,7/31/2020,C&M-PMS Funding Differential Review,PRC DELEGATED CO-COMMISSIONING,BURNGREAVE SURGERY,33073512,"4,542.05",ZFUNFP,S3 9DA
Department of Health,NHS Sheffield CCG,7/31/2020,C&M-PMS Out of Hours Opt Outs,PRC DELEGATED CO-COMMISSIONING,BURNGREAVE SURGERY,33073512,8.35,APMOOH,S3 9DA
Department of Health,NHS Sheffield CCG,7/31/2020,C&M-PMS PCN DES Participation,PRC DELEGATED CO-COMMISSIONING,BURNGREAVE SURGERY,33073512,"1,090.16",PARTIP,S3 9DA
Department of Health,NHS Sheffield CCG,7/31/2020,C&M-PMS Prem Notional Rent,PRC DELEGATED CO-COMMISSIONING,BURNGREAVE SURGERY,33073512,"6,622.92",NRENT,S3 9DA
Department of Health,NHS Sheffield CCG,7/31/2020,C&M-PMS Prem Rates,PRC DELEGATED CO-COMMISSIONING,BURNGREAVE SURGERY,33073512,"2,297.00",RANDRP,S3 9DA
Department of Health,NHS Sheffield CCG,7/31/2020,C&M-PMS Prem Water Rates,PRC DELEGATED CO-COMMISSIONING,BURNGREAVE SURGERY,33073512,260.51,RAMWP,S3 9DA
Department of Health,NHS Sheffield CCG,7/31/2020,C&M-PMS QOF Aspiration,PRC DELEGATED CO-COMMISSIONING,BURNGREAVE SURGERY,33073512,"5,108.72",QUASPP,S3 9DA
Department of Health,NHS Sheffield CCG,7/31/2020,C&M-PMS Voluntary Levy,PRC DELEGATED CO-COMMISSIONING,BURNGREAVE SURGERY,33073512,68.96,VOLL,S3 9DA
Department of Health,NHS Sheffield CCG,7/31/2020,C&M-APMS Contract Value,PRC DELEGATED CO-COMMISSIONING,CLOVER GROUP PRACTICE,33073514,"144,000.30",APMADD,S9 4QH
Department of Health,NHS Sheffield CCG,7/31/2020,C&M-APMS PCN DES Participation,PRC DELEGATED CO-COMMISSIONING,CLOVER GROUP PRACTICE,33073514,"2,478.23",PARTIA,S9 4QH
Department of Health,NHS Sheffield CCG,7/31/2020,C&M-APMS Prem Actual Rent,PRC DELEGATED CO-COMMISSIONING,CLOVER GROUP PRACTICE,33073514,"5,169.68",RENTA,S9 4QH
Department of Health,NHS Sheffield CCG,7/31/2020,C&M-APMS Prem Healthcentre Rent,PRC DELEGATED CO-COMMISSIONING,CLOVER GROUP PRACTICE,33073514,"63,008.97",HEALTA,S9 4QH
Department of Health,NHS Sheffield CCG,7/31/2020,C&M-APMS Prem Notional Rent,PRC DELEGATED CO-COMMISSIONING,CLOVER GROUP PRACTICE,33073514,"2,804.17",NRENTA,S9 4QH
Department of Health,NHS Sheffield CCG,7/31/2020,C&M-PMS DES Minor Surgery,PRC DELEGATED CO-COMMISSIONING,CLOVER GROUP PRACTICE,33073514,110.00,DEMSUP,S9 4QH
Department of Health,NHS Sheffield CCG,7/31/2020,C&M-PMS QOF Aspiration,PRC DELEGATED CO-COMMISSIONING,CLOVER GROUP PRACTICE,33073514,"11,362.38",QUASPP,S9 4QH
Department of Health,NHS Sheffield CCG,7/31/2020,C&M-PMS Contract Value,PRC DELEGATED CO-COMMISSIONING,DEEPCAR MEDICAL CENTRE,33073516,"43,650.89",BABALP,S36 2RA
Department of Health,NHS Sheffield CCG,7/31/2020,C&M-PMS Funding Differential Review,PRC DELEGATED CO-COMMISSIONING,DEEPCAR MEDICAL CENTRE,33073516,"2,891.52",ZFUNFP,S36 2RA
Department of Health,NHS Sheffield CCG,7/31/2020,C&M-PMS Out of Hours Opt Outs,PRC DELEGATED CO-COMMISSIONING,DEEPCAR MEDICAL CENTRE,33073516,10.55,APMOOH,S36 2RA
Department of Health,NHS Sheffield CCG,7/31/2020,C&M-PMS PCN DES Participation,PRC DELEGATED CO-COMMISSIONING,DEEPCAR MEDICAL CENTRE,33073516,790.09,PARTIP,S36 2RA
Department of Health,NHS Sheffield CCG,7/31/2020,C&M-PMS PCO Other,PRC DELEGATED CO-COMMISSIONING,DEEPCAR MEDICAL CENTRE,33073516,"3,555.00",CQCRP,S36 2RA
Department of Health,NHS Sheffield CCG,7/31/2020,C&M-PMS Prem Healthcentre Rent,PRC DELEGATED CO-COMMISSIONING,DEEPCAR MEDICAL CENTRE,33073516,"32,874.59",HEALTH,S36 2RA
Department of Health,NHS Sheffield CCG,7/31/2020,C&M-PMS QOF Aspiration,PRC DELEGATED CO-COMMISSIONING,DEEPCAR MEDICAL CENTRE,33073516,"4,079.29",QUASPP,S36 2RA
Department of Health,NHS Sheffield CCG,7/31/2020,C&M-PMS Voluntary Levy,PRC DELEGATED CO-COMMISSIONING,DEEPCAR MEDICAL CENTRE,33073516,53.32,VOLL,S36 2RA
Department of Health,NHS Sheffield CCG,7/31/2020,C&M-PMS Contract Value,PRC DELEGATED CO-COMMISSIONING,DOVERCOURT SURGERY,33073518,"78,394.45",BABALP,S2 5FX
Department of Health,NHS Sheffield CCG,7/31/2020,C&M-PMS DES Minor Surgery,PRC DELEGATED CO-COMMISSIONING,DOVERCOURT SURGERY,33073518,"2,400.00",DEMSUP,S2 5FX
Department of Health,NHS Sheffield CCG,7/31/2020,C&M-PMS Funding Differential Review,PRC DELEGATED CO-COMMISSIONING,DOVERCOURT SURGERY,33073518,"4,635.49",ZFUNFP,S2 5FX
Department of Health,NHS Sheffield CCG,7/31/2020,C&M-PMS PCN DES Participation,PRC DELEGATED CO-COMMISSIONING,DOVERCOURT SURGERY,33073518,"1,405.71",PARTIP,S2 5FX
Department of Health,NHS Sheffield CCG,7/31/2020,C&M-PMS PCO Other,PRC DELEGATED CO-COMMISSIONING,DOVERCOURT SURGERY,33073518,542.80,CQCRP,S2 5FX
Department of Health,NHS Sheffield CCG,7/31/2020,C&M-PMS Prem Actual Rent,PRC DELEGATED CO-COMMISSIONING,DOVERCOURT SURGERY,33073518,"12,400.00",RENT,S2 5FX
Department of Health,NHS Sheffield CCG,7/31/2020,C&M-PMS Prem Notional Rent,PRC DELEGATED CO-COMMISSIONING,DOVERCOURT SURGERY,33073518,"1,708.33",NRENT,S2 5FX
Department of Health,NHS Sheffield CCG,7/31/2020,C&M-PMS QOF Aspiration,PRC DELEGATED CO-COMMISSIONING,DOVERCOURT SURGERY,33073518,"7,547.35",QUASPP,S2 5FX
Department of Health,NHS Sheffield CCG,7/31/2020,C&M-PMS Voluntary Levy,PRC DELEGATED CO-COMMISSIONING,DOVERCOURT SURGERY,33073518,86.88,VOLL,S2 5FX
Department of Health,NHS Sheffield CCG,7/31/2020,C&M-PMS Contract Value,PRC DELEGATED CO-COMMISSIONING,DR MILNER & PARTNERS,33073521,"80,192.52",BABALP,S6 4JQ
Department of Health,NHS Sheffield CCG,7/31/2020,C&M-PMS DES Minor Surgery,PRC DELEGATED CO-COMMISSIONING,DR MILNER & PARTNERS,33073521,"2,626.00",DEMSUP,S6 4JQ
Department of Health,NHS Sheffield CCG,7/31/2020,C&M-PMS Funding Differential Review,PRC DELEGATED CO-COMMISSIONING,DR MILNER & PARTNERS,33073521,"5,508.87",ZFUNFP,S6 4JQ
Department of Health,NHS Sheffield CCG,7/31/2020,C&M-PMS PCN DES Participation,PRC DELEGATED CO-COMMISSIONING,DR MILNER & PARTNERS,33073521,"1,452.54",PARTIP,S6 4JQ
Department of Health,NHS Sheffield CCG,7/31/2020,C&M-PMS Prem Actual Rent,PRC DELEGATED CO-COMMISSIONING,DR MILNER & PARTNERS,33073521,"11,382.00",RENT,S6 4JQ
Department of Health,NHS Sheffield CCG,7/31/2020,C&M-PMS Prem Notional Rent,PRC DELEGATED CO-COMMISSIONING,DR MILNER & PARTNERS,33073521,"4,462.42",NRENT,S6 4JQ
Department of Health,NHS Sheffield CCG,7/31/2020,C&M-PMS Prem Rates,PRC DELEGATED CO-COMMISSIONING,DR MILNER & PARTNERS,33073521,"6,156.00",RANDRP,S6 4JQ
Department of Health,NHS Sheffield CCG,7/31/2020,C&M-PMS Prem Water Rates,PRC DELEGATED CO-COMMISSIONING,DR MILNER & PARTNERS,33073521,769.03,RAMWP,S6 4JQ
Department of Health,NHS Sheffield CCG,7/31/2020,C&M-PMS QOF Aspiration,PRC DELEGATED CO-COMMISSIONING,DR MILNER & PARTNERS,33073521,"6,594.77",QUASPP,S6 4JQ
Department of Health,NHS Sheffield CCG,7/31/2020,C&M-PMS Voluntary Levy,PRC DELEGATED CO-COMMISSIONING,DR MILNER & PARTNERS,33073521,107.58,VOLL,S6 4JQ
Department of Health,NHS Sheffield CCG,7/31/2020,C&M-PMS Contract Value,PRC DELEGATED CO-COMMISSIONING,DUNNINC ROAD SURGERY,33073523,"22,331.05",BABALP,S5 0AE
Department of Health,NHS Sheffield CCG,7/31/2020,C&M-PMS DES Minor Surgery,PRC DELEGATED CO-COMMISSIONING,DUNNINC ROAD SURGERY,33073523,"2,184.00",DEMSUP,S5 0AE
Department of Health,NHS Sheffield CCG,7/31/2020,C&M-PMS Funding Differential Review,PRC DELEGATED CO-COMMISSIONING,DUNNINC ROAD SURGERY,33073523,"2,027.09",ZFUNFP,S5 0AE
Department of Health,NHS Sheffield CCG,7/31/2020,C&M-PMS PCN DES Participation,PRC DELEGATED CO-COMMISSIONING,DUNNINC ROAD SURGERY,33073523,408.46,PARTIP,S5 0AE
Department of Health,NHS Sheffield CCG,7/31/2020,C&M-PMS Prem Notional Rent,PRC DELEGATED CO-COMMISSIONING,DUNNINC ROAD SURGERY,33073523,"1,695.83",NRENT,S5 0AE
Department of Health,NHS Sheffield CCG,7/31/2020,C&M-PMS QOF Aspiration,PRC DELEGATED CO-COMMISSIONING,DUNNINC ROAD SURGERY,33073523,"1,748.41",QUASPP,S5 0AE
Department of Health,NHS Sheffield CCG,7/31/2020,C&M-PMS Voluntary Levy,PRC DELEGATED CO-COMMISSIONING,DUNNINC ROAD SURGERY,33073523,27.98,VOLL,S5 0AE
Department of Health,NHS Sheffield CCG,7/31/2020,C&M-PMS Contract Value,PRC DELEGATED CO-COMMISSIONING,DYKES HALL MEDICAL CENTRE,33073524,-564.76,BABALP,S6 4GQ
Department of Health,NHS Sheffield CCG,7/31/2020,C&M-PMS GP Statutory Levy,PRC DELEGATED CO-COMMISSIONING,DYKES HALL MEDICAL CENTRE,33073524,-332.64,STATL,S6 4GQ
Department of Health,NHS Sheffield CCG,7/31/2020,C&M-PMS Out of Hours Opt Outs,PRC DELEGATED CO-COMMISSIONING,DYKES HALL MEDICAL CENTRE,33073524,"-3,728.96",APMOOH,S6 4GQ
Department of Health,NHS Sheffield CCG,7/31/2020,C&M-PCN DES Support Payment,PRC DELEGATED CO-COMMISSIONING,DYKES HALL MEDICAL CENTRE,33073525,"1,595.45",SUPPPP,S6 4GQ
Department of Health,NHS Sheffield CCG,7/31/2020,C&M-PMS Contract Value,PRC DELEGATED CO-COMMISSIONING,DYKES HALL MEDICAL CENTRE,33073525,"74,207.73",BABALP,S6 4GQ
Department of Health,NHS Sheffield CCG,7/31/2020,C&M-PMS DES Extended Hours Access,PRC DELEGATED CO-COMMISSIONING,DYKES HALL MEDICAL CENTRE,33073525,"4,338.04",EXTHDP,S6 4GQ
Department of Health,NHS Sheffield CCG,7/31/2020,C&M-PMS DES Minor Surgery,PRC DELEGATED CO-COMMISSIONING,DYKES HALL MEDICAL CENTRE,33073525,660.00,DEMSUP,S6 4GQ
Department of Health,NHS Sheffield CCG,7/31/2020,C&M-PMS Funding Differential Review,PRC DELEGATED CO-COMMISSIONING,DYKES HALL MEDICAL CENTRE,33073525,"5,893.43",ZFUNFP,S6 4GQ
Department of Health,NHS Sheffield CCG,7/31/2020,C&M-PMS Out of Hours Opt Outs,PRC DELEGATED CO-COMMISSIONING,DYKES HALL MEDICAL CENTRE,33073525,26.43,APMOOH,S6 4GQ
Department of Health,NHS Sheffield CCG,7/31/2020,C&M-PMS PCN DES Clinical Director,PRC DELEGATED CO-COMMISSIONING,DYKES HALL MEDICAL CENTRE,33073525,"2,160.04",CLINDP,S6 4GQ
Department of Health,NHS Sheffield CCG,7/31/2020,C&M-PMS PCN DES PCN support,LOCAL ENHANCED SERVICES,DYKES HALL MEDICAL CENTRE,33073525,"4,487.63",PCNSUP,S6 4GQ
Department of Health,NHS Sheffield CCG,7/31/2020,C&M-PMS PCN DES Participation,PRC DELEGATED CO-COMMISSIONING,DYKES HALL MEDICAL CENTRE,33073525,"1,355.09",PARTIP,S6 4GQ
Department of Health,NHS Sheffield CCG,7/31/2020,C&M-PMS Prem Notional Rent,PRC DELEGATED CO-COMMISSIONING,DYKES HALL MEDICAL CENTRE,33073525,"5,377.08",NRENT,S6 4GQ
Department of Health,NHS Sheffield CCG,7/31/2020,C&M-PMS Prem Rates,PRC DELEGATED CO-COMMISSIONING,DYKES HALL MEDICAL CENTRE,33073525,"1,366.00",RANDRP,S6 4GQ
Department of Health,NHS Sheffield CCG,7/31/2020,C&M-PMS Prem Water Rates,PRC DELEGATED CO-COMMISSIONING,DYKES HALL MEDICAL CENTRE,33073525,322.43,RAMWP,S6 4GQ
Department of Health,NHS Sheffield CCG,7/31/2020,C&M-PMS QOF Aspiration,PRC DELEGATED CO-COMMISSIONING,DYKES HALL MEDICAL CENTRE,33073525,"8,087.38",QUASPP,S6 4GQ
Department of Health,NHS Sheffield CCG,7/31/2020,C&M-PMS Voluntary Levy,PRC DELEGATED CO-COMMISSIONING,DYKES HALL MEDICAL CENTRE,33073525,95.18,VOLL,S6 4GQ
Department of Health,NHS Sheffield CCG,7/31/2020,C&M-PMS Contract Value,PRC DELEGATED CO-COMMISSIONING,EAST BANK MEDICAL CENTRE,33073528,"51,810.41",BABALP,S2 2AG
Department of Health,NHS Sheffield CCG,7/31/2020,C&M-PMS DES Minor Surgery,PRC DELEGATED CO-COMMISSIONING,EAST BANK MEDICAL CENTRE,33073528,705.00,DEMSUP,S2 2AG
Department of Health,NHS Sheffield CCG,7/31/2020,C&M-PMS Funding Differential Review,PRC DELEGATED CO-COMMISSIONING,EAST BANK MEDICAL CENTRE,33073528,"3,087.68",ZFUNFP,S2 2AG
Department of Health,NHS Sheffield CCG,7/31/2020,C&M-PMS PCN DES Participation,PRC DELEGATED CO-COMMISSIONING,EAST BANK MEDICAL CENTRE,33073528,937.18,PARTIP,S2 2AG
Department of Health,NHS Sheffield CCG,7/31/2020,C&M-PMS PCO Other,PRC DELEGATED CO-COMMISSIONING,EAST BANK MEDICAL CENTRE,33073528,"3,926.00",CQCRP,S2 2AG
Department of Health,NHS Sheffield CCG,7/31/2020,C&M-PMS Prem Notional Rent,PRC DELEGATED CO-COMMISSIONING,EAST BANK MEDICAL CENTRE,33073528,"10,583.33",NRENT,S2 2AG
Department of Health,NHS Sheffield CCG,7/31/2020,C&M-PMS Prem Rates,PRC DELEGATED CO-COMMISSIONING,EAST BANK MEDICAL CENTRE,33073528,"2,944.00",RANDRP,S2 2AG
Department of Health,NHS Sheffield CCG,7/31/2020,C&M-PMS QOF Aspiration,PRC DELEGATED CO-COMMISSIONING,EAST BANK MEDICAL CENTRE,33073528,"5,136.41",QUASPP,S2 2AG
Department of Health,NHS Sheffield CCG,7/31/2020,C&M-PMS Voluntary Levy,PRC DELEGATED CO-COMMISSIONING,EAST BANK MEDICAL CENTRE,33073528,60.30,VOLL,S2 2AG
Department of Health,NHS Sheffield CCG,7/31/2020,C&M-PMS Contract Value,PRC DELEGATED CO-COMMISSIONING,FIRTH PARK SURGERY,33073532,"86,274.36",BABALP,S5 6HH
Department of Health,NHS Sheffield CCG,7/31/2020,C&M-PMS DES Minor Surgery,PRC DELEGATED CO-COMMISSIONING,FIRTH PARK SURGERY,33073532,"1,635.00",DEMSUP,S5 6HH
Department of Health,NHS Sheffield CCG,7/31/2020,C&M-PMS Out of Hours Opt Outs,PRC DELEGATED CO-COMMISSIONING,FIRTH PARK SURGERY,33073532,7.50,APMOOH,S5 6HH
Department of Health,NHS Sheffield CCG,7/31/2020,C&M-PMS PCN DES Participation,PRC DELEGATED CO-COMMISSIONING,FIRTH PARK SURGERY,33073532,"1,453.48",PARTIP,S5 6HH
Department of Health,NHS Sheffield CCG,7/31/2020,C&M-PMS PCO Other,PRC DELEGATED CO-COMMISSIONING,FIRTH PARK SURGERY,33073532,"6,227.00",CQCRP,S5 6HH
Department of Health,NHS Sheffield CCG,7/31/2020,C&M-PMS Prem Notional Rent,PRC DELEGATED CO-COMMISSIONING,FIRTH PARK SURGERY,33073532,"4,500.00",NRENT,S5 6HH
Department of Health,NHS Sheffield CCG,7/31/2020,C&M-PMS Prem Rates,PRC DELEGATED CO-COMMISSIONING,FIRTH PARK SURGERY,33073532,"1,839.75",RANDRP,S5 6HH
Department of Health,NHS Sheffield CCG,7/31/2020,C&M-PMS QOF Aspiration,PRC DELEGATED CO-COMMISSIONING,FIRTH PARK SURGERY,33073532,"7,425.15",QUASPP,S5 6HH
Department of Health,NHS Sheffield CCG,7/31/2020,C&M-PMS Voluntary Levy,PRC DELEGATED CO-COMMISSIONING,FIRTH PARK SURGERY,33073532,100.08,VOLL,S5 6HH
Department of Health,NHS Sheffield CCG,7/31/2020,C&M-PMS Contract Value,PRC DELEGATED CO-COMMISSIONING,FALKLAND HOUSE,33073538,"27,990.86",BABALP,S11 7PL
Department of Health,NHS Sheffield CCG,7/31/2020,C&M-PMS DES Minor Surgery,PRC DELEGATED CO-COMMISSIONING,FALKLAND HOUSE,33073538,730.00,DEMSUP,S11 7PL
Department of Health,NHS Sheffield CCG,7/31/2020,C&M-PMS Funding Differential Review,PRC DELEGATED CO-COMMISSIONING,FALKLAND HOUSE,33073538,"1,435.56",ZFUNFP,S11 7PL
Department of Health,NHS Sheffield CCG,7/31/2020,C&M-PMS Out of Hours Opt Outs,PRC DELEGATED CO-COMMISSIONING,FALKLAND HOUSE,33073538,8.04,APMOOH,S11 7PL
Department of Health,NHS Sheffield CCG,7/31/2020,C&M-PMS PCN DES Participation,PRC DELEGATED CO-COMMISSIONING,FALKLAND HOUSE,33073538,497.02,PARTIP,S11 7PL
Department of Health,NHS Sheffield CCG,7/31/2020,C&M-PMS PCO Other,PRC DELEGATED CO-COMMISSIONING,FALKLAND HOUSE,33073538,276.50,CQCRP,S11 7PL
Department of Health,NHS Sheffield CCG,7/31/2020,C&M-PMS Prem Notional Rent,PRC DELEGATED CO-COMMISSIONING,FALKLAND HOUSE,33073538,"1,866.67",NRENT,S11 7PL
Department of Health,NHS Sheffield CCG,7/31/2020,C&M-PMS Prem Rates,PRC DELEGATED CO-COMMISSIONING,FALKLAND HOUSE,33073538,786.00,RANDRP,S11 7PL
Department of Health,NHS Sheffield CCG,7/31/2020,C&M-PMS Prem Water Rates,PRC DELEGATED CO-COMMISSIONING,FALKLAND HOUSE,33073538,73.59,RAMWP,S11 7PL
Department of Health,NHS Sheffield CCG,7/31/2020,C&M-PMS QOF Aspiration,PRC DELEGATED CO-COMMISSIONING,FALKLAND HOUSE,33073538,"2,962.47",QUASPP,S11 7PL
Department of Health,NHS Sheffield CCG,7/31/2020,C&M-PMS Voluntary Levy,PRC DELEGATED CO-COMMISSIONING,FALKLAND HOUSE,33073538,39.54,VOLL,S11 7PL
Department of Health,NHS Sheffield CCG,7/31/2020,C&M-PMS Contract Value,PRC DELEGATED CO-COMMISSIONING,GLEADLESS MEDICAL CENTRE,33073542,"71,956.07",BABALP,S14 1PQ
Department of Health,NHS Sheffield CCG,7/31/2020,C&M-PMS DES Minor Surgery,PRC DELEGATED CO-COMMISSIONING,GLEADLESS MEDICAL CENTRE,33073542,130.00,DEMSUP,S14 1PQ
Department of Health,NHS Sheffield CCG,7/31/2020,C&M-PMS Funding Differential Review,PRC DELEGATED CO-COMMISSIONING,GLEADLESS MEDICAL CENTRE,33073542,"6,191.88",ZFUNFP,S14 1PQ
Department of Health,NHS Sheffield CCG,7/31/2020,C&M-PMS Out of Hours Opt Outs,PRC DELEGATED CO-COMMISSIONING,GLEADLESS MEDICAL CENTRE,33073542,11.54,APMOOH,S14 1PQ
Department of Health,NHS Sheffield CCG,7/31/2020,C&M-PMS PCN DES Participation,PRC DELEGATED CO-COMMISSIONING,GLEADLESS MEDICAL CENTRE,33073542,"1,315.26",PARTIP,S14 1PQ
Department of Health,NHS Sheffield CCG,7/31/2020,C&M-PMS PCO Other,PRC DELEGATED CO-COMMISSIONING,GLEADLESS MEDICAL CENTRE,33073542,559.20,CQCRP,S14 1PQ
Department of Health,NHS Sheffield CCG,7/31/2020,C&M-PMS Prem Notional Rent,PRC DELEGATED CO-COMMISSIONING,GLEADLESS MEDICAL CENTRE,33073542,"6,750.00",NRENT,S14 1PQ
Department of Health,NHS Sheffield CCG,7/31/2020,C&M-PMS Prem Rates,PRC DELEGATED CO-COMMISSIONING,GLEADLESS MEDICAL CENTRE,33073542,"1,684.00",RANDRP,S14 1PQ
Department of Health,NHS Sheffield CCG,7/31/2020,C&M-PMS QOF Aspiration,PRC DELEGATED CO-COMMISSIONING,GLEADLESS MEDICAL CENTRE,33073542,"7,390.52",QUASPP,S14 1PQ
Department of Health,NHS Sheffield CCG,7/31/2020,C&M-PMS Voluntary Levy,PRC DELEGATED CO-COMMISSIONING,GLEADLESS MEDICAL CENTRE,33073542,89.18,VOLL,S14 1PQ
Department of Health,NHS Sheffield CCG,7/31/2020,C&M-PMS Contract Value,PRC DELEGATED CO-COMMISSIONING,HACKENTHORPE MEDICAL CENTRE,33073546,"51,106.39",BABALP,S12 4LA
Department of Health,NHS Sheffield CCG,7/31/2020,C&M-PMS DES Minor Surgery,PRC DELEGATED CO-COMMISSIONING,HACKENTHORPE MEDICAL CENTRE,33073546,780.00,DEMSUP,S12 4LA
Department of Health,NHS Sheffield CCG,7/31/2020,C&M-PMS Funding Differential Review,PRC DELEGATED CO-COMMISSIONING,HACKENTHORPE MEDICAL CENTRE,33073546,"3,526.29",ZFUNFP,S12 4LA
Department of Health,NHS Sheffield CCG,7/31/2020,C&M-PMS PCN DES Participation,PRC DELEGATED CO-COMMISSIONING,HACKENTHORPE MEDICAL CENTRE,33073546,925.92,PARTIP,S12 4LA
Department of Health,NHS Sheffield CCG,7/31/2020,C&M-PMS PCO Other,PRC DELEGATED CO-COMMISSIONING,HACKENTHORPE MEDICAL CENTRE,33073546,435.70,CQCRP,S12 4LA
Department of Health,NHS Sheffield CCG,7/31/2020,C&M-PMS Prem Notional Rent,PRC DELEGATED CO-COMMISSIONING,HACKENTHORPE MEDICAL CENTRE,33073546,"5,116.67",NRENT,S12 4LA
Department of Health,NHS Sheffield CCG,7/31/2020,C&M-PMS Prem Rates,PRC DELEGATED CO-COMMISSIONING,HACKENTHORPE MEDICAL CENTRE,33073546,"1,385.00",RANDRP,S12 4LA
Department of Health,NHS Sheffield CCG,7/31/2020,C&M-PMS Prem Water Rates,PRC DELEGATED CO-COMMISSIONING,HACKENTHORPE MEDICAL CENTRE,33073546,137.70,RAMWP,S12 4LA
Department of Health,NHS Sheffield CCG,7/31/2020,C&M-PMS QOF Aspiration,PRC DELEGATED CO-COMMISSIONING,HACKENTHORPE MEDICAL CENTRE,33073546,"6,490.74",QUASPP,S12 4LA
Department of Health,NHS Sheffield CCG,7/31/2020,C&M-PMS Voluntary Levy,PRC DELEGATED CO-COMMISSIONING,HACKENTHORPE MEDICAL CENTRE,33073546,67.66,VOLL,S12 4LA
Department of Health,NHS Sheffield CCG,7/31/2020,C&M-PCN DES Support Payment,PRC DELEGATED CO-COMMISSIONING,JAUNTY SPRINGS HEALTH CENTRE,33073549,"1,639.52",SUPPPP,S12 3DZ
Department of Health,NHS Sheffield CCG,7/31/2020,C&M-PMS Contract Value,PRC DELEGATED CO-COMMISSIONING,JAUNTY SPRINGS HEALTH CENTRE,33073549,"32,417.79",BABALP,S12 3DZ
Department of Health,NHS Sheffield CCG,7/31/2020,C&M-PMS DES Extended Hours Access,PRC DELEGATED CO-COMMISSIONING,JAUNTY SPRINGS HEALTH CENTRE,33073549,"4,214.06",EXTHDP,S12 3DZ
Department of Health,NHS Sheffield CCG,7/31/2020,C&M-PMS DES Minor Surgery,PRC DELEGATED CO-COMMISSIONING,JAUNTY SPRINGS HEALTH CENTRE,33073549,141.00,DEMSUP,S12 3DZ
Department of Health,NHS Sheffield CCG,7/31/2020,C&M-PMS Funding Differential Review,PRC DELEGATED CO-COMMISSIONING,JAUNTY SPRINGS HEALTH CENTRE,33073549,"2,401.81",ZFUNFP,S12 3DZ
Department of Health,NHS Sheffield CCG,7/31/2020,C&M-PMS Out of Hours Opt Outs,PRC DELEGATED CO-COMMISSIONING,JAUNTY SPRINGS HEALTH CENTRE,33073549,5.07,APMOOH,S12 3DZ
Department of Health,NHS Sheffield CCG,7/31/2020,C&M-PMS PCN DES Clinical Director,PRC DELEGATED CO-COMMISSIONING,JAUNTY SPRINGS HEALTH CENTRE,33073549,"2,098.31",CLINDP,S12 3DZ
Department of Health,NHS Sheffield CCG,7/31/2020,C&M-PMS PCN DES PCN support,LOCAL ENHANCED SERVICES,JAUNTY SPRINGS HEALTH CENTRE,33073549,"4,359.38",PCNSUP,S12 3DZ
Department of Health,NHS Sheffield CCG,7/31/2020,C&M-PMS PCN DES Participation,PRC DELEGATED CO-COMMISSIONING,JAUNTY SPRINGS HEALTH CENTRE,33073549,592.79,PARTIP,S12 3DZ
Department of Health,NHS Sheffield CCG,7/31/2020,C&M-PMS PCO Other,PRC DELEGATED CO-COMMISSIONING,JAUNTY SPRINGS HEALTH CENTRE,33073549,266.60,CQCRP,S12 3DZ
Department of Health,NHS Sheffield CCG,7/31/2020,C&M-PMS Prem Notional Rent,PRC DELEGATED CO-COMMISSIONING,JAUNTY SPRINGS HEALTH CENTRE,33073549,"3,208.33",NRENT,S12 3DZ
Department of Health,NHS Sheffield CCG,7/31/2020,C&M-PMS Prem Rates,PRC DELEGATED CO-COMMISSIONING,JAUNTY SPRINGS HEALTH CENTRE,33073549,830.00,RANDRP,S12 3DZ
Department of Health,NHS Sheffield CCG,7/31/2020,C&M-PMS Prem Water Rates,PRC DELEGATED CO-COMMISSIONING,JAUNTY SPRINGS HEALTH CENTRE,33073549,63.30,RAMWP,S12 3DZ
Department of Health,NHS Sheffield CCG,7/31/2020,C&M-PMS QOF Aspiration,PRC DELEGATED CO-COMMISSIONING,JAUNTY SPRINGS HEALTH CENTRE,33073549,"3,693.16",QUASPP,S12 3DZ
Department of Health,NHS Sheffield CCG,7/31/2020,C&M-PMS Voluntary Levy,PRC DELEGATED CO-COMMISSIONING,JAUNTY SPRINGS HEALTH CENTRE,33073549,37.90,VOLL,S12 3DZ
Department of Health,NHS Sheffield CCG,7/31/2020,C&M-PMS Contract Value,PRC DELEGATED CO-COMMISSIONING,MANCHESTER ROAD SURGERY SHEFFIELD,33073556,"34,855.63",BABALP,S10 5PN
Department of Health,NHS Sheffield CCG,7/31/2020,C&M-PMS DES Minor Surgery,PRC DELEGATED CO-COMMISSIONING,MANCHESTER ROAD SURGERY SHEFFIELD,33073556,981.00,DEMSUP,S10 5PN
Department of Health,NHS Sheffield CCG,7/31/2020,C&M-PMS Funding Differential Review,PRC DELEGATED CO-COMMISSIONING,MANCHESTER ROAD SURGERY SHEFFIELD,33073556,"2,416.65",ZFUNFP,S10 5PN
Department of Health,NHS Sheffield CCG,7/31/2020,C&M-PMS Out of Hours Opt Outs,PRC DELEGATED CO-COMMISSIONING,MANCHESTER ROAD SURGERY SHEFFIELD,33073556,4.42,APMOOH,S10 5PN
Department of Health,NHS Sheffield CCG,7/31/2020,C&M-PMS PCN DES Participation,PRC DELEGATED CO-COMMISSIONING,MANCHESTER ROAD SURGERY SHEFFIELD,33073556,631.34,PARTIP,S10 5PN
Department of Health,NHS Sheffield CCG,7/31/2020,C&M-PMS Prem Cost Rent,PRC DELEGATED CO-COMMISSIONING,MANCHESTER ROAD SURGERY SHEFFIELD,33073556,"3,091.46",COST,S10 5PN
Department of Health,NHS Sheffield CCG,7/31/2020,C&M-PMS Prem Notional Rent,PRC DELEGATED CO-COMMISSIONING,MANCHESTER ROAD SURGERY SHEFFIELD,33073556,442.92,NRENT,S10 5PN
Department of Health,NHS Sheffield CCG,7/31/2020,C&M-PMS Prem Rates,PRC DELEGATED CO-COMMISSIONING,MANCHESTER ROAD SURGERY SHEFFIELD,33073556,986.00,RANDRP,S10 5PN
Department of Health,NHS Sheffield CCG,7/31/2020,C&M-PMS QOF Aspiration,PRC DELEGATED CO-COMMISSIONING,MANCHESTER ROAD SURGERY SHEFFIELD,33073556,"3,837.07",QUASPP,S10 5PN
Department of Health,NHS Sheffield CCG,7/31/2020,C&M-PMS Voluntary Levy,PRC DELEGATED CO-COMMISSIONING,MANCHESTER ROAD SURGERY SHEFFIELD,33073556,48.38,VOLL,S10 5PN
Department of Health,NHS Sheffield CCG,7/31/2020,C&M-PMS Contract Value,PRC DELEGATED CO-COMMISSIONING,MOSBOROUGH HEALTH CENTRE,33073560,"52,989.79",BABALP,S20 5BQ
Department of Health,NHS Sheffield CCG,7/31/2020,C&M-PMS DES Minor Surgery,PRC DELEGATED CO-COMMISSIONING,MOSBOROUGH HEALTH CENTRE,33073560,"1,240.00",DEMSUP,S20 5BQ
Department of Health,NHS Sheffield CCG,7/31/2020,C&M-PMS Funding Differential Review,PRC DELEGATED CO-COMMISSIONING,MOSBOROUGH HEALTH CENTRE,33073560,"3,567.57",ZFUNFP,S20 5BQ
Department of Health,NHS Sheffield CCG,7/31/2020,C&M-PMS PCN DES Participation,PRC DELEGATED CO-COMMISSIONING,MOSBOROUGH HEALTH CENTRE,33073560,955.17,PARTIP,S20 5BQ
Department of Health,NHS Sheffield CCG,7/31/2020,C&M-PMS Prem Notional Rent,PRC DELEGATED CO-COMMISSIONING,MOSBOROUGH HEALTH CENTRE,33073560,"4,091.67",NRENT,S20 5BQ
Department of Health,NHS Sheffield CCG,7/31/2020,C&M-PMS Prem Rates,PRC DELEGATED CO-COMMISSIONING,MOSBOROUGH HEALTH CENTRE,33073560,"1,603.50",RANDRP,S20 5BQ
Department of Health,NHS Sheffield CCG,7/31/2020,C&M-PMS QOF Aspiration,PRC DELEGATED CO-COMMISSIONING,MOSBOROUGH HEALTH CENTRE,33073560,"5,629.90",QUASPP,S20 5BQ
Department of Health,NHS Sheffield CCG,7/31/2020,C&M-PMS Voluntary Levy,PRC DELEGATED CO-COMMISSIONING,MOSBOROUGH HEALTH CENTRE,33073560,69.10,VOLL,S20 5BQ
Department of Health,NHS Sheffield CCG,7/31/2020,C&M-PMS Contract Value,PRC DELEGATED CO-COMMISSIONING,NETHERGREEN SURGERY,33073564,"66,210.13",BABALP,S11 7EJ
Department of Health,NHS Sheffield CCG,7/31/2020,C&M-PMS DES Minor Surgery,PRC DELEGATED CO-COMMISSIONING,NETHERGREEN SURGERY,33073564,"2,149.00",DEMSUP,S11 7EJ
Department of Health,NHS Sheffield CCG,7/31/2020,C&M-PMS Funding Differential Review,PRC DELEGATED CO-COMMISSIONING,NETHERGREEN SURGERY,33073564,"5,479.49",ZFUNFP,S11 7EJ
Department of Health,NHS Sheffield CCG,7/31/2020,C&M-PMS Out of Hours Opt Outs,PRC DELEGATED CO-COMMISSIONING,NETHERGREEN SURGERY,33073564,2.61,APMOOH,S11 7EJ
Department of Health,NHS Sheffield CCG,7/31/2020,C&M-PMS PCN DES Participation,PRC DELEGATED CO-COMMISSIONING,NETHERGREEN SURGERY,33073564,"1,201.24",PARTIP,S11 7EJ
Department of Health,NHS Sheffield CCG,7/31/2020,C&M-PMS Prem Cost Rent,PRC DELEGATED CO-COMMISSIONING,NETHERGREEN SURGERY,33073564,"5,057.33",COST,S11 7EJ
Department of Health,NHS Sheffield CCG,7/31/2020,C&M-PMS Prem Rates,PRC DELEGATED CO-COMMISSIONING,NETHERGREEN SURGERY,33073564,"1,285.00",RANDRP,S11 7EJ
Department of Health,NHS Sheffield CCG,7/31/2020,C&M-PMS Prem Water Rates,PRC DELEGATED CO-COMMISSIONING,NETHERGREEN SURGERY,33073564,"1,316.20",RAMWP,S11 7EJ
Department of Health,NHS Sheffield CCG,7/31/2020,C&M-PMS QOF Achievement,PRC DELEGATED CO-COMMISSIONING,NETHERGREEN SURGERY,33073564,"8,987.58",QUACHP,S11 7EJ
Department of Health,NHS Sheffield CCG,7/31/2020,C&M-PMS QOF Aspiration,PRC DELEGATED CO-COMMISSIONING,NETHERGREEN SURGERY,33073564,"5,887.42",QUASPP,S11 7EJ
Department of Health,NHS Sheffield CCG,7/31/2020,C&M-PMS Voluntary Levy,PRC DELEGATED CO-COMMISSIONING,NETHERGREEN SURGERY,33073564,92.60,VOLL,S11 7EJ
Department of Health,NHS Sheffield CCG,7/31/2020,C&M-PMS Contract Value,PRC DELEGATED CO-COMMISSIONING,OWLTHORPE MEDICAL CENTRE,33073568,"35,785.50",BABALP,S20 6PD
Department of Health,NHS Sheffield CCG,7/31/2020,C&M-PMS DES Minor Surgery,PRC DELEGATED CO-COMMISSIONING,OWLTHORPE MEDICAL CENTRE,33073568,791.00,DEMSUP,S20 6PD
Department of Health,NHS Sheffield CCG,7/31/2020,C&M-PMS Funding Differential Review,PRC DELEGATED CO-COMMISSIONING,OWLTHORPE MEDICAL CENTRE,33073568,"1,120.05",ZFUNFP,S20 6PD
Department of Health,NHS Sheffield CCG,7/31/2020,C&M-PMS Out of Hours Opt Outs,PRC DELEGATED CO-COMMISSIONING,OWLTHORPE MEDICAL CENTRE,33073568,2.82,APMOOH,S20 6PD
Department of Health,NHS Sheffield CCG,7/31/2020,C&M-PMS PCN DES Participation,PRC DELEGATED CO-COMMISSIONING,OWLTHORPE MEDICAL CENTRE,33073568,633.33,PARTIP,S20 6PD
Department of Health,NHS Sheffield CCG,7/31/2020,C&M-PMS PCO Other,PRC DELEGATED CO-COMMISSIONING,OWLTHORPE MEDICAL CENTRE,33073568,305.40,CQCRP,S20 6PD
Department of Health,NHS Sheffield CCG,7/31/2020,C&M-PMS Prem Actual Rent,PRC DELEGATED CO-COMMISSIONING,OWLTHORPE MEDICAL CENTRE,33073568,"7,539.58",RENT,S20 6PD
Department of Health,NHS Sheffield CCG,7/31/2020,C&M-PMS QOF Aspiration,PRC DELEGATED CO-COMMISSIONING,OWLTHORPE MEDICAL CENTRE,33073568,"3,728.91",QUASPP,S20 6PD
Department of Health,NHS Sheffield CCG,7/31/2020,C&M-PMS Voluntary Levy,PRC DELEGATED CO-COMMISSIONING,OWLTHORPE MEDICAL CENTRE,33073568,44.44,VOLL,S20 6PD
Department of Health,NHS Sheffield CCG,7/31/2020,C&M-PMS GP Statutory Levy,PRC DELEGATED CO-COMMISSIONING,PAGE HALL MEDICAL CENTRE,33073570,-276.64,STATL,S4 8GB
Department of Health,NHS Sheffield CCG,7/31/2020,C&M-PMS Out of Hours Opt Outs,PRC DELEGATED CO-COMMISSIONING,PAGE HALL MEDICAL CENTRE,33073570,"-3,028.32",APMOOH,S4 8GB
Department of Health,NHS Sheffield CCG,7/31/2020,C&M-PMS Contract Value,PRC DELEGATED CO-COMMISSIONING,PAGE HALL MEDICAL CENTRE,33073572,"60,654.98",BABALP,S4 8GB
Department of Health,NHS Sheffield CCG,7/31/2020,C&M-PMS DES Learn Dsblty Hlth Chk,PRC DELEGATED CO-COMMISSIONING,PAGE HALL MEDICAL CENTRE,33073572,980.00,LEARNP,S4 8GB
Department of Health,NHS Sheffield CCG,7/31/2020,C&M-PMS DES Minor Surgery,PRC DELEGATED CO-COMMISSIONING,PAGE HALL MEDICAL CENTRE,33073572,270.00,DEMSUP,S4 8GB
Department of Health,NHS Sheffield CCG,7/31/2020,C&M-PMS Funding Differential Review,PRC DELEGATED CO-COMMISSIONING,PAGE HALL MEDICAL CENTRE,33073572,"4,645.49",ZFUNFP,S4 8GB
Department of Health,NHS Sheffield CCG,7/31/2020,C&M-PMS PCN DES Participation,PRC DELEGATED CO-COMMISSIONING,PAGE HALL MEDICAL CENTRE,33073572,"1,096.18",PARTIP,S4 8GB
Department of Health,NHS Sheffield CCG,7/31/2020,C&M-PMS PCO Other,PRC DELEGATED CO-COMMISSIONING,PAGE HALL MEDICAL CENTRE,33073572,502.90,CQCRP,S4 8GB
Department of Health,NHS Sheffield CCG,7/31/2020,C&M-PMS Prem Notional Rent,PRC DELEGATED CO-COMMISSIONING,PAGE HALL MEDICAL CENTRE,33073572,"4,833.33",NRENT,S4 8GB
Department of Health,NHS Sheffield CCG,7/31/2020,C&M-PMS Prem Rates,PRC DELEGATED CO-COMMISSIONING,PAGE HALL MEDICAL CENTRE,33073572,"1,285.00",RANDRP,S4 8GB
Department of Health,NHS Sheffield CCG,7/31/2020,C&M-PMS QOF Achievement,PRC DELEGATED CO-COMMISSIONING,PAGE HALL MEDICAL CENTRE,33073572,"10,324.48",QUACHP,S4 8GB
Department of Health,NHS Sheffield CCG,7/31/2020,C&M-PMS QOF Aspiration,PRC DELEGATED CO-COMMISSIONING,PAGE HALL MEDICAL CENTRE,33073572,"3,909.14",QUASPP,S4 8GB
Department of Health,NHS Sheffield CCG,7/31/2020,C&M-PMS Voluntary Levy,PRC DELEGATED CO-COMMISSIONING,PAGE HALL MEDICAL CENTRE,33073572,79.34,VOLL,S4 8GB
Department of Health,NHS Sheffield CCG,7/31/2020,C&M-PMS Contract Value,PRC DELEGATED CO-COMMISSIONING,PORTER BROOK MEDICAL CENTRE,33073575,"-1,467.99",BABALP,S11 8HN
Department of Health,NHS Sheffield CCG,7/31/2020,C&M-PMS GP Statutory Levy,PRC DELEGATED CO-COMMISSIONING,PORTER BROOK MEDICAL CENTRE,33073575,"-1,005.66",STATL,S11 8HN
Department of Health,NHS Sheffield CCG,7/31/2020,C&M-PMS Out of Hours Opt Outs,PRC DELEGATED CO-COMMISSIONING,PORTER BROOK MEDICAL CENTRE,33073575,"-8,756.44",APMOOH,S11 8HN
Department of Health,NHS Sheffield CCG,7/31/2020,C&M-PMS Contract Value,PRC DELEGATED CO-COMMISSIONING,PORTER BROOK MEDICAL CENTRE,33073577,"175,686.70",BABALP,S11 8HN
Department of Health,NHS Sheffield CCG,7/31/2020,C&M-PMS DES Minor Surgery,PRC DELEGATED CO-COMMISSIONING,PORTER BROOK MEDICAL CENTRE,33073577,"5,238.00",DEMSUP,S11 8HN
Department of Health,NHS Sheffield CCG,7/31/2020,C&M-PMS Funding Differential Review,PRC DELEGATED CO-COMMISSIONING,PORTER BROOK MEDICAL CENTRE,33073577,"14,545.08",ZFUNFP,S11 8HN
Department of Health,NHS Sheffield CCG,7/31/2020,C&M-PMS Out of Hours Opt Outs,PRC DELEGATED CO-COMMISSIONING,PORTER BROOK MEDICAL CENTRE,33073577,68.82,APMOOH,S11 8HN
Department of Health,NHS Sheffield CCG,7/31/2020,C&M-PMS PCN DES Participation,PRC DELEGATED CO-COMMISSIONING,PORTER BROOK MEDICAL CENTRE,33073577,"3,182.41",PARTIP,S11 8HN
Department of Health,NHS Sheffield CCG,7/31/2020,C&M-PMS Prem Actual Rent,PRC DELEGATED CO-COMMISSIONING,PORTER BROOK MEDICAL CENTRE,33073577,"1,666.67",RENT,S11 8HN
Department of Health,NHS Sheffield CCG,7/31/2020,C&M-PMS Prem Notional Rent,PRC DELEGATED CO-COMMISSIONING,PORTER BROOK MEDICAL CENTRE,33073577,"9,666.67",NRENT,S11 8HN
Department of Health,NHS Sheffield CCG,7/31/2020,C&M-PMS Prem Rates,PRC DELEGATED CO-COMMISSIONING,PORTER BROOK MEDICAL CENTRE,33073577,"2,658.00",RANDRP,S11 8HN
Department of Health,NHS Sheffield CCG,7/31/2020,C&M-PMS Prem Water Rates,PRC DELEGATED CO-COMMISSIONING,PORTER BROOK MEDICAL CENTRE,33073577,213.55,RAMWP,S11 8HN
Department of Health,NHS Sheffield CCG,7/31/2020,C&M-PMS QOF Aspiration,PRC DELEGATED CO-COMMISSIONING,PORTER BROOK MEDICAL CENTRE,33073577,"10,115.59",QUASPP,S11 8HN
Department of Health,NHS Sheffield CCG,7/31/2020,C&M-PMS Voluntary Levy,PRC DELEGATED CO-COMMISSIONING,PORTER BROOK MEDICAL CENTRE,33073577,294.62,VOLL,S11 8HN
Department of Health,NHS Sheffield CCG,7/31/2020,C&M-PMS Contract Value,PRC DELEGATED CO-COMMISSIONING,RICHMOND MEDICAL CENTRE,33073580,"71,244.73",BABALP,S13 8NA
Department of Health,NHS Sheffield CCG,7/31/2020,C&M-PMS DES Minor Surgery,PRC DELEGATED CO-COMMISSIONING,RICHMOND MEDICAL CENTRE,33073580,"2,103.00",DEMSUP,S13 8NA
Department of Health,NHS Sheffield CCG,7/31/2020,C&M-PMS Funding Differential Review,PRC DELEGATED CO-COMMISSIONING,RICHMOND MEDICAL CENTRE,33073580,"4,038.51",ZFUNFP,S13 8NA
Department of Health,NHS Sheffield CCG,7/31/2020,C&M-PMS PCN DES Participation,PRC DELEGATED CO-COMMISSIONING,RICHMOND MEDICAL CENTRE,33073580,"1,278.48",PARTIP,S13 8NA
Department of Health,NHS Sheffield CCG,7/31/2020,C&M-PMS PCO Other,PRC DELEGATED CO-COMMISSIONING,RICHMOND MEDICAL CENTRE,33073580,566.10,CQCRP,S13 8NA
Department of Health,NHS Sheffield CCG,7/31/2020,C&M-PMS Prem Notional Rent,PRC DELEGATED CO-COMMISSIONING,RICHMOND MEDICAL CENTRE,33073580,"4,731.00",NRENT,S13 8NA
Department of Health,NHS Sheffield CCG,7/31/2020,C&M-PMS Prem Rates,PRC DELEGATED CO-COMMISSIONING,RICHMOND MEDICAL CENTRE,33073580,"1,509.00",RANDRP,S13 8NA
Department of Health,NHS Sheffield CCG,7/31/2020,C&M-PMS QOF Aspiration,PRC DELEGATED CO-COMMISSIONING,RICHMOND MEDICAL CENTRE,33073580,"7,878.95",QUASPP,S13 8NA
Department of Health,NHS Sheffield CCG,7/31/2020,C&M-PMS Voluntary Levy,PRC DELEGATED CO-COMMISSIONING,RICHMOND MEDICAL CENTRE,33073580,90.82,VOLL,S13 8NA
Department of Health,NHS Sheffield CCG,7/31/2020,C&M-PMS Contract Value,PRC DELEGATED CO-COMMISSIONING,SELBORNE ROAD MEDICAL CENTRE,33073584,"20,171.65",BABALP,S10 5ND
Department of Health,NHS Sheffield CCG,7/31/2020,C&M-PMS DES Minor Surgery,PRC DELEGATED CO-COMMISSIONING,SELBORNE ROAD MEDICAL CENTRE,33073584,213.00,DEMSUP,S10 5ND
Department of Health,NHS Sheffield CCG,7/31/2020,C&M-PMS Funding Differential Review,PRC DELEGATED CO-COMMISSIONING,SELBORNE ROAD MEDICAL CENTRE,33073584,"1,913.69",ZFUNFP,S10 5ND
Department of Health,NHS Sheffield CCG,7/31/2020,C&M-PMS PCN DES Participation,PRC DELEGATED CO-COMMISSIONING,SELBORNE ROAD MEDICAL CENTRE,33073584,365.84,PARTIP,S10 5ND
Department of Health,NHS Sheffield CCG,7/31/2020,C&M-PMS PCO Other,PRC DELEGATED CO-COMMISSIONING,SELBORNE ROAD MEDICAL CENTRE,33073584,"1,630.40",CQCRP,S10 5ND
Department of Health,NHS Sheffield CCG,7/31/2020,C&M-PMS Prem Notional Rent,PRC DELEGATED CO-COMMISSIONING,SELBORNE ROAD MEDICAL CENTRE,33073584,"1,735.42",NRENT,S10 5ND
Department of Health,NHS Sheffield CCG,7/31/2020,C&M-PMS Prem Rates,PRC DELEGATED CO-COMMISSIONING,SELBORNE ROAD MEDICAL CENTRE,33073584,"2,446.75",RANDRP,S10 5ND
Department of Health,NHS Sheffield CCG,7/31/2020,C&M-PMS Prem Water Rates,PRC DELEGATED CO-COMMISSIONING,SELBORNE ROAD MEDICAL CENTRE,33073584,583.27,RAMWP,S10 5ND
Department of Health,NHS Sheffield CCG,7/31/2020,C&M-PMS QOF Achievement,PRC DELEGATED CO-COMMISSIONING,SELBORNE ROAD MEDICAL CENTRE,33073584,"1,421.92",QUACHP,S10 5ND
Department of Health,NHS Sheffield CCG,7/31/2020,C&M-PMS QOF Aspiration,PRC DELEGATED CO-COMMISSIONING,SELBORNE ROAD MEDICAL CENTRE,33073584,"1,877.44",QUASPP,S10 5ND
Department of Health,NHS Sheffield CCG,7/31/2020,C&M-PMS Voluntary Levy,PRC DELEGATED CO-COMMISSIONING,SELBORNE ROAD MEDICAL CENTRE,33073584,26.80,VOLL,S10 5ND
Department of Health,NHS Sheffield CCG,7/31/2020,C&M-PMS Contract Value,PRC DELEGATED CO-COMMISSIONING,RUSTLINGS ROAD MEDICAL CENTRE,33073588,"30,024.50",BABALP,S11 7AB
Department of Health,NHS Sheffield CCG,7/31/2020,C&M-PMS Funding Differential Review,PRC DELEGATED CO-COMMISSIONING,RUSTLINGS ROAD MEDICAL CENTRE,33073588,"2,260.15",ZFUNFP,S11 7AB
Department of Health,NHS Sheffield CCG,7/31/2020,C&M-PMS PCN DES Participation,PRC DELEGATED CO-COMMISSIONING,RUSTLINGS ROAD MEDICAL CENTRE,33073588,536.04,PARTIP,S11 7AB
Department of Health,NHS Sheffield CCG,7/31/2020,C&M-PMS PCO Other,PRC DELEGATED CO-COMMISSIONING,RUSTLINGS ROAD MEDICAL CENTRE,33073588,316.40,CQCRP,S11 7AB
Department of Health,NHS Sheffield CCG,7/31/2020,C&M-PMS Prem Notional Rent,PRC DELEGATED CO-COMMISSIONING,RUSTLINGS ROAD MEDICAL CENTRE,33073588,"1,312.50",NRENT,S11 7AB
Department of Health,NHS Sheffield CCG,7/31/2020,C&M-PMS QOF Aspiration,PRC DELEGATED CO-COMMISSIONING,RUSTLINGS ROAD MEDICAL CENTRE,33073588,"2,857.73",QUASPP,S11 7AB
Department of Health,NHS Sheffield CCG,7/31/2020,C&M-PMS Voluntary Levy,PRC DELEGATED CO-COMMISSIONING,RUSTLINGS ROAD MEDICAL CENTRE,33073588,47.00,VOLL,S11 7AB
Department of Health,NHS Sheffield CCG,7/31/2020,C&M-PMS Contract Value,PRC DELEGATED CO-COMMISSIONING,SLOAN MEDICAL CENTRE,33073592,"101,149.40",BABALP,S8 0YH
Department of Health,NHS Sheffield CCG,7/31/2020,C&M-PMS DES Minor Surgery,PRC DELEGATED CO-COMMISSIONING,SLOAN MEDICAL CENTRE,33073592,"2,910.00",DEMSUP,S8 0YH
Department of Health,NHS Sheffield CCG,7/31/2020,C&M-PMS Funding Differential Review,PRC DELEGATED CO-COMMISSIONING,SLOAN MEDICAL CENTRE,33073592,"6,709.60",ZFUNFP,S8 0YH
Department of Health,NHS Sheffield CCG,7/31/2020,C&M-PMS PCN DES Participation,PRC DELEGATED CO-COMMISSIONING,SLOAN MEDICAL CENTRE,33073592,"1,829.77",PARTIP,S8 0YH
Department of Health,NHS Sheffield CCG,7/31/2020,C&M-PMS Prem Actual Rent,PRC DELEGATED CO-COMMISSIONING,SLOAN MEDICAL CENTRE,33073592,"15,970.83",RENT,S8 0YH
Department of Health,NHS Sheffield CCG,7/31/2020,C&M-PMS Prem Notional Rent,PRC DELEGATED CO-COMMISSIONING,SLOAN MEDICAL CENTRE,33073592,747.50,NRENT,S8 0YH
Department of Health,NHS Sheffield CCG,7/31/2020,C&M-PMS Prem Rates,PRC DELEGATED CO-COMMISSIONING,SLOAN MEDICAL CENTRE,33073592,"3,478.00",RANDRP,S8 0YH
Department of Health,NHS Sheffield CCG,7/31/2020,C&M-PMS QOF Aspiration,PRC DELEGATED CO-COMMISSIONING,SLOAN MEDICAL CENTRE,33073592,"9,977.55",QUASPP,S8 0YH
Department of Health,NHS Sheffield CCG,7/31/2020,C&M-PMS Voluntary Levy,PRC DELEGATED CO-COMMISSIONING,SLOAN MEDICAL CENTRE,33073592,134.04,VOLL,S8 0YH
Department of Health,NHS Sheffield CCG,7/31/2020,C&M-PMS Contract Value,PRC DELEGATED CO-COMMISSIONING,SOTHALL MEDICAL CENTRE,33073597,"74,211.16",BABALP,S20 1HQ
Department of Health,NHS Sheffield CCG,7/31/2020,C&M-PMS DES Minor Surgery,PRC DELEGATED CO-COMMISSIONING,SOTHALL MEDICAL CENTRE,33073597,"1,324.00",DEMSUP,S20 1HQ
Department of Health,NHS Sheffield CCG,7/31/2020,C&M-PMS Funding Differential Review,PRC DELEGATED CO-COMMISSIONING,SOTHALL MEDICAL CENTRE,33073597,"5,605.77",ZFUNFP,S20 1HQ
Department of Health,NHS Sheffield CCG,7/31/2020,C&M-PMS PCN DES Participation,PRC DELEGATED CO-COMMISSIONING,SOTHALL MEDICAL CENTRE,33073597,"1,354.16",PARTIP,S20 1HQ
Department of Health,NHS Sheffield CCG,7/31/2020,C&M-PMS PCO Locum Adop/Pat/Mat,PRC DELEGATED CO-COMMISSIONING,SOTHALL MEDICAL CENTRE,33073597,"13,628.24",SICKC,S20 1HQ
Department of Health,NHS Sheffield CCG,7/31/2020,C&M-PMS Prem Notional Rent,PRC DELEGATED CO-COMMISSIONING,SOTHALL MEDICAL CENTRE,33073597,"5,116.67",NRENT,S20 1HQ
Department of Health,NHS Sheffield CCG,7/31/2020,C&M-PMS Prem Rates,PRC DELEGATED CO-COMMISSIONING,SOTHALL MEDICAL CENTRE,33073597,"1,435.00",RANDRP,S20 1HQ
Department of Health,NHS Sheffield CCG,7/31/2020,C&M-PMS Prem Water Rates,PRC DELEGATED CO-COMMISSIONING,SOTHALL MEDICAL CENTRE,33073597,123.22,RAMWP,S20 1HQ
Department of Health,NHS Sheffield CCG,7/31/2020,C&M-PMS QOF Aspiration,PRC DELEGATED CO-COMMISSIONING,SOTHALL MEDICAL CENTRE,33073597,"8,491.33",QUASPP,S20 1HQ
Department of Health,NHS Sheffield CCG,7/31/2020,C&M-PMS Voluntary Levy,PRC DELEGATED CO-COMMISSIONING,SOTHALL MEDICAL CENTRE,33073597,100.82,VOLL,S20 1HQ
Department of Health,NHS Sheffield CCG,7/31/2020,C&M-PMS Contract Value,PRC DELEGATED CO-COMMISSIONING,SOUTHEY GREEN MEDICAL CENTRE,33073601,"26,041.31",BABALP,S5 7QB
Department of Health,NHS Sheffield CCG,7/31/2020,C&M-PMS Funding Differential Review,PRC DELEGATED CO-COMMISSIONING,SOUTHEY GREEN MEDICAL CENTRE,33073601,"2,449.11",ZFUNFP,S5 7QB
Department of Health,NHS Sheffield CCG,7/31/2020,C&M-PMS PCN DES Participation,PRC DELEGATED CO-COMMISSIONING,SOUTHEY GREEN MEDICAL CENTRE,33073601,475.95,PARTIP,S5 7QB
Department of Health,NHS Sheffield CCG,7/31/2020,C&M-PMS Prem Notional Rent,PRC DELEGATED CO-COMMISSIONING,SOUTHEY GREEN MEDICAL CENTRE,33073601,"3,362.50",NRENT,S5 7QB
Department of Health,NHS Sheffield CCG,7/31/2020,C&M-PMS Prem Rates,PRC DELEGATED CO-COMMISSIONING,SOUTHEY GREEN MEDICAL CENTRE,33073601,"1,198.00",RANDRP,S5 7QB
Department of Health,NHS Sheffield CCG,7/31/2020,C&M-PMS QOF Aspiration,PRC DELEGATED CO-COMMISSIONING,SOUTHEY GREEN MEDICAL CENTRE,33073601,"2,637.54",QUASPP,S5 7QB
Department of Health,NHS Sheffield CCG,7/31/2020,C&M-PMS Voluntary Levy,PRC DELEGATED CO-COMMISSIONING,SOUTHEY GREEN MEDICAL CENTRE,33073601,29.14,VOLL,S5 7QB
Department of Health,NHS Sheffield CCG,7/31/2020,C&M-PMS Contract Value,PRC DELEGATED CO-COMMISSIONING,UNIVERSITY HEALTH SERVICE,33073606,"-6,368.18",BABALP,S3 7QP
Department of Health,NHS Sheffield CCG,7/31/2020,C&M-PMS GP Statutory Levy,PRC DELEGATED CO-COMMISSIONING,UNIVERSITY HEALTH SERVICE,33073606,"-1,327.97",STATL,S3 7QP
Department of Health,NHS Sheffield CCG,7/31/2020,C&M-PMS Out of Hours Opt Outs,PRC DELEGATED CO-COMMISSIONING,UNIVERSITY HEALTH SERVICE,33073606,"-10,624.66",APMOOH,S3 7QP
Department of Health,NHS Sheffield CCG,7/31/2020,C&M-PCN DES Support Payment,PRC DELEGATED CO-COMMISSIONING,UNIVERSITY HEALTH SERVICE,33073608,"1,187.06",SUPPPP,S3 7QP
Department of Health,NHS Sheffield CCG,7/31/2020,C&M-PMS Contract Value,PRC DELEGATED CO-COMMISSIONING,UNIVERSITY HEALTH SERVICE,33073608,"228,291.72",BABALP,S3 7QP
Department of Health,NHS Sheffield CCG,7/31/2020,C&M-PMS DES Extended Hours Access,PRC DELEGATED CO-COMMISSIONING,UNIVERSITY HEALTH SERVICE,33073608,"4,929.28",EXTHDP,S3 7QP
Department of Health,NHS Sheffield CCG,7/31/2020,C&M-PMS DES Minor Surgery,PRC DELEGATED CO-COMMISSIONING,UNIVERSITY HEALTH SERVICE,33073608,"1,891.00",DEMSUP,S3 7QP
Department of Health,NHS Sheffield CCG,7/31/2020,C&M-PMS Out of Hours Opt Outs,PRC DELEGATED CO-COMMISSIONING,UNIVERSITY HEALTH SERVICE,33073608,306.80,APMOOH,S3 7QP
Department of Health,NHS Sheffield CCG,7/31/2020,C&M-PMS PCN DES Clinical Director,PRC DELEGATED CO-COMMISSIONING,UNIVERSITY HEALTH SERVICE,33073608,"2,454.44",CLINDP,S3 7QP
Department of Health,NHS Sheffield CCG,7/31/2020,C&M-PMS PCN DES PCN support,LOCAL ENHANCED SERVICES,UNIVERSITY HEALTH SERVICE,33073608,"5,099.25",PCNSUP,S3 7QP
Department of Health,NHS Sheffield CCG,7/31/2020,C&M-PMS PCN DES Participation,PRC DELEGATED CO-COMMISSIONING,UNIVERSITY HEALTH SERVICE,33073608,"3,871.12",PARTIP,S3 7QP
Department of Health,NHS Sheffield CCG,7/31/2020,C&M-PMS Prem Notional Rent,PRC DELEGATED CO-COMMISSIONING,UNIVERSITY HEALTH SERVICE,33073608,"15,833.33",NRENT,S3 7QP
Department of Health,NHS Sheffield CCG,7/31/2020,C&M-PMS QOF Aspiration,PRC DELEGATED CO-COMMISSIONING,UNIVERSITY HEALTH SERVICE,33073608,"7,529.34",QUASPP,S3 7QP
Department of Health,NHS Sheffield CCG,7/31/2020,C&M-PMS Voluntary Levy,PRC DELEGATED CO-COMMISSIONING,UNIVERSITY HEALTH SERVICE,33073608,394.84,VOLL,S3 7QP
Department of Health,NHS Sheffield CCG,7/31/2020,C&M-PMS Contract Value,PRC DELEGATED CO-COMMISSIONING,UPWELL STREET SURGERY,33073611,"37,879.38",BABALP,S4 8AN
Department of Health,NHS Sheffield CCG,7/31/2020,C&M-PMS DES Minor Surgery,PRC DELEGATED CO-COMMISSIONING,UPWELL STREET SURGERY,33073611,393.00,DEMSUP,S4 8AN
Department of Health,NHS Sheffield CCG,7/31/2020,C&M-PMS Funding Differential Review,PRC DELEGATED CO-COMMISSIONING,UPWELL STREET SURGERY,33073611,"3,644.77",ZFUNFP,S4 8AN
Department of Health,NHS Sheffield CCG,7/31/2020,C&M-PMS PCN DES Participation,PRC DELEGATED CO-COMMISSIONING,UPWELL STREET SURGERY,33073611,687.31,PARTIP,S4 8AN
Department of Health,NHS Sheffield CCG,7/31/2020,C&M-PMS Prem Notional Rent,PRC DELEGATED CO-COMMISSIONING,UPWELL STREET SURGERY,33073611,"8,137.50",NRENT,S4 8AN
Department of Health,NHS Sheffield CCG,7/31/2020,C&M-PMS Prem Rates,PRC DELEGATED CO-COMMISSIONING,UPWELL STREET SURGERY,33073611,"1,362.00",RANDRP,S4 8AN
Department of Health,NHS Sheffield CCG,7/31/2020,C&M-PMS QOF Aspiration,PRC DELEGATED CO-COMMISSIONING,UPWELL STREET SURGERY,33073611,"3,919.87",QUASPP,S4 8AN
Department of Health,NHS Sheffield CCG,7/31/2020,C&M-PMS Voluntary Levy,PRC DELEGATED CO-COMMISSIONING,UPWELL STREET SURGERY,33073611,47.00,VOLL,S4 8AN
Department of Health,NHS Sheffield CCG,7/31/2020,C&M-PCN DES Support Payment,PRC DELEGATED CO-COMMISSIONING,VALLEY MEDICAL CENTRE,33073615,976.44,SUPPPP,S36 1BX
Department of Health,NHS Sheffield CCG,7/31/2020,C&M-PMS Contract Value,PRC DELEGATED CO-COMMISSIONING,VALLEY MEDICAL CENTRE,33073615,"82,660.52",BABALP,S36 1BX
Department of Health,NHS Sheffield CCG,7/31/2020,C&M-PMS DES Extended Hours Access,PRC DELEGATED CO-COMMISSIONING,VALLEY MEDICAL CENTRE,33073615,"2,507.53",EXTHDP,S36 1BX
Department of Health,NHS Sheffield CCG,7/31/2020,C&M-PMS DES Minor Surgery,PRC DELEGATED CO-COMMISSIONING,VALLEY MEDICAL CENTRE,33073615,"2,239.00",DEMSUP,S36 1BX
Department of Health,NHS Sheffield CCG,7/31/2020,C&M-PMS Funding Differential Review,PRC DELEGATED CO-COMMISSIONING,VALLEY MEDICAL CENTRE,33073615,"6,076.08",ZFUNFP,S36 1BX
Department of Health,NHS Sheffield CCG,7/31/2020,C&M-PMS PCN DES Clinical Director,PRC DELEGATED CO-COMMISSIONING,VALLEY MEDICAL CENTRE,33073615,"1,248.58",CLINDP,S36 1BX
Department of Health,NHS Sheffield CCG,7/31/2020,C&M-PMS PCN DES PCN support,LOCAL ENHANCED SERVICES,VALLEY MEDICAL CENTRE,33073615,"2,594.00",PCNSUP,S36 1BX
Department of Health,NHS Sheffield CCG,7/31/2020,C&M-PMS PCN DES Participation,PRC DELEGATED CO-COMMISSIONING,VALLEY MEDICAL CENTRE,33073615,"1,502.00",PARTIP,S36 1BX
Department of Health,NHS Sheffield CCG,7/31/2020,C&M-PMS Prem Rates,PRC DELEGATED CO-COMMISSIONING,VALLEY MEDICAL CENTRE,33073615,"1,784.00",RANDRP,S36 1BX
Department of Health,NHS Sheffield CCG,7/31/2020,C&M-PMS QOF Aspiration,PRC DELEGATED CO-COMMISSIONING,VALLEY MEDICAL CENTRE,33073615,"9,062.68",QUASPP,S36 1BX
Department of Health,NHS Sheffield CCG,7/31/2020,C&M-PMS Voluntary Levy,PRC DELEGATED CO-COMMISSIONING,VALLEY MEDICAL CENTRE,33073615,95.92,VOLL,S36 1BX
Department of Health,NHS Sheffield CCG,7/31/2020,C&M-PMS Contract Value,PRC DELEGATED CO-COMMISSIONING,WOODHOUSE HEALTH CENTRE,33073618,"-1,111.35",BABALP,S13 7LY
Department of Health,NHS Sheffield CCG,7/31/2020,C&M-PMS GP Statutory Levy,PRC DELEGATED CO-COMMISSIONING,WOODHOUSE HEALTH CENTRE,33073618,-425.95,STATL,S13 7LY
Department of Health,NHS Sheffield CCG,7/31/2020,C&M-PMS Out of Hours Opt Outs,PRC DELEGATED CO-COMMISSIONING,WOODHOUSE HEALTH CENTRE,33073618,"-5,264.84",APMOOH,S13 7LY
Department of Health,NHS Sheffield CCG,7/31/2020,C&M-PMS Contract Value,PRC DELEGATED CO-COMMISSIONING,WOODHOUSE HEALTH CENTRE,33073621,"104,672.03",BABALP,S13 7LY
Department of Health,NHS Sheffield CCG,7/31/2020,C&M-PMS DES Minor Surgery,PRC DELEGATED CO-COMMISSIONING,WOODHOUSE HEALTH CENTRE,33073621,"2,410.00",DEMSUP,S13 7LY
Department of Health,NHS Sheffield CCG,7/31/2020,C&M-PMS Funding Differential Review,PRC DELEGATED CO-COMMISSIONING,WOODHOUSE HEALTH CENTRE,33073621,"8,383.63",ZFUNFP,S13 7LY
Department of Health,NHS Sheffield CCG,7/31/2020,C&M-PMS Out of Hours Opt Outs,PRC DELEGATED CO-COMMISSIONING,WOODHOUSE HEALTH CENTRE,33073621,51.98,APMOOH,S13 7LY
Department of Health,NHS Sheffield CCG,7/31/2020,C&M-PMS PCN DES Participation,PRC DELEGATED CO-COMMISSIONING,WOODHOUSE HEALTH CENTRE,33073621,"1,913.91",PARTIP,S13 7LY
Department of Health,NHS Sheffield CCG,7/31/2020,C&M-PMS PCO Other,PRC DELEGATED CO-COMMISSIONING,WOODHOUSE HEALTH CENTRE,33073621,751.30,CQCRP,S13 7LY
Department of Health,NHS Sheffield CCG,7/31/2020,C&M-PMS Prem Notional Rent,PRC DELEGATED CO-COMMISSIONING,WOODHOUSE HEALTH CENTRE,33073621,"6,338.58",NRENT,S13 7LY
Department of Health,NHS Sheffield CCG,7/31/2020,C&M-PMS Prem Water Rates,PRC DELEGATED CO-COMMISSIONING,WOODHOUSE HEALTH CENTRE,33073621,351.22,RAMWP,S13 7LY
Department of Health,NHS Sheffield CCG,7/31/2020,C&M-PMS QOF Aspiration,PRC DELEGATED CO-COMMISSIONING,WOODHOUSE HEALTH CENTRE,33073621,"13,397.77",QUASPP,S13 7LY
Department of Health,NHS Sheffield CCG,7/31/2020,C&M-PMS Voluntary Levy,PRC DELEGATED CO-COMMISSIONING,WOODHOUSE HEALTH CENTRE,33073621,122.12,VOLL,S13 7LY
Department of Health,NHS Sheffield CCG,7/31/2020,C&M-PMS Contract Value,PRC DELEGATED CO-COMMISSIONING,WINCOBANK MEDICAL CENTRE,33073625,"65,969.51",BABALP,S9 1DJ
Department of Health,NHS Sheffield CCG,7/31/2020,C&M-PMS DES Learn Dsblty Hlth Chk,PRC DELEGATED CO-COMMISSIONING,WINCOBANK MEDICAL CENTRE,33073625,840.00,LEARNP,S9 1DJ
Department of Health,NHS Sheffield CCG,7/31/2020,C&M-PMS DES Minor Surgery,PRC DELEGATED CO-COMMISSIONING,WINCOBANK MEDICAL CENTRE,33073625,"1,330.00",DEMSUP,S9 1DJ
Department of Health,NHS Sheffield CCG,7/31/2020,C&M-PMS Funding Differential Review,PRC DELEGATED CO-COMMISSIONING,WINCOBANK MEDICAL CENTRE,33073625,"4,607.85",ZFUNFP,S9 1DJ
Department of Health,NHS Sheffield CCG,7/31/2020,C&M-PMS Out of Hours Opt Outs,PRC DELEGATED CO-COMMISSIONING,WINCOBANK MEDICAL CENTRE,33073625,12.27,APMOOH,S9 1DJ
Department of Health,NHS Sheffield CCG,7/31/2020,C&M-PMS PCN DES Participation,PRC DELEGATED CO-COMMISSIONING,WINCOBANK MEDICAL CENTRE,33073625,"1,191.31",PARTIP,S9 1DJ
Department of Health,NHS Sheffield CCG,7/31/2020,C&M-PMS Prem Healthcentre Rent,PRC DELEGATED CO-COMMISSIONING,WINCOBANK MEDICAL CENTRE,33073625,"49,995.96",HEALTH,S9 1DJ
Department of Health,NHS Sheffield CCG,7/31/2020,C&M-PMS QOF Achievement,PRC DELEGATED CO-COMMISSIONING,WINCOBANK MEDICAL CENTRE,33073625,"5,582.44",QUACHP,S9 1DJ
Department of Health,NHS Sheffield CCG,7/31/2020,C&M-PMS QOF Aspiration,PRC DELEGATED CO-COMMISSIONING,WINCOBANK MEDICAL CENTRE,33073625,"5,972.45",QUASPP,S9 1DJ
Department of Health,NHS Sheffield CCG,7/31/2020,C&M-PMS Voluntary Levy,PRC DELEGATED CO-COMMISSIONING,WINCOBANK MEDICAL CENTRE,33073625,76.96,VOLL,S9 1DJ
Department of Health,NHS Sheffield CCG,7/31/2020,C&M-PMS Contract Value,PRC DELEGATED CO-COMMISSIONING,FOXHILL MEDICAL CENTRE SHEFFIELD,33073629,"53,761.96",BABALP,S6 1GA
Department of Health,NHS Sheffield CCG,7/31/2020,C&M-PMS DES Minor Surgery,PRC DELEGATED CO-COMMISSIONING,FOXHILL MEDICAL CENTRE SHEFFIELD,33073629,458.00,DEMSUP,S6 1GA
Department of Health,NHS Sheffield CCG,7/31/2020,C&M-PMS Funding Differential Review,PRC DELEGATED CO-COMMISSIONING,FOXHILL MEDICAL CENTRE SHEFFIELD,33073629,"4,631.77",ZFUNFP,S6 1GA
Department of Health,NHS Sheffield CCG,7/31/2020,C&M-PMS Out of Hours Opt Outs,PRC DELEGATED CO-COMMISSIONING,FOXHILL MEDICAL CENTRE SHEFFIELD,33073629,13.00,APMOOH,S6 1GA
Department of Health,NHS Sheffield CCG,7/31/2020,C&M-PMS PCN DES Participation,PRC DELEGATED CO-COMMISSIONING,FOXHILL MEDICAL CENTRE SHEFFIELD,33073629,980.95,PARTIP,S6 1GA
Department of Health,NHS Sheffield CCG,7/31/2020,C&M-PMS PCO Locum Adop/Pat/Mat,PRC DELEGATED CO-COMMISSIONING,FOXHILL MEDICAL CENTRE SHEFFIELD,33073629,"6,992.66",SICKC,S6 1GA
Department of Health,NHS Sheffield CCG,7/31/2020,C&M-PMS Prem Healthcentre Rent,PRC DELEGATED CO-COMMISSIONING,FOXHILL MEDICAL CENTRE SHEFFIELD,33073629,"51,581.08",HEALTH,S6 1GA
Department of Health,NHS Sheffield CCG,7/31/2020,C&M-PMS QOF Aspiration,PRC DELEGATED CO-COMMISSIONING,FOXHILL MEDICAL CENTRE SHEFFIELD,33073629,"5,429.40",QUASPP,S6 1GA
Department of Health,NHS Sheffield CCG,7/31/2020,C&M-PMS Voluntary Levy,PRC DELEGATED CO-COMMISSIONING,FOXHILL MEDICAL CENTRE SHEFFIELD,33073629,60.96,VOLL,S6 1GA
Department of Health,NHS Sheffield CCG,7/31/2020,C&M-APMS Contract Value,PRC DELEGATED CO-COMMISSIONING,CLOVER CITY PRACTICE,33073636,"33,393.43",APMADD,S9 4QH
Department of Health,NHS Sheffield CCG,7/31/2020,C&M-APMS PCN DES Participation,PRC DELEGATED CO-COMMISSIONING,CLOVER CITY PRACTICE,33073636,563.87,PARTIA,S9 4QH
Department of Health,NHS Sheffield CCG,7/31/2020,C&M-PMS DES Minor Surgery,PRC DELEGATED CO-COMMISSIONING,CLOVER CITY PRACTICE,33073636,40.00,DEMSUP,S9 4QH
Department of Health,NHS Sheffield CCG,7/31/2020,C&M-PMS QOF Aspiration,PRC DELEGATED CO-COMMISSIONING,CLOVER CITY PRACTICE,33073636,"1,589.35",QUASPP,S9 4QH
Department of Health,NHS Sheffield CCG,7/31/2020,C&M-PMS Contract Value,PRC DELEGATED CO-COMMISSIONING,WOODSEATS MEDICAL CENTRE,33078378,"84,676.49",BABALP,S8 0SH
Department of Health,NHS Sheffield CCG,7/31/2020,C&M-PMS DES Minor Surgery,PRC DELEGATED CO-COMMISSIONING,WOODSEATS MEDICAL CENTRE,33078378,"4,631.00",DEMSUP,S8 0SH
Department of Health,NHS Sheffield CCG,7/31/2020,C&M-PMS Funding Differential Review,PRC DELEGATED CO-COMMISSIONING,WOODSEATS MEDICAL CENTRE,33078378,"4,244.25",ZFUNFP,S8 0SH
Department of Health,NHS Sheffield CCG,7/31/2020,C&M-PMS PCN DES Participation,PRC DELEGATED CO-COMMISSIONING,WOODSEATS MEDICAL CENTRE,33078378,"1,504.80",PARTIP,S8 0SH
Department of Health,NHS Sheffield CCG,7/31/2020,C&M-PMS PCO Locum Adop/Pat/Mat,PRC DELEGATED CO-COMMISSIONING,WOODSEATS MEDICAL CENTRE,33078378,"9,437.19",SICKC,S8 0SH
Department of Health,NHS Sheffield CCG,7/31/2020,C&M-PMS PCO Other,PRC DELEGATED CO-COMMISSIONING,WOODSEATS MEDICAL CENTRE,33078378,645.70,CQCRP,S8 0SH
Department of Health,NHS Sheffield CCG,7/31/2020,C&M-PMS Prem Notional Rent,PRC DELEGATED CO-COMMISSIONING,WOODSEATS MEDICAL CENTRE,33078378,"11,666.67",NRENT,S8 0SH
Department of Health,NHS Sheffield CCG,7/31/2020,C&M-PMS Prem Rates,PRC DELEGATED CO-COMMISSIONING,WOODSEATS MEDICAL CENTRE,33078378,"3,149.00",RANDRP,S8 0SH
Department of Health,NHS Sheffield CCG,7/31/2020,C&M-PMS QOF Aspiration,PRC DELEGATED CO-COMMISSIONING,WOODSEATS MEDICAL CENTRE,33078378,"8,588.98",QUASPP,S8 0SH
Department of Health,NHS Sheffield CCG,7/31/2020,C&M-PMS Voluntary Levy,PRC DELEGATED CO-COMMISSIONING,WOODSEATS MEDICAL CENTRE,33078378,105.16,VOLL,S8 0SH
Department of Health,NHS Sheffield CCG,7/31/2020,C&M-PMS Contract Value,PRC DELEGATED CO-COMMISSIONING,MANOR & PARK GROUP PRACTICE,33078380,"81,994.31",BABALP,S2 5QQ
Department of Health,NHS Sheffield CCG,7/31/2020,C&M-PMS DES Learn Dsblty Hlth Chk,PRC DELEGATED CO-COMMISSIONING,MANOR & PARK GROUP PRACTICE,33078380,840.00,LEARNP,S2 5QQ
Department of Health,NHS Sheffield CCG,7/31/2020,C&M-PMS DES Minor Surgery,PRC DELEGATED CO-COMMISSIONING,MANOR & PARK GROUP PRACTICE,33078380,10.00,DEMSUP,S2 5QQ
Department of Health,NHS Sheffield CCG,7/31/2020,C&M-PMS PCN DES Participation,PRC DELEGATED CO-COMMISSIONING,MANOR & PARK GROUP PRACTICE,33078380,"1,387.49",PARTIP,S2 5QQ
Department of Health,NHS Sheffield CCG,7/31/2020,C&M-PMS PCO Locum Adop/Pat/Mat,PRC DELEGATED CO-COMMISSIONING,MANOR & PARK GROUP PRACTICE,33078380,"39,204.96",SICKC,S2 5QQ
Department of Health,NHS Sheffield CCG,7/31/2020,C&M-PMS Prem Notional Rent,PRC DELEGATED CO-COMMISSIONING,MANOR & PARK GROUP PRACTICE,33078380,"9,050.00",NRENT,S2 5QQ
Department of Health,NHS Sheffield CCG,7/31/2020,C&M-PMS Prem Rates,PRC DELEGATED CO-COMMISSIONING,MANOR & PARK GROUP PRACTICE,33078380,"1,864.00",RANDRP,S2 5QQ
Department of Health,NHS Sheffield CCG,7/31/2020,C&M-PMS QOF Achievement,PRC DELEGATED CO-COMMISSIONING,MANOR & PARK GROUP PRACTICE,33078380,"22,220.60",QUACHP,S2 5QQ
Department of Health,NHS Sheffield CCG,7/31/2020,C&M-PMS QOF Aspiration,PRC DELEGATED CO-COMMISSIONING,MANOR & PARK GROUP PRACTICE,33078380,"6,093.98",QUASPP,S2 5QQ
Department of Health,NHS Sheffield CCG,7/31/2020,C&M-PMS Voluntary Levy,PRC DELEGATED CO-COMMISSIONING,MANOR & PARK GROUP PRACTICE,33078380,86.68,VOLL,S2 5QQ
Department of Health,NHS Sheffield CCG,7/31/2020,Cont Care- Prior Year Payments,ADULT JOINT FUNDED CONTINUING CARE,DERBYSHIRE COUNTY COUNCIL,33079551,"39,494.55",,DE4 3AG
Department of Health,NHS Sheffield CCG,7/31/2020,Cont Care- Prior Year Payments,ADULT JOINT FUNDED CONTINUING CARE,DERBYSHIRE COUNTY COUNCIL,33079587,"-38,292.42",,DE4 3AG
Department of Health,NHS Sheffield CCG,7/31/2020,Voids and Subsidies,RECHARGES NHS PROPERTY SERVICES LTD,NHS PROPERTY SERVICES LTD,33079774,"25,027.78",https://nww.einvoice-prod.sbs.nhs.uk:8179/invoicepdf/8c6787d0-3213-577f-970a-0b18a2c5e9f2,EC2V 7NG
Department of Health,NHS Sheffield CCG,7/31/2020,Voids and Subsidies,RECHARGES NHS PROPERTY SERVICES LTD,NHS PROPERTY SERVICES LTD,33079784,"26,569.88",https://nww.einvoice-prod.sbs.nhs.uk:8179/invoicepdf/3b1f5006-5f3d-5038-bab6-f57ebcec57e4,EC2V 7NG
Department of Health,NHS Sheffield CCG,7/31/2020,Clinical&Medical-Independent Sector,ACUTE COMMISSIONING,ONEHEALTH GROUP,33079794,"74,519.00",https://nww.einvoice-prod.sbs.nhs.uk:8179/invoicepdf/0d1792ce-12c2-50e4-885d-76023b40b963,S11 8UX
Department of Health,NHS Sheffield CCG,7/31/2020,C&M-PMS Contract Value,PRC DELEGATED CO-COMMISSIONING,AVENUE MEDICAL CENTRE SHEFFIELD,33092450,"59,835.44",BABALP,S8 7FH
Department of Health,NHS Sheffield CCG,7/31/2020,C&M-PMS DES Minor Surgery,PRC DELEGATED CO-COMMISSIONING,AVENUE MEDICAL CENTRE SHEFFIELD,33092450,"1,080.00",DEMSUP,S8 7FH
Department of Health,NHS Sheffield CCG,7/31/2020,C&M-PMS Funding Differential Review,PRC DELEGATED CO-COMMISSIONING,AVENUE MEDICAL CENTRE SHEFFIELD,33092450,"1,447.57",ZFUNFP,S8 7FH
Department of Health,NHS Sheffield CCG,7/31/2020,C&M-PMS Out of Hours Opt Outs,PRC DELEGATED CO-COMMISSIONING,AVENUE MEDICAL CENTRE SHEFFIELD,33092450,12.08,APMOOH,S8 7FH
Department of Health,NHS Sheffield CCG,7/31/2020,C&M-PMS PCN DES Participation,PRC DELEGATED CO-COMMISSIONING,AVENUE MEDICAL CENTRE SHEFFIELD,33092450,"1,049.66",PARTIP,S8 7FH
Department of Health,NHS Sheffield CCG,7/31/2020,C&M-PMS PCO Other,PRC DELEGATED CO-COMMISSIONING,AVENUE MEDICAL CENTRE SHEFFIELD,33092450,456.10,CQCRP,S8 7FH
Department of Health,NHS Sheffield CCG,7/31/2020,C&M-PMS Prem Notional Rent,PRC DELEGATED CO-COMMISSIONING,AVENUE MEDICAL CENTRE SHEFFIELD,33092450,"5,546.67",NRENT,S8 7FH
Department of Health,NHS Sheffield CCG,7/31/2020,C&M-PMS Prem Rates,PRC DELEGATED CO-COMMISSIONING,AVENUE MEDICAL CENTRE SHEFFIELD,33092450,"1,285.00",RANDRP,S8 7FH
Department of Health,NHS Sheffield CCG,7/31/2020,C&M-PMS QOF Achievement,PRC DELEGATED CO-COMMISSIONING,AVENUE MEDICAL CENTRE SHEFFIELD,33092450,"8,211.85",QUACHP,S8 7FH
Department of Health,NHS Sheffield CCG,7/31/2020,C&M-PMS QOF Aspiration,PRC DELEGATED CO-COMMISSIONING,AVENUE MEDICAL CENTRE SHEFFIELD,33092450,"5,247.35",QUASPP,S8 7FH
Department of Health,NHS Sheffield CCG,7/31/2020,C&M-PMS Voluntary Levy,PRC DELEGATED CO-COMMISSIONING,AVENUE MEDICAL CENTRE SHEFFIELD,33092450,70.80,VOLL,S8 7FH
Department of Health,NHS Sheffield CCG,7/31/2020,C&M-PMS Contract Value,PRC DELEGATED CO-COMMISSIONING,DR MEHROTRA & PARTNER,33092451,"25,685.81",BABALP,S9 5DH
Department of Health,NHS Sheffield CCG,7/31/2020,C&M-PMS DES Minor Surgery,PRC DELEGATED CO-COMMISSIONING,DR MEHROTRA & PARTNER,33092451,40.00,DEMSUP,S9 5DH
Department of Health,NHS Sheffield CCG,7/31/2020,C&M-PMS Funding Differential Review,PRC DELEGATED CO-COMMISSIONING,DR MEHROTRA & PARTNER,33092451,"2,081.87",ZFUNFP,S9 5DH
Department of Health,NHS Sheffield CCG,7/31/2020,C&M-PMS PCN DES Participation,PRC DELEGATED CO-COMMISSIONING,DR MEHROTRA & PARTNER,33092451,472.15,PARTIP,S9 5DH
Department of Health,NHS Sheffield CCG,7/31/2020,C&M-PMS Prem Notional Rent,PRC DELEGATED CO-COMMISSIONING,DR MEHROTRA & PARTNER,33092451,"5,157.29",NRENT,S9 5DH
Department of Health,NHS Sheffield CCG,7/31/2020,C&M-PMS Prem Rates,PRC DELEGATED CO-COMMISSIONING,DR MEHROTRA & PARTNER,33092451,"1,741.00",RANDRP,S9 5DH
Department of Health,NHS Sheffield CCG,7/31/2020,C&M-PMS QOF Aspiration,PRC DELEGATED CO-COMMISSIONING,DR MEHROTRA & PARTNER,33092451,"2,581.66",QUASPP,S9 5DH
Department of Health,NHS Sheffield CCG,7/31/2020,C&M-PMS Voluntary Levy,PRC DELEGATED CO-COMMISSIONING,DR MEHROTRA & PARTNER,33092451,30.84,VOLL,S9 5DH
Department of Health,NHS Sheffield CCG,7/31/2020,C&M-PMS Contract Value,PRC DELEGATED CO-COMMISSIONING,MEADOWHEAD GROUP PRACTICE,33092453,"75,491.14",BABALP,S8 7RL
Department of Health,NHS Sheffield CCG,7/31/2020,C&M-PMS DES Minor Surgery,PRC DELEGATED CO-COMMISSIONING,MEADOWHEAD GROUP PRACTICE,33092453,"1,245.00",DEMSUP,S8 7RL
Department of Health,NHS Sheffield CCG,7/31/2020,C&M-PMS Funding Differential Review,PRC DELEGATED CO-COMMISSIONING,MEADOWHEAD GROUP PRACTICE,33092453,"6,567.39",ZFUNFP,S8 7RL
Department of Health,NHS Sheffield CCG,7/31/2020,C&M-PMS Out of Hours Opt Outs,PRC DELEGATED CO-COMMISSIONING,MEADOWHEAD GROUP PRACTICE,33092453,19.01,APMOOH,S8 7RL
Department of Health,NHS Sheffield CCG,7/31/2020,C&M-PMS PCN DES Participation,PRC DELEGATED CO-COMMISSIONING,MEADOWHEAD GROUP PRACTICE,33092453,"1,384.54",PARTIP,S8 7RL
Department of Health,NHS Sheffield CCG,7/31/2020,C&M-PMS Prem Cost Rent,PRC DELEGATED CO-COMMISSIONING,MEADOWHEAD GROUP PRACTICE,33092453,"3,647.42",COST,S8 7RL
Department of Health,NHS Sheffield CCG,7/31/2020,C&M-PMS Prem Healthcentre Rent,PRC DELEGATED CO-COMMISSIONING,MEADOWHEAD GROUP PRACTICE,33092453,"166,660.11",HEALTH,S8 7RL
Department of Health,NHS Sheffield CCG,7/31/2020,C&M-PMS Prem Notional Rent,PRC DELEGATED CO-COMMISSIONING,MEADOWHEAD GROUP PRACTICE,33092453,"3,358.33",NRENT,S8 7RL
Department of Health,NHS Sheffield CCG,7/31/2020,C&M-PMS Prem Rates,PRC DELEGATED CO-COMMISSIONING,MEADOWHEAD GROUP PRACTICE,33092453,"1,968.00",RANDRP,S8 7RL
Department of Health,NHS Sheffield CCG,7/31/2020,C&M-PMS QOF Aspiration,PRC DELEGATED CO-COMMISSIONING,MEADOWHEAD GROUP PRACTICE,33092453,"8,381.02",QUASPP,S8 7RL
Department of Health,NHS Sheffield CCG,7/31/2020,C&M-PMS Voluntary Levy,PRC DELEGATED CO-COMMISSIONING,MEADOWHEAD GROUP PRACTICE,33092453,92.98,VOLL,S8 7RL
Department of Health,NHS Sheffield CCG,7/31/2020,C&M-PCN DES Support Payment,PRC DELEGATED CO-COMMISSIONING,FORGE HEALTH GROUP,33092454,"2,630.02",SUPPPP,S3 9DL
Department of Health,NHS Sheffield CCG,7/31/2020,C&M-PMS Contract Value,PRC DELEGATED CO-COMMISSIONING,FORGE HEALTH GROUP,33092454,"131,178.49",BABALP,S3 9DL
Department of Health,NHS Sheffield CCG,7/31/2020,C&M-PMS DES Extended Hours Access,PRC DELEGATED CO-COMMISSIONING,FORGE HEALTH GROUP,33092454,"6,849.44",EXTHDP,S3 9DL
Department of Health,NHS Sheffield CCG,7/31/2020,C&M-PMS DES Minor Surgery,PRC DELEGATED CO-COMMISSIONING,FORGE HEALTH GROUP,33092454,"2,751.00",DEMSUP,S3 9DL
Department of Health,NHS Sheffield CCG,7/31/2020,C&M-PMS Funding Differential Review,PRC DELEGATED CO-COMMISSIONING,FORGE HEALTH GROUP,33092454,"4,826.44",ZFUNFP,S3 9DL
Department of Health,NHS Sheffield CCG,7/31/2020,C&M-PMS PCN DES Clinical Director,PRC DELEGATED CO-COMMISSIONING,FORGE HEALTH GROUP,33092454,"3,410.55",CLINDP,S3 9DL
Department of Health,NHS Sheffield CCG,7/31/2020,C&M-PMS PCN DES PCN support,LOCAL ENHANCED SERVICES,FORGE HEALTH GROUP,33092454,"7,085.63",PCNSUP,S3 9DL
Department of Health,NHS Sheffield CCG,7/31/2020,C&M-PMS PCN DES Participation,PRC DELEGATED CO-COMMISSIONING,FORGE HEALTH GROUP,33092454,"2,286.18",PARTIP,S3 9DL
Department of Health,NHS Sheffield CCG,7/31/2020,C&M-PMS Prem Healthcentre Rent,PRC DELEGATED CO-COMMISSIONING,FORGE HEALTH GROUP,33092454,"40,105.30",HEALTH,S3 9DL
Department of Health,NHS Sheffield CCG,7/31/2020,C&M-PMS Prem Notional Rent,PRC DELEGATED CO-COMMISSIONING,FORGE HEALTH GROUP,33092454,"9,650.00",NRENT,S3 9DL
Department of Health,NHS Sheffield CCG,7/31/2020,C&M-PMS Prem Rates,PRC DELEGATED CO-COMMISSIONING,FORGE HEALTH GROUP,33092454,"9,482.50",RANDRP,S3 9DL
Department of Health,NHS Sheffield CCG,7/31/2020,C&M-PMS QOF Achievement,PRC DELEGATED CO-COMMISSIONING,FORGE HEALTH GROUP,33092454,"7,337.42",QUACHP,S3 9DL
Department of Health,NHS Sheffield CCG,7/31/2020,C&M-PMS QOF Aspiration,PRC DELEGATED CO-COMMISSIONING,FORGE HEALTH GROUP,33092454,"11,197.01",QUASPP,S3 9DL
Department of Health,NHS Sheffield CCG,7/31/2020,C&M-PMS Voluntary Levy,PRC DELEGATED CO-COMMISSIONING,FORGE HEALTH GROUP,33092454,147.68,VOLL,S3 9DL
Department of Health,NHS Sheffield CCG,7/31/2020,Cont Care-Physical Disab (<65),CHC ADULT FULLY FUNDED,COUNTRY COURT CARE LTD,33109038,"37,837.44",CHC SCHEDULE JULY 2020 - Abbey Grange Nursing Home (Country Court Care),S5 6UU
Department of Health,NHS Sheffield CCG,7/31/2020,Cont Care-Physical Disab (<65),CHC ADULT FULLY FUNDED,FOUR SEASONS HEALTH CARE LTD,33109040,"35,160.47",CHC SCHEDULE JULY 2020 - Balmoral Nursing Home (Four Seasons HC),DL1 1RW
Department of Health,NHS Sheffield CCG,7/31/2020,Cont Care-Physical Disab (<65),CHC ADULT FULLY FUNDED,SOUTH YORKSHIRE HOUSING ASSOCIATION LTD,33109042,"80,455.44",CHC SCHEDULE JULY 2020 - Birch Avenue Nursing Home (SYHA),S35 1RQ
Department of Health,NHS Sheffield CCG,7/31/2020,Cont Care-Physical Disab (<65),CHC ADULT FULLY FUNDED,FAIRWINDS HEALTH CARE LTD,33109045,"55,881.08",CHC SCHEDULE JULY 2020 - Fairwinds Nursing Home,S61 1AJ
Department of Health,NHS Sheffield CCG,7/31/2020,Cont Care-Physical Disab (<65),CHC ADULT FULLY FUNDED,LONGLEY HEALTH CARE LTD,33109049,"98,524.56",CHC SCHEDULE JULY 2020 - Longley Park View Nursing Home (Exemplar HC),S5 7JZ
Department of Health,NHS Sheffield CCG,7/31/2020,Cont Care-Physical Disab (<65),CHC ADULT FULLY FUNDED,PRIORY GROUP LTD,33109054,"51,383.92",CHC SCHEDULE JULY 2020 - Richmond Heights Care Home (The Priory Group),DL2 1TS
Department of Health,NHS Sheffield CCG,7/31/2020,Cont Care-Physical Disab (<65),CHC ADULT FULLY FUNDED,SEVEN HILLS NURSING HOME,33109057,"43,944.09",CHC SCHEDULE JULY 2020 - Seven Hills Nursing Home,S11 9AA
Department of Health,NHS Sheffield CCG,7/31/2020,Cont Care-Physical Disab (<65),CHC ADULT FULLY FUNDED,WILLOWBECK HEALTH CARE LTD,33109062,"162,133.14",CHC SCHEDULE JULY 2020 - Willowbeck Health Care Ltd (Exemplar HC),S4 8AR
Department of Health,NHS Sheffield CCG,7/31/2020,Cont Care-Physical Disab (<65),CHC ADULT FULLY FUNDED,ROSEBERRY CARE CENTRES,33109064,"47,460.75",CHC SCHEDULE JULY 2020 - Chapel Lodge Nursing Home (Roseberry),S35 2XF
Department of Health,NHS Sheffield CCG,7/31/2020,Cont Care-Physical Disab (<65),CHC ADULT FULLY FUNDED,ROSEBERRY CARE CENTRES,33109065,"39,879.68",CHC SCHEDULE JULY 2020 - Haythorne Place Nursing Home (Roseberry),S5 6AB
Department of Health,NHS Sheffield CCG,7/31/2020,Cont Care-Physical Disab (<65),CHC ADULT FULLY FUNDED,COUNTRYWIDE CARE HOMES LTD,33109067,"26,121.20",CHC SCHEDULE JULY 2020 - Heeley Bank Care Home (Countrywide),LS12 6DB
Department of Health,NHS Sheffield CCG,7/31/2020,Cont Care-Physical Disab (<65),CHC ADULT FULLY FUNDED,HC ONE LTD,33109069,"25,629.49",CHC SCHEDULE JULY 2020 - Ascot Lodge Nursing Home (HC One),DL3 6AH
Department of Health,NHS Sheffield CCG,7/31/2020,Cont Care-Physical Disab (<65),CHC ADULT FULLY FUNDED,BONDCARE,33109073,"69,552.83",CHC SCHEDULE JULY 2020 - Chatsworth Grange Nursing Home,NW4 4EF
Department of Health,NHS Sheffield CCG,7/31/2020,Cont Care-Physical Disab (<65),CHC ADULT FULLY FUNDED,ROSEBERRY CARE CENTRES,33109074,"47,406.84",CHC SCHEDULE JULY 2020 - Norbury Court Care Centre (Roseberry),S4 7AJ
Department of Health,NHS Sheffield CCG,7/31/2020,Cont Care-Physical Disab (<65),CHC ADULT FULLY FUNDED,SUSASH GB LTD T/A EAGLE HOUSE,33109075,"26,184.14",CHC SCHEDULE JULY 2020 - Eagle House Nursing Home (Susash GB Ltd),S11 8NP
Department of Health,NHS Sheffield CCG,7/31/2020,Cont Care-Physical Disab (<65),CHC ADULT FULLY FUNDED,VALORUM CARE LTD,33109076,"83,990.47",CHC SCHEDULE JULY 2020 - Valorum Care Limited (Mickley Hall),LS19 7RW
Department of Health,NHS Sheffield CCG,7/31/2020,Cont Care-Physical Disab (<65),CHC ADULT FULLY FUNDED,INLET LTD,33109078,"79,663.33",CHC SCHEDULE JULY 2020 - Loxley Court (Inlet Ltd),S48NB
Department of Health,NHS Sheffield CCG,7/31/2020,Cont Care-Funded Nursing Care Allow,FUNDED NURSING CARE,ROSEBERRY CARE CENTRES,33109133,"27,201.53",FNC SCHEDULE JULY 2020 - Haythorne Place Nursing Home (Roseberry),S5 6AB
Department of Health,NHS Sheffield CCG,7/31/2020,Clinical&Medical-Othe Public Sector,COMMUNITY SERVICES,SHEFFIELD CITY COUNCIL,33131158,"451,250.01",,S1 1UJ
Department of Health,NHS Sheffield CCG,7/31/2020,Clinical&Medical-Othe Public Sector,MENTAL HEALTH SERVICES - COLLABORATIVE COMMISSIONING,SHEFFIELD CITY COUNCIL,33131158,"429,313.64",,S1 1UJ
Department of Health,NHS Sheffield CCG,7/31/2020,Clinical&Medical-Othe Public Sector,REABLEMENT,SHEFFIELD CITY COUNCIL,33131158,"65,426.01",,S1 1UJ
Department of Health,NHS Sheffield CCG,7/31/2020,Clinical&Medical-Othe Public Sector,SAFEGUARDING,SHEFFIELD CITY COUNCIL,33131158,"49,789.02",,S1 1UJ
Department of Health,NHS Sheffield CCG,7/31/2020,Soc Care-Joint H&C Teams/Working,INTERMEDIATE CARE,SHEFFIELD CITY COUNCIL,33131158,"454,342.74",,S1 1UJ
Department of Health,NHS Sheffield CCG,7/31/2020,Soc Care-Other Soc Care,COMMISSIONING - NON ACUTE,SHEFFIELD CITY COUNCIL,33131158,"4,905,750.00",,S1 1UJ
Department of Health,NHS Sheffield CCG,7/31/2020,Soc Care-Support Prim Care,COMMUNITY SERVICES,SHEFFIELD CITY COUNCIL,33131158,"174,000.00",,S1 1UJ
Department of Health,NHS Sheffield CCG,7/31/2020,Services From Local Authorities,MENTAL HEALTH SERVICES - COLLABORATIVE COMMISSIONING,SHEFFIELD CITY COUNCIL,33131400,"60,588.96",,S1 2HH
Department of Health,NHS Sheffield CCG,7/31/2020,Hcare Srv Rec Fdtn Trust-Contract Baseline,ACUTE COMMISSIONING,BARNSLEY HOSPITAL NHS FOUNDATION TRUST,33137623,"131,016.71",,S75 2EP
Department of Health,NHS Sheffield CCG,7/31/2020,Hcare Srv Rec Fdtn Trust-Contract Baseline,ACUTE COMMISSIONING,CHESTERFIELD ROYAL HOSPITAL NHS FOUNDATION TRUST,33137624,"369,177.00",,S44 5BL
Department of Health,NHS Sheffield CCG,7/31/2020,Hcare Srv Rec Fdtn Trust-Contract Baseline,ACUTE COMMISSIONING,DONCASTER AND BASSETLAW HOSPITALS NHS FOUNDATION TRUST,33137625,"79,729.44",,WF3 1WE
Department of Health,NHS Sheffield CCG,7/31/2020,Hcare Srv Rec Fdtn Trust-Contract Baseline,MENTAL HEALTH CONTRACTS,ROTHERHAM DONCASTER AND SOUTH HUMBER NHS FOUNDATION TRUST,33137627,"37,808.66",,DN4 8QN
Department of Health,NHS Sheffield CCG,7/31/2020,Hcare Srv Rec Fdtn Trust-Contract Baseline,ACUTE COMMISSIONING,MANCHESTER UNIVERSITY NHS FOUNDATION TRUST,33137628,"25,929.20",,M41 5SL
Department of Health,NHS Sheffield CCG,7/31/2020,Hcare Srv Rec NHS Trust-Contract Baseline,ACUTE COMMISSIONING,LEEDS TEACHING HOSPITALS NHS TRUST,33137630,"47,860.51",,LS9 7TF
Department of Health,NHS Sheffield CCG,7/31/2020,Hcare Srv Rec NHS Trust-Contract Baseline,ACUTE COMMISSIONING,MID YORKSHIRE HOSPITALS NHS TRUST,33137631,"26,386.10",,WF1 4DG
Department of Health,NHS Sheffield CCG,7/31/2020,Hcare Srv Rec Fdtn Trust-Non Contract,NCAS/OATS,YORK TEACHING HOSPITAL NHS FOUNDATION TRUST,33137632,"29,013.29",,YO30 4RY
Department of Health,NHS Sheffield CCG,7/31/2020,Hcare Srv Rec NHS Trust-Contract Baseline,AMBULANCE SERVICES,YORKSHIRE AMBULANCE SERVICE NHS TRUST,33137633,"2,487,179.62",,WF2 0XQ
Department of Health,NHS Sheffield CCG,7/31/2020,Hcare Srv Rec Fdtn Trust-Contract Baseline,ACUTE CHILDRENS SERVICES,SHEFFIELD CHILDRENS NHS FOUNDATION TRUST,33137634,"3,460,348.98",,S10 2TH
Department of Health,NHS Sheffield CCG,7/31/2020,Hcare Srv Rec Fdtn Trust-Contract Baseline,MENTAL HEALTH CONTRACTS,SHEFFIELD HEALTH & SOCIAL CARE NHS FOUNDATION TRUST,33137635,"7,311,989.53",,S10 3TH
Department of Health,NHS Sheffield CCG,7/31/2020,Hcare Srv Rec Fdtn Trust-Contract Baseline,ACUTE COMMISSIONING,SHEFFIELD TEACHING HOSPITALS NHS FOUNDATION TRUST,33137636,"37,588,203.57",,S5 7AU
Department of Health,NHS Sheffield CCG,7/31/2020,Hcare Srv Rec Fdtn Trust-Contract Baseline,ACUTE COMMISSIONING,ROTHERHAM NHS FOUNDATION TRUST,33137637,"618,988.29",,S60 2TY
Department of Health,NHS Sheffield CCG,7/31/2020,Hcare Srv Rec NHS Trust-Contract Baseline,ACUTE COMMISSIONING,UNITED LINCOLNSHIRE HOSPITALS NHS TRUST,33137638,"27,985.26",,LN2 5QY
Department of Health,NHS Sheffield CCG,7/31/2020,Clinical&Medical-Voluntary Sector,COLLABORATIVE COMMISSIONING,SOUTH YORKSHIRE HOUSING ASSOCIATION LTD,33154074,"139,149.72",,S1 4EB
Department of Health,NHS Sheffield CCG,7/31/2020,Clinical&Medical-Voluntary Sector,COLLABORATIVE COMMISSIONING,SOUTH YORKSHIRE HOUSING ASSOCIATION LTD,33154081,"139,149.72",,S1 4EB
Department of Health,NHS Sheffield CCG,7/31/2020,C&M-GMS IT Comm Servs -GP Practices,PRIMARY CARE IT,REDCENTRIC SOLUTIONS LTD,33154125,"58,069.58",,HG3 1UG
Department of Health,NHS Sheffield CCG,7/31/2020,Clinical&Medical-Othe Public Sector,COMMUNITY SERVICES,SHEFFIELD CITY COUNCIL,33154146,"409,869.00",,S1 1UJ
Department of Health,NHS Sheffield CCG,7/31/2020,Hcare Srv Rec Fdtn Trust-Non Contract,NCAS/OATS,KING`S COLLEGE HOSPITAL NHS FOUNDATION TRUST,33197667,"33,532.00",,SE5 9RS
Department of Health,NHS Sheffield CCG,7/31/2020,C&M-GMS IT Comm Servs -GP Practices,PRIMARY CARE IT,REDCENTRIC SOLUTIONS LTD,33199404,"52,125.11",,HG3 1UG
Department of Health,NHS Sheffield CCG,7/31/2020,Cont Care- Prior Year Payments,FUNDED NURSING CARE,COUNTRY COURT CARE LTD,33213824,"26,338.72",FNC SCHEDULE JULY - 19-20 Uplift Abbey Grange Nursing Home (Country Court Care),S5 6UU
Department of Health,NHS Sheffield CCG,7/31/2020,Cont Care- Prior Year Payments,FUNDED NURSING CARE,ROSEBERRY CARE CENTRES,33213859,"32,478.78",FNC SCHEDULE JULY - 19-20 Uplift Haythorne Place Nursing Home (Roseberry),S5 6AB
Department of Health,NHS Sheffield CCG,7/31/2020,Cont Care- Prior Year Payments,FUNDED NURSING CARE,BONDCARE,33213870,"37,932.00",FNC SCHEDULE JULY - 19-20 Uplift Chatsworth Grange Nursing Home,NW4 4EF
Department of Health,NHS Sheffield CCG,7/31/2020,Soc Care-Support Prim Care,COMMUNITY SERVICES,SHEFFIELD CITY COUNCIL,33237892,"94,320.00",,S1 2HH
Department of Health,NHS Sheffield CCG,7/31/2020,C&M-PMS LES Presc Incentive Sch,LOCAL ENHANCED SERVICES,PRIMARY CARE SHEFFIELD LTD,33258139,"127,761.00",https://nww.einvoice-prod.sbs.nhs.uk:8179/invoicepdf/833b09ad-173d-5165-b80a-1e8ebc267549,S12 3GH
Department of Health,NHS Sheffield CCG,7/31/2020,Other professional fees,CLINICAL GOVERNANCE,CONSEQUENCE UK LTD,33264657,"4,359.00",https://nww.einvoice-prod.sbs.nhs.uk:8179/invoicepdf/0fb93519-f702-536f-bca3-66683abb62d2,WR14 1UQ
Department of Health,NHS Sheffield CCG,7/31/2020,C&M-PMS LES Primary Care Offer,LOCAL ENHANCED SERVICES,UNIVERSITY HEALTH SERVICE,33264967,"25,529.00",QUALITY CONTRACT Q1 202021,S3 7QP
Department of Health,NHS Sheffield CCG,7/31/2020,C&M-GMS LES Equitable Funding,LOCAL ENHANCED SERVICES,PORTER BROOK MEDICAL CENTRE,33266025,"26,869.00",EQUITABLEFUNDQ1 202021,S11 8HN
Department of Health,NHS Sheffield CCG,7/31/2020,C&M-GMS LES Equitable Funding,LOCAL ENHANCED SERVICES,UNIVERSITY HEALTH SERVICE,33266046,"31,911.00",EQUITABLEFUNDQ1 202021,S3 7QP
Department of Health,NHS Sheffield CCG,7/31/2020,C&M-APMS DES Immediate&1st Response,LOCAL ENHANCED SERVICES,PRIMARY CARE SHEFFIELD LTD,33276650,"30,952.22",,S9 4EU
Department of Health,NHS Sheffield CCG,7/31/2020,C&M-GMS QOF Achievement,PRC DELEGATED CO-COMMISSIONING,BASLOW ROAD & SHOREHAM STREET SURGERIES,33289007,"-44,903.98",CREDIT AS PAID ON CONTRACT PAYMENTS JULY 2020 QOF ACHIEVEMENT TOP UP 1920,S17 4DR
Department of Health,NHS Sheffield CCG,7/31/2020,C&M-APMS LES Translation Fees,LOCAL ENHANCED SERVICES,CLOVER GROUP PRACTICE,33296763,"65,500.00",MULBERRYQ1 202021,S9 4QH
Department of Health,NHS Sheffield CCG,7/31/2020,Cont Care-Physical Disab (<65),CHC ADULT FULLY FUNDED,HORIZON CARE HOMES LTD,33303020,"44,927.23",CHC SCHEDULE JULY 2020 - Wood Hill Grange (Horizon Care Homes),S25 3QA
Department of Health,NHS Sheffield CCG,7/31/2020,Cont Care-Physical Disab (<65),CHC ADULT FULLY FUNDED,HORIZON CARE HOMES LTD,33303023,"28,875.00",CHC SCHEDULE JULY 2020 - Wood Hill House,S25 3QA
Department of Health,NHS Sheffield CCG,7/31/2020,Cont Care-Physical Disab (<65),CHC ADULT FULLY FUNDED,HORIZON CARE HOMES LTD,33303026,"86,899.18",CHC SCHEDULE JULY 2020 - Wood Hill Lodge,S25 3QA
Department of Health,NHS Sheffield CCG,7/31/2020,Clinical&Medical-Voluntary Sector,HOSPICES,ST LUKES HOSPICE,33316109,"27,525.28",,S11 9NE
Department of Health,NHS Sheffield CCG,7/31/2020,C&M-GMS DES Minor Surgery,PRC DELEGATED CO-COMMISSIONING,BASLOW ROAD & SHOREHAM STREET SURGERIES,33326406,"4,530.00",DEMSUG,S17 4DR
Department of Health,NHS Sheffield CCG,7/31/2020,C&M-GMS Global Sum,PRC DELEGATED CO-COMMISSIONING,BASLOW ROAD & SHOREHAM STREET SURGERIES,33326406,"99,359.75",GSUMG,S17 4DR
Department of Health,NHS Sheffield CCG,7/31/2020,C&M-GMS PCN DES Participation,PRC DELEGATED CO-COMMISSIONING,BASLOW ROAD & SHOREHAM STREET SURGERIES,33326406,"1,984.37",PARTIG,S17 4DR
Department of Health,NHS Sheffield CCG,7/31/2020,C&M-GMS PCO Locum Sickness,PRC DELEGATED CO-COMMISSIONING,BASLOW ROAD & SHOREHAM STREET SURGERIES,33326406,"8,422.60",LOCSIG,S17 4DR
Department of Health,NHS Sheffield CCG,7/31/2020,C&M-GMS Prem Notional Rent,PRC DELEGATED CO-COMMISSIONING,BASLOW ROAD & SHOREHAM STREET SURGERIES,33326406,"8,222.71",NRENT,S17 4DR
Department of Health,NHS Sheffield CCG,7/31/2020,C&M-GMS Prem Rates,PRC DELEGATED CO-COMMISSIONING,BASLOW ROAD & SHOREHAM STREET SURGERIES,33326406,"2,619.00",RANDR,S17 4DR
Department of Health,NHS Sheffield CCG,7/31/2020,C&M-GMS QOF Achievement,PRC DELEGATED CO-COMMISSIONING,BASLOW ROAD & SHOREHAM STREET SURGERIES,33326406,"44,903.98",QUACHG,S17 4DR
Department of Health,NHS Sheffield CCG,7/31/2020,C&M-GMS QOF Aspiration,PRC DELEGATED CO-COMMISSIONING,BASLOW ROAD & SHOREHAM STREET SURGERIES,33326406,"7,553.14",QUASPG,S17 4DR
Department of Health,NHS Sheffield CCG,7/31/2020,C&M-GMS Cost of Drugs -Prescribing,LOCAL ENHANCED SERVICES,BUCHANAN ROAD SURGERY,33326408,88.38,DRGP,S5 8AL
Department of Health,NHS Sheffield CCG,7/31/2020,C&M-GMS DES Minor Surgery,PRC DELEGATED CO-COMMISSIONING,BUCHANAN ROAD SURGERY,33326408,210.00,DEMSUG,S5 8AL
Department of Health,NHS Sheffield CCG,7/31/2020,C&M-GMS Global Sum,PRC DELEGATED CO-COMMISSIONING,BUCHANAN ROAD SURGERY,33326408,"36,502.70",GSUMG,S5 8AL
Department of Health,NHS Sheffield CCG,7/31/2020,C&M-GMS PCN DES Participation,PRC DELEGATED CO-COMMISSIONING,BUCHANAN ROAD SURGERY,33326408,734.72,PARTIG,S5 8AL
Department of Health,NHS Sheffield CCG,7/31/2020,C&M-GMS Prem Notional Rent,PRC DELEGATED CO-COMMISSIONING,BUCHANAN ROAD SURGERY,33326408,"2,595.83",NRENT,S5 8AL
Department of Health,NHS Sheffield CCG,7/31/2020,C&M-GMS Prem Rates,PRC DELEGATED CO-COMMISSIONING,BUCHANAN ROAD SURGERY,33326408,"1,284.00",RANDR,S5 8AL
Department of Health,NHS Sheffield CCG,7/31/2020,C&M-GMS Prof Fees Prescribing,PRC DELEGATED CO-COMMISSIONING,BUCHANAN ROAD SURGERY,33326408,29.94,DRGPPF,S5 8AL
Department of Health,NHS Sheffield CCG,7/31/2020,C&M-GMS QOF Aspiration,PRC DELEGATED CO-COMMISSIONING,BUCHANAN ROAD SURGERY,33326408,"4,013.77",QUASPG,S5 8AL
Department of Health,NHS Sheffield CCG,7/31/2020,C&M-GMS GP Statutory Levy,PRC DELEGATED CO-COMMISSIONING,BROOMHILL SURGERY,33326411,-342.83,STATL,S10 5BU
Department of Health,NHS Sheffield CCG,7/31/2020,C&M-GMS Cost of Drugs -Prescribing,LOCAL ENHANCED SERVICES,BROOMHILL SURGERY,33326412,608.05,DRGP,S10 5BU
Department of Health,NHS Sheffield CCG,7/31/2020,C&M-GMS DES Minor Surgery,PRC DELEGATED CO-COMMISSIONING,BROOMHILL SURGERY,33326412,386.00,DEMSUG,S10 5BU
Department of Health,NHS Sheffield CCG,7/31/2020,C&M-GMS Global Sum,PRC DELEGATED CO-COMMISSIONING,BROOMHILL SURGERY,33326412,"67,105.41",GSUMG,S10 5BU
Department of Health,NHS Sheffield CCG,7/31/2020,C&M-GMS PCN DES Participation,PRC DELEGATED CO-COMMISSIONING,BROOMHILL SURGERY,33326412,"1,329.60",PARTIG,S10 5BU
Department of Health,NHS Sheffield CCG,7/31/2020,C&M-GMS Prem Cost Rent,PRC DELEGATED CO-COMMISSIONING,BROOMHILL SURGERY,33326412,"2,975.42",COST,S10 5BU
Department of Health,NHS Sheffield CCG,7/31/2020,C&M-GMS Prem Notional Rent,PRC DELEGATED CO-COMMISSIONING,BROOMHILL SURGERY,33326412,"2,612.50",NRENT,S10 5BU
Department of Health,NHS Sheffield CCG,7/31/2020,C&M-GMS Prof Fees Prescribing,PRC DELEGATED CO-COMMISSIONING,BROOMHILL SURGERY,33326412,25.34,DRGPPF,S10 5BU
Department of Health,NHS Sheffield CCG,7/31/2020,C&M-GMS QOF Aspiration,PRC DELEGATED CO-COMMISSIONING,BROOMHILL SURGERY,33326412,"6,610.83",QUASPG,S10 5BU
Department of Health,NHS Sheffield CCG,7/31/2020,C&M-GMS Cost of Drugs -Prescribing,LOCAL ENHANCED SERVICES,CHARNOCK HEALTH PRIMARY CARE CENTRE,33326414,647.96,DRGP,S12 3GH
Department of Health,NHS Sheffield CCG,7/31/2020,C&M-GMS DES Minor Surgery,PRC DELEGATED CO-COMMISSIONING,CHARNOCK HEALTH PRIMARY CARE CENTRE,33326414,"1,959.00",DEMSUG,S12 3GH
Department of Health,NHS Sheffield CCG,7/31/2020,C&M-GMS Global Sum,PRC DELEGATED CO-COMMISSIONING,CHARNOCK HEALTH PRIMARY CARE CENTRE,33326414,"44,623.04",GSUMG,S12 3GH
Department of Health,NHS Sheffield CCG,7/31/2020,C&M-GMS PCN DES Participation,PRC DELEGATED CO-COMMISSIONING,CHARNOCK HEALTH PRIMARY CARE CENTRE,33326414,893.45,PARTIG,S12 3GH
Department of Health,NHS Sheffield CCG,7/31/2020,C&M-GMS PCO Other,PRC DELEGATED CO-COMMISSIONING,CHARNOCK HEALTH PRIMARY CARE CENTRE,33326414,371.00,CQCRG,S12 3GH
Department of Health,NHS Sheffield CCG,7/31/2020,C&M-GMS Prem Actual Rent,PRC DELEGATED CO-COMMISSIONING,CHARNOCK HEALTH PRIMARY CARE CENTRE,33326414,"20,100.00",RENT,S12 3GH
Department of Health,NHS Sheffield CCG,7/31/2020,C&M-GMS Prem Notional Rent,PRC DELEGATED CO-COMMISSIONING,CHARNOCK HEALTH PRIMARY CARE CENTRE,33326414,335.00,NRENT,S12 3GH
Department of Health,NHS Sheffield CCG,7/31/2020,C&M-GMS Prem Rates,PRC DELEGATED CO-COMMISSIONING,CHARNOCK HEALTH PRIMARY CARE CENTRE,33326414,"1,572.00",RANDR,S12 3GH
Department of Health,NHS Sheffield CCG,7/31/2020,C&M-GMS Prof Fees Prescribing,PRC DELEGATED CO-COMMISSIONING,CHARNOCK HEALTH PRIMARY CARE CENTRE,33326414,41.46,DRGPPF,S12 3GH
Department of Health,NHS Sheffield CCG,7/31/2020,C&M-GMS QOF Aspiration,PRC DELEGATED CO-COMMISSIONING,CHARNOCK HEALTH PRIMARY CARE CENTRE,33326414,"4,918.11",QUASPG,S12 3GH
Department of Health,NHS Sheffield CCG,7/31/2020,C&M-GMS Cost of Drugs -Prescribing,LOCAL ENHANCED SERVICES,CARTERKNOWLE & DORE MEDICAL PRACTICE,33326418,"2,926.50",DRGP,S7 2DW
Department of Health,NHS Sheffield CCG,7/31/2020,C&M-GMS DES Learn Dsblty Hlth Chk,PRC DELEGATED CO-COMMISSIONING,CARTERKNOWLE & DORE MEDICAL PRACTICE,33326418,420.00,LEARNG,S7 2DW
Department of Health,NHS Sheffield CCG,7/31/2020,C&M-GMS DES Minor Surgery,PRC DELEGATED CO-COMMISSIONING,CARTERKNOWLE & DORE MEDICAL PRACTICE,33326418,"2,635.00",DEMSUG,S7 2DW
Department of Health,NHS Sheffield CCG,7/31/2020,C&M-GMS Global Sum,PRC DELEGATED CO-COMMISSIONING,CARTERKNOWLE & DORE MEDICAL PRACTICE,33326418,"89,051.56",GSUMG,S7 2DW
Department of Health,NHS Sheffield CCG,7/31/2020,C&M-GMS PCN DES Participation,PRC DELEGATED CO-COMMISSIONING,CARTERKNOWLE & DORE MEDICAL PRACTICE,33326418,"1,740.63",PARTIG,S7 2DW
Department of Health,NHS Sheffield CCG,7/31/2020,C&M-GMS Prem Notional Rent,PRC DELEGATED CO-COMMISSIONING,CARTERKNOWLE & DORE MEDICAL PRACTICE,33326418,"19,364.27",NRENT,S7 2DW
Department of Health,NHS Sheffield CCG,7/31/2020,C&M-GMS Prof Fees Prescribing,PRC DELEGATED CO-COMMISSIONING,CARTERKNOWLE & DORE MEDICAL PRACTICE,33326418,105.95,DRGPPF,S7 2DW
Department of Health,NHS Sheffield CCG,7/31/2020,C&M-GMS QOF Aspiration,PRC DELEGATED CO-COMMISSIONING,CARTERKNOWLE & DORE MEDICAL PRACTICE,33326418,"10,268.52",QUASPG,S7 2DW
Department of Health,NHS Sheffield CCG,7/31/2020,C&M-GMS Cost of Drugs -Prescribing,LOCAL ENHANCED SERVICES,CROOKES PRACTICE,33326423,49.30,DRGP,S10 1GN
Department of Health,NHS Sheffield CCG,7/31/2020,C&M-GMS DES Minor Surgery,PRC DELEGATED CO-COMMISSIONING,CROOKES PRACTICE,33326423,21.00,DEMSUG,S10 1GN
Department of Health,NHS Sheffield CCG,7/31/2020,C&M-GMS Global Sum,PRC DELEGATED CO-COMMISSIONING,CROOKES PRACTICE,33326423,"54,789.72",GSUMG,S10 1GN
Department of Health,NHS Sheffield CCG,7/31/2020,C&M-GMS PCN DES Participation,PRC DELEGATED CO-COMMISSIONING,CROOKES PRACTICE,33326423,"1,070.10",PARTIG,S10 1GN
Department of Health,NHS Sheffield CCG,7/31/2020,C&M-GMS PCO Locum Sickness,PRC DELEGATED CO-COMMISSIONING,CROOKES PRACTICE,33326423,"10,336.07",LOCSIG,S10 1GN
Department of Health,NHS Sheffield CCG,7/31/2020,C&M-GMS PCO Other,PRC DELEGATED CO-COMMISSIONING,CROOKES PRACTICE,33326423,527.70,CQCRG,S10 1GN
Department of Health,NHS Sheffield CCG,7/31/2020,C&M-GMS Prem Notional Rent,PRC DELEGATED CO-COMMISSIONING,CROOKES PRACTICE,33326423,"3,874.67",NRENT,S10 1GN
Department of Health,NHS Sheffield CCG,7/31/2020,C&M-GMS Prem Rates,PRC DELEGATED CO-COMMISSIONING,CROOKES PRACTICE,33326423,"1,534.00",RANDR,S10 1GN
Department of Health,NHS Sheffield CCG,7/31/2020,C&M-GMS Prof Fees Prescribing,PRC DELEGATED CO-COMMISSIONING,CROOKES PRACTICE,33326423,11.51,DRGPPF,S10 1GN
Department of Health,NHS Sheffield CCG,7/31/2020,C&M-GMS QOF Aspiration,PRC DELEGATED CO-COMMISSIONING,CROOKES PRACTICE,33326423,"4,898.32",QUASPG,S10 1GN
Department of Health,NHS Sheffield CCG,7/31/2020,C&M-GMS Cost of Drugs -Prescribing,LOCAL ENHANCED SERVICES,DEVONSHIRE GREEN MEDICAL CENTRE,33326426,112.17,DRGP,S3 7SF
Department of Health,NHS Sheffield CCG,7/31/2020,C&M-GMS DES Minor Surgery,PRC DELEGATED CO-COMMISSIONING,DEVONSHIRE GREEN MEDICAL CENTRE,33326426,363.00,DEMSUG,S3 7SF
Department of Health,NHS Sheffield CCG,7/31/2020,C&M-GMS Global Sum,PRC DELEGATED CO-COMMISSIONING,DEVONSHIRE GREEN MEDICAL CENTRE,33326426,"48,647.96",GSUMG,S3 7SF
Department of Health,NHS Sheffield CCG,7/31/2020,C&M-GMS PCN DES Participation,PRC DELEGATED CO-COMMISSIONING,DEVONSHIRE GREEN MEDICAL CENTRE,33326426,935.21,PARTIG,S3 7SF
Department of Health,NHS Sheffield CCG,7/31/2020,C&M-GMS Prem Notional Rent,PRC DELEGATED CO-COMMISSIONING,DEVONSHIRE GREEN MEDICAL CENTRE,33326426,"5,987.50",NRENT,S3 7SF
Department of Health,NHS Sheffield CCG,7/31/2020,C&M-GMS Prem Rates,PRC DELEGATED CO-COMMISSIONING,DEVONSHIRE GREEN MEDICAL CENTRE,33326426,"3,085.08",RANDR,S3 7SF
Department of Health,NHS Sheffield CCG,7/31/2020,C&M-GMS Prem Water Rates,PRC DELEGATED CO-COMMISSIONING,DEVONSHIRE GREEN MEDICAL CENTRE,33326426,334.03,RAMW,S3 7SF
Department of Health,NHS Sheffield CCG,7/31/2020,C&M-GMS Prof Fees Prescribing,PRC DELEGATED CO-COMMISSIONING,DEVONSHIRE GREEN MEDICAL CENTRE,33326426,36.85,DRGPPF,S3 7SF
Department of Health,NHS Sheffield CCG,7/31/2020,C&M-GMS QOF Aspiration,PRC DELEGATED CO-COMMISSIONING,DEVONSHIRE GREEN MEDICAL CENTRE,33326426,"4,846.82",QUASPG,S3 7SF
Department of Health,NHS Sheffield CCG,7/31/2020,C&M-GMS Cost of Drugs -Prescribing,LOCAL ENHANCED SERVICES,ECCLESFIELD GROUP PRACTICE,33326429,"1,998.51",DRGP,S35 9XQ
Department of Health,NHS Sheffield CCG,7/31/2020,C&M-GMS DES Extended Hours Access,PRC DELEGATED CO-COMMISSIONING,ECCLESFIELD GROUP PRACTICE,33326429,"5,160.79",EXTHDG,S35 9XQ
Department of Health,NHS Sheffield CCG,7/31/2020,C&M-GMS DES Minor Surgery,PRC DELEGATED CO-COMMISSIONING,ECCLESFIELD GROUP PRACTICE,33326429,800.00,DEMSUG,S35 9XQ
Department of Health,NHS Sheffield CCG,7/31/2020,C&M-GMS Global Sum,PRC DELEGATED CO-COMMISSIONING,ECCLESFIELD GROUP PRACTICE,33326429,"73,424.44",GSUMG,S35 9XQ
Department of Health,NHS Sheffield CCG,7/31/2020,C&M-GMS PCN DES Clinical Director,PRC DELEGATED CO-COMMISSIONING,ECCLESFIELD GROUP PRACTICE,33326429,"2,569.72",CLINDG,S35 9XQ
Department of Health,NHS Sheffield CCG,7/31/2020,C&M-GMS PCN DES PCN support,LOCAL ENHANCED SERVICES,ECCLESFIELD GROUP PRACTICE,33326429,"5,338.75",PCNSUG,S35 9XQ
Department of Health,NHS Sheffield CCG,7/31/2020,C&M-GMS PCN DES Participation,PRC DELEGATED CO-COMMISSIONING,ECCLESFIELD GROUP PRACTICE,33326429,"1,438.45",PARTIG,S35 9XQ
Department of Health,NHS Sheffield CCG,7/31/2020,C&M-GMS Prem Notional Rent,PRC DELEGATED CO-COMMISSIONING,ECCLESFIELD GROUP PRACTICE,33326429,"6,805.42",NRENT,S35 9XQ
Department of Health,NHS Sheffield CCG,7/31/2020,C&M-GMS Prem Rates,PRC DELEGATED CO-COMMISSIONING,ECCLESFIELD GROUP PRACTICE,33326429,551.00,RANDR,S35 9XQ
Department of Health,NHS Sheffield CCG,7/31/2020,C&M-GMS Prof Fees Prescribing,PRC DELEGATED CO-COMMISSIONING,ECCLESFIELD GROUP PRACTICE,33326429,154.29,DRGPPF,S35 9XQ
Department of Health,NHS Sheffield CCG,7/31/2020,C&M-GMS QOF Aspiration,PRC DELEGATED CO-COMMISSIONING,ECCLESFIELD GROUP PRACTICE,33326429,"8,723.86",QUASPG,S35 9XQ
Department of Health,NHS Sheffield CCG,7/31/2020,C&M-PCN DES Support Payment,PRC DELEGATED CO-COMMISSIONING,ECCLESFIELD GROUP PRACTICE,33326429,"2,071.64",SUPPPG,S35 9XQ
Department of Health,NHS Sheffield CCG,7/31/2020,C&M-GMS Cost of Drugs -Prescribing,LOCAL ENHANCED SERVICES,ELM LANE SURGERY,33326431,"1,804.64",DRGP,S5 7TW
Department of Health,NHS Sheffield CCG,7/31/2020,C&M-GMS DES Minor Surgery,PRC DELEGATED CO-COMMISSIONING,ELM LANE SURGERY,33326431,60.00,DEMSUG,S5 7TW
Department of Health,NHS Sheffield CCG,7/31/2020,C&M-GMS Global Sum,PRC DELEGATED CO-COMMISSIONING,ELM LANE SURGERY,33326431,"42,637.52",GSUMG,S5 7TW
Department of Health,NHS Sheffield CCG,7/31/2020,C&M-GMS PCN DES Participation,PRC DELEGATED CO-COMMISSIONING,ELM LANE SURGERY,33326431,851.24,PARTIG,S5 7TW
Department of Health,NHS Sheffield CCG,7/31/2020,C&M-GMS Prem Notional Rent,PRC DELEGATED CO-COMMISSIONING,ELM LANE SURGERY,33326431,"5,343.00",NRENT,S5 7TW
Department of Health,NHS Sheffield CCG,7/31/2020,C&M-GMS Prem Rates,PRC DELEGATED CO-COMMISSIONING,ELM LANE SURGERY,33326431,"1,527.00",RANDR,S5 7TW
Department of Health,NHS Sheffield CCG,7/31/2020,C&M-GMS Prof Fees Prescribing,PRC DELEGATED CO-COMMISSIONING,ELM LANE SURGERY,33326431,105.93,DRGPPF,S5 7TW
Department of Health,NHS Sheffield CCG,7/31/2020,C&M-GMS QOF Aspiration,PRC DELEGATED CO-COMMISSIONING,ELM LANE SURGERY,33326431,"4,787.76",QUASPG,S5 7TW
Department of Health,NHS Sheffield CCG,7/31/2020,C&M-GMS Cost of Drugs -Prescribing,LOCAL ENHANCED SERVICES,FAR LANE MEDICAL CENTRE,33326439,18.36,DRGP,S6 4FA
Department of Health,NHS Sheffield CCG,7/31/2020,C&M-GMS DES Minor Surgery,PRC DELEGATED CO-COMMISSIONING,FAR LANE MEDICAL CENTRE,33326439,"3,681.00",DEMSUG,S6 4FA
Department of Health,NHS Sheffield CCG,7/31/2020,C&M-GMS Global Sum,PRC DELEGATED CO-COMMISSIONING,FAR LANE MEDICAL CENTRE,33326439,"57,503.63",GSUMG,S6 4FA
Department of Health,NHS Sheffield CCG,7/31/2020,C&M-GMS PCN DES Participation,PRC DELEGATED CO-COMMISSIONING,FAR LANE MEDICAL CENTRE,33326439,"1,137.91",PARTIG,S6 4FA
Department of Health,NHS Sheffield CCG,7/31/2020,C&M-GMS PCO Other,PRC DELEGATED CO-COMMISSIONING,FAR LANE MEDICAL CENTRE,33326439,460.10,CQCRG,S6 4FA
Department of Health,NHS Sheffield CCG,7/31/2020,C&M-GMS Prem Notional Rent,PRC DELEGATED CO-COMMISSIONING,FAR LANE MEDICAL CENTRE,33326439,"4,370.27",NRENT,S6 4FA
Department of Health,NHS Sheffield CCG,7/31/2020,C&M-GMS Prem Rates,PRC DELEGATED CO-COMMISSIONING,FAR LANE MEDICAL CENTRE,33326439,"1,277.00",RANDR,S6 4FA
Department of Health,NHS Sheffield CCG,7/31/2020,C&M-GMS Prem Water Rates,PRC DELEGATED CO-COMMISSIONING,FAR LANE MEDICAL CENTRE,33326439,90.21,RAMW,S6 4FA
Department of Health,NHS Sheffield CCG,7/31/2020,C&M-GMS Prof Fees Prescribing,PRC DELEGATED CO-COMMISSIONING,FAR LANE MEDICAL CENTRE,33326439,4.61,DRGPPF,S6 4FA
Department of Health,NHS Sheffield CCG,7/31/2020,C&M-GMS QOF Aspiration,PRC DELEGATED CO-COMMISSIONING,FAR LANE MEDICAL CENTRE,33326439,"6,055.38",QUASPG,S6 4FA
Department of Health,NHS Sheffield CCG,7/31/2020,C&M-GMS Cost of Drugs -Prescribing,LOCAL ENHANCED SERVICES,HANDSWORTH MEDICAL PRACTICE SHEFFIELD,33326445,383.56,DRGP,S13 9BZ
Department of Health,NHS Sheffield CCG,7/31/2020,C&M-GMS DES Minor Surgery,PRC DELEGATED CO-COMMISSIONING,HANDSWORTH MEDICAL PRACTICE SHEFFIELD,33326445,390.00,DEMSUG,S13 9BZ
Department of Health,NHS Sheffield CCG,7/31/2020,C&M-GMS Global Sum,PRC DELEGATED CO-COMMISSIONING,HANDSWORTH MEDICAL PRACTICE SHEFFIELD,33326445,"81,962.64",GSUMG,S13 9BZ
Department of Health,NHS Sheffield CCG,7/31/2020,C&M-GMS PCN DES Participation,PRC DELEGATED CO-COMMISSIONING,HANDSWORTH MEDICAL PRACTICE SHEFFIELD,33326445,"1,599.78",PARTIG,S13 9BZ
Department of Health,NHS Sheffield CCG,7/31/2020,C&M-GMS Prem Notional Rent,PRC DELEGATED CO-COMMISSIONING,HANDSWORTH MEDICAL PRACTICE SHEFFIELD,33326445,"3,321.66",NRENT,S13 9BZ
Department of Health,NHS Sheffield CCG,7/31/2020,C&M-GMS Prem Rates,PRC DELEGATED CO-COMMISSIONING,HANDSWORTH MEDICAL PRACTICE SHEFFIELD,33326445,"1,299.80",RANDR,S13 9BZ
Department of Health,NHS Sheffield CCG,7/31/2020,C&M-GMS Prem Water Rates,PRC DELEGATED CO-COMMISSIONING,HANDSWORTH MEDICAL PRACTICE SHEFFIELD,33326445,67.29,RAMW,S13 9BZ
Department of Health,NHS Sheffield CCG,7/31/2020,C&M-GMS Prof Fees Prescribing,PRC DELEGATED CO-COMMISSIONING,HANDSWORTH MEDICAL PRACTICE SHEFFIELD,33326445,105.94,DRGPPF,S13 9BZ
Department of Health,NHS Sheffield CCG,7/31/2020,C&M-GMS QOF Aspiration,PRC DELEGATED CO-COMMISSIONING,HANDSWORTH MEDICAL PRACTICE SHEFFIELD,33326445,"7,866.23",QUASPG,S13 9BZ
Department of Health,NHS Sheffield CCG,7/31/2020,C&M-GMS Cost of Drugs -Prescribing,LOCAL ENHANCED SERVICES,GRENOSIDE SURGERY,33326447,"1,023.49",DRGP,S35 8NX
Department of Health,NHS Sheffield CCG,7/31/2020,C&M-GMS DES Minor Surgery,PRC DELEGATED CO-COMMISSIONING,GRENOSIDE SURGERY,33326447,485.00,DEMSUG,S35 8NX
Department of Health,NHS Sheffield CCG,7/31/2020,C&M-GMS Global Sum,PRC DELEGATED CO-COMMISSIONING,GRENOSIDE SURGERY,33326447,"62,567.80",GSUMG,S35 8NX
Department of Health,NHS Sheffield CCG,7/31/2020,C&M-GMS PCN DES Participation,PRC DELEGATED CO-COMMISSIONING,GRENOSIDE SURGERY,33326447,"1,220.08",PARTIG,S35 8NX
Department of Health,NHS Sheffield CCG,7/31/2020,C&M-GMS Prem Notional Rent,PRC DELEGATED CO-COMMISSIONING,GRENOSIDE SURGERY,33326447,"8,110.42",NRENT,S35 8NX
Department of Health,NHS Sheffield CCG,7/31/2020,C&M-GMS Prem Rates,PRC DELEGATED CO-COMMISSIONING,GRENOSIDE SURGERY,33326447,"4,218.00",RANDR,S35 8NX
Department of Health,NHS Sheffield CCG,7/31/2020,C&M-GMS Prof Fees Prescribing,PRC DELEGATED CO-COMMISSIONING,GRENOSIDE SURGERY,33326447,41.46,DRGPPF,S35 8NX
Department of Health,NHS Sheffield CCG,7/31/2020,C&M-GMS QOF Aspiration,PRC DELEGATED CO-COMMISSIONING,GRENOSIDE SURGERY,33326447,"5,840.97",QUASPG,S35 8NX
Department of Health,NHS Sheffield CCG,7/31/2020,C&M-GMS Cost of Drugs -Prescribing,LOCAL ENHANCED SERVICES,GREYSTONES MEDICAL CENTRE,33326449,27.44,DRGP,S11 7BJ
Department of Health,NHS Sheffield CCG,7/31/2020,C&M-GMS DES Minor Surgery,PRC DELEGATED CO-COMMISSIONING,GREYSTONES MEDICAL CENTRE,33326449,155.00,DEMSUG,S11 7BJ
Department of Health,NHS Sheffield CCG,7/31/2020,C&M-GMS Global Sum,PRC DELEGATED CO-COMMISSIONING,GREYSTONES MEDICAL CENTRE,33326449,"20,330.80",GSUMG,S11 7BJ
Department of Health,NHS Sheffield CCG,7/31/2020,C&M-GMS PCN DES Participation,PRC DELEGATED CO-COMMISSIONING,GREYSTONES MEDICAL CENTRE,33326449,406.83,PARTIG,S11 7BJ
Department of Health,NHS Sheffield CCG,7/31/2020,C&M-GMS PCO Other,PRC DELEGATED CO-COMMISSIONING,GREYSTONES MEDICAL CENTRE,33326449,264.20,CQCRG,S11 7BJ
Department of Health,NHS Sheffield CCG,7/31/2020,C&M-GMS Prem Notional Rent,PRC DELEGATED CO-COMMISSIONING,GREYSTONES MEDICAL CENTRE,33326449,"2,885.42",NRENT,S11 7BJ
Department of Health,NHS Sheffield CCG,7/31/2020,C&M-GMS Prem Rates,PRC DELEGATED CO-COMMISSIONING,GREYSTONES MEDICAL CENTRE,33326449,707.00,RANDR,S11 7BJ
Department of Health,NHS Sheffield CCG,7/31/2020,C&M-GMS Prof Fees Prescribing,PRC DELEGATED CO-COMMISSIONING,GREYSTONES MEDICAL CENTRE,33326449,9.21,DRGPPF,S11 7BJ
Department of Health,NHS Sheffield CCG,7/31/2020,C&M-GMS QOF Aspiration,PRC DELEGATED CO-COMMISSIONING,GREYSTONES MEDICAL CENTRE,33326449,"2,301.79",QUASPG,S11 7BJ
Department of Health,NHS Sheffield CCG,7/31/2020,C&M-GMS Cost of Drugs -Prescribing,LOCAL ENHANCED SERVICES,HOLLIES MEDICAL CENTRE,33326452,74.12,DRGP,S11 9AL
Department of Health,NHS Sheffield CCG,7/31/2020,C&M-GMS DES Minor Surgery,PRC DELEGATED CO-COMMISSIONING,HOLLIES MEDICAL CENTRE,33326452,713.00,DEMSUG,S11 9AL
Department of Health,NHS Sheffield CCG,7/31/2020,C&M-GMS Global Sum,PRC DELEGATED CO-COMMISSIONING,HOLLIES MEDICAL CENTRE,33326452,"64,229.97",GSUMG,S11 9AL
Department of Health,NHS Sheffield CCG,7/31/2020,C&M-GMS PCN DES Participation,PRC DELEGATED CO-COMMISSIONING,HOLLIES MEDICAL CENTRE,33326452,"1,246.56",PARTIG,S11 9AL
Department of Health,NHS Sheffield CCG,7/31/2020,C&M-GMS PCO Other,PRC DELEGATED CO-COMMISSIONING,HOLLIES MEDICAL CENTRE,33326452,"2,434.80",CQCRG,S11 9AL
Department of Health,NHS Sheffield CCG,7/31/2020,C&M-GMS Prem Notional Rent,PRC DELEGATED CO-COMMISSIONING,HOLLIES MEDICAL CENTRE,33326452,"3,229.17",NRENT,S11 9AL
Department of Health,NHS Sheffield CCG,7/31/2020,C&M-GMS Prem Rates,PRC DELEGATED CO-COMMISSIONING,HOLLIES MEDICAL CENTRE,33326452,"1,816.50",RANDR,S11 9AL
Department of Health,NHS Sheffield CCG,7/31/2020,C&M-GMS Prof Fees Prescribing,PRC DELEGATED CO-COMMISSIONING,HOLLIES MEDICAL CENTRE,33326452,25.34,DRGPPF,S11 9AL
Department of Health,NHS Sheffield CCG,7/31/2020,C&M-GMS QOF Aspiration,PRC DELEGATED CO-COMMISSIONING,HOLLIES MEDICAL CENTRE,33326452,"7,315.52",QUASPG,S11 9AL
Department of Health,NHS Sheffield CCG,7/31/2020,C&M-GMS Cost of Drugs -Prescribing,LOCAL ENHANCED SERVICES,HEALTH CARE SURGERY,33326454,394.98,DRGP,S5 8GS
Department of Health,NHS Sheffield CCG,7/31/2020,C&M-GMS DES Minor Surgery,PRC DELEGATED CO-COMMISSIONING,HEALTH CARE SURGERY,33326454,220.00,DEMSUG,S5 8GS
Department of Health,NHS Sheffield CCG,7/31/2020,C&M-GMS Global Sum,PRC DELEGATED CO-COMMISSIONING,HEALTH CARE SURGERY,33326454,"40,758.22",GSUMG,S5 8GS
Department of Health,NHS Sheffield CCG,7/31/2020,C&M-GMS PCN DES Participation,PRC DELEGATED CO-COMMISSIONING,HEALTH CARE SURGERY,33326454,802.32,PARTIG,S5 8GS
Department of Health,NHS Sheffield CCG,7/31/2020,C&M-GMS PCO Other,PRC DELEGATED CO-COMMISSIONING,HEALTH CARE SURGERY,33326454,337.00,CQCRG,S5 8GS
Department of Health,NHS Sheffield CCG,7/31/2020,C&M-GMS Prem Notional Rent,PRC DELEGATED CO-COMMISSIONING,HEALTH CARE SURGERY,33326454,"3,862.50",NRENT,S5 8GS
Department of Health,NHS Sheffield CCG,7/31/2020,C&M-GMS Prem Rates,PRC DELEGATED CO-COMMISSIONING,HEALTH CARE SURGERY,33326454,755.00,RANDR,S5 8GS
Department of Health,NHS Sheffield CCG,7/31/2020,C&M-GMS Prof Fees Prescribing,PRC DELEGATED CO-COMMISSIONING,HEALTH CARE SURGERY,33326454,66.79,DRGPPF,S5 8GS
Department of Health,NHS Sheffield CCG,7/31/2020,C&M-GMS QOF Aspiration,PRC DELEGATED CO-COMMISSIONING,HEALTH CARE SURGERY,33326454,"4,354.34",QUASPG,S5 8GS
Department of Health,NHS Sheffield CCG,7/31/2020,C&M-GMS Cost of Drugs -Prescribing,LOCAL ENHANCED SERVICES,MEDICAL CENTRE CRYSTAL PEAKS,33326458,418.11,DRGP,S20 7HZ
Department of Health,NHS Sheffield CCG,7/31/2020,C&M-GMS DES Minor Surgery,PRC DELEGATED CO-COMMISSIONING,MEDICAL CENTRE CRYSTAL PEAKS,33326458,"3,678.00",DEMSUG,S20 7HZ
Department of Health,NHS Sheffield CCG,7/31/2020,C&M-GMS Global Sum,PRC DELEGATED CO-COMMISSIONING,MEDICAL CENTRE CRYSTAL PEAKS,33326458,"49,607.02",GSUMG,S20 7HZ
Department of Health,NHS Sheffield CCG,7/31/2020,C&M-GMS PCN DES Participation,PRC DELEGATED CO-COMMISSIONING,MEDICAL CENTRE CRYSTAL PEAKS,33326458,973.29,PARTIG,S20 7HZ
Department of Health,NHS Sheffield CCG,7/31/2020,C&M-GMS PCO Other,PRC DELEGATED CO-COMMISSIONING,MEDICAL CENTRE CRYSTAL PEAKS,33326458,431.60,CQCRG,S20 7HZ
Department of Health,NHS Sheffield CCG,7/31/2020,C&M-GMS Prem Actual Rent,PRC DELEGATED CO-COMMISSIONING,MEDICAL CENTRE CRYSTAL PEAKS,33326458,"17,610.00",RENT,S20 7HZ
Department of Health,NHS Sheffield CCG,7/31/2020,C&M-GMS Prem Notional Rent,PRC DELEGATED CO-COMMISSIONING,MEDICAL CENTRE CRYSTAL PEAKS,33326458,270.00,NRENT,S20 7HZ
Department of Health,NHS Sheffield CCG,7/31/2020,C&M-GMS Prem Rates,PRC DELEGATED CO-COMMISSIONING,MEDICAL CENTRE CRYSTAL PEAKS,33326458,"1,073.00",RANDR,S20 7HZ
Department of Health,NHS Sheffield CCG,7/31/2020,C&M-GMS Prof Fees Prescribing,PRC DELEGATED CO-COMMISSIONING,MEDICAL CENTRE CRYSTAL PEAKS,33326458,158.91,DRGPPF,S20 7HZ
Department of Health,NHS Sheffield CCG,7/31/2020,C&M-GMS QOF Aspiration,PRC DELEGATED CO-COMMISSIONING,MEDICAL CENTRE CRYSTAL PEAKS,33326458,"6,365.03",QUASPG,S20 7HZ
Department of Health,NHS Sheffield CCG,7/31/2020,C&M-GMS Cost of Drugs -Prescribing,LOCAL ENHANCED SERVICES,MATHEWS PRACTICE,33326462,119.54,DRGP,S2 4UJ
Department of Health,NHS Sheffield CCG,7/31/2020,C&M-GMS DES Minor Surgery,PRC DELEGATED CO-COMMISSIONING,MATHEWS PRACTICE,33326462,"1,763.00",DEMSUG,S2 4UJ
Department of Health,NHS Sheffield CCG,7/31/2020,C&M-GMS Global Sum,PRC DELEGATED CO-COMMISSIONING,MATHEWS PRACTICE,33326462,"59,427.26",GSUMG,S2 4UJ
Department of Health,NHS Sheffield CCG,7/31/2020,C&M-GMS PCN DES Participation,PRC DELEGATED CO-COMMISSIONING,MATHEWS PRACTICE,33326462,"1,189.39",PARTIG,S2 4UJ
Department of Health,NHS Sheffield CCG,7/31/2020,C&M-GMS Prem Rates,PRC DELEGATED CO-COMMISSIONING,MATHEWS PRACTICE,33326462,"2,183.00",RANDR,S2 4UJ
Department of Health,NHS Sheffield CCG,7/31/2020,C&M-GMS Prof Fees Prescribing,PRC DELEGATED CO-COMMISSIONING,MATHEWS PRACTICE,33326462,117.45,DRGPPF,S2 4UJ
Department of Health,NHS Sheffield CCG,7/31/2020,C&M-GMS QOF Achievement,PRC DELEGATED CO-COMMISSIONING,MATHEWS PRACTICE,33326462,"3,251.95",QUACHG,S2 4UJ
Department of Health,NHS Sheffield CCG,7/31/2020,C&M-GMS QOF Aspiration,PRC DELEGATED CO-COMMISSIONING,MATHEWS PRACTICE,33326462,"5,051.62",QUASPG,S2 4UJ
Department of Health,NHS Sheffield CCG,7/31/2020,C&M-GMS Cost of Drugs -Prescribing,LOCAL ENHANCED SERVICES,MILL ROAD SURGERY SHEFFIELD,33326465,383.49,DRGP,S35 9XQ
Department of Health,NHS Sheffield CCG,7/31/2020,C&M-GMS DES Minor Surgery,PRC DELEGATED CO-COMMISSIONING,MILL ROAD SURGERY SHEFFIELD,33326465,"1,230.00",DEMSUG,S35 9XQ
Department of Health,NHS Sheffield CCG,7/31/2020,C&M-GMS Global Sum,PRC DELEGATED CO-COMMISSIONING,MILL ROAD SURGERY SHEFFIELD,33326465,"42,019.66",GSUMG,S35 9XQ
Department of Health,NHS Sheffield CCG,7/31/2020,C&M-GMS PCN DES Participation,PRC DELEGATED CO-COMMISSIONING,MILL ROAD SURGERY SHEFFIELD,33326465,834.04,PARTIG,S35 9XQ
Department of Health,NHS Sheffield CCG,7/31/2020,C&M-GMS PCO Other,PRC DELEGATED CO-COMMISSIONING,MILL ROAD SURGERY SHEFFIELD,33326465,352.00,CQCRG,S35 9XQ
Department of Health,NHS Sheffield CCG,7/31/2020,C&M-GMS Prem Notional Rent,PRC DELEGATED CO-COMMISSIONING,MILL ROAD SURGERY SHEFFIELD,33326465,"4,593.33",NRENT,S35 9XQ
Department of Health,NHS Sheffield CCG,7/31/2020,C&M-GMS Prem Rates,PRC DELEGATED CO-COMMISSIONING,MILL ROAD SURGERY SHEFFIELD,33326465,"1,073.00",RANDR,S35 9XQ
Department of Health,NHS Sheffield CCG,7/31/2020,C&M-GMS Prof Fees Prescribing,PRC DELEGATED CO-COMMISSIONING,MILL ROAD SURGERY SHEFFIELD,33326465,101.33,DRGPPF,S35 9XQ
Department of Health,NHS Sheffield CCG,7/31/2020,C&M-GMS QOF Achievement,PRC DELEGATED CO-COMMISSIONING,MILL ROAD SURGERY SHEFFIELD,33326465,"8,987.87",QUACHG,S35 9XQ
Department of Health,NHS Sheffield CCG,7/31/2020,C&M-GMS QOF Aspiration,PRC DELEGATED CO-COMMISSIONING,MILL ROAD SURGERY SHEFFIELD,33326465,"4,562.43",QUASPG,S35 9XQ
Department of Health,NHS Sheffield CCG,7/31/2020,C&M-GMS Cost of Drugs -Prescribing,LOCAL ENHANCED SERVICES,NORFOLK PARK HEALTH CENTRE,33326470,359.15,DRGP,S2 3TA
Department of Health,NHS Sheffield CCG,7/31/2020,C&M-GMS DES Minor Surgery,PRC DELEGATED CO-COMMISSIONING,NORFOLK PARK HEALTH CENTRE,33326470,485.00,DEMSUG,S2 3TA
Department of Health,NHS Sheffield CCG,7/31/2020,C&M-GMS Global Sum,PRC DELEGATED CO-COMMISSIONING,NORFOLK PARK HEALTH CENTRE,33326470,"42,081.08",GSUMG,S2 3TA
Department of Health,NHS Sheffield CCG,7/31/2020,C&M-GMS PCN DES Participation,PRC DELEGATED CO-COMMISSIONING,NORFOLK PARK HEALTH CENTRE,33326470,800.91,PARTIG,S2 3TA
Department of Health,NHS Sheffield CCG,7/31/2020,C&M-GMS PCO Other,PRC DELEGATED CO-COMMISSIONING,NORFOLK PARK HEALTH CENTRE,33326470,"3,280.00",CQCRG,S2 3TA
Department of Health,NHS Sheffield CCG,7/31/2020,C&M-GMS Prem Healthcentre Rent,PRC DELEGATED CO-COMMISSIONING,NORFOLK PARK HEALTH CENTRE,33326470,"26,539.88",HEALTH,S2 3TA
Department of Health,NHS Sheffield CCG,7/31/2020,C&M-GMS Prof Fees Prescribing,PRC DELEGATED CO-COMMISSIONING,NORFOLK PARK HEALTH CENTRE,33326470,94.42,DRGPPF,S2 3TA
Department of Health,NHS Sheffield CCG,7/31/2020,C&M-GMS QOF Aspiration,PRC DELEGATED CO-COMMISSIONING,NORFOLK PARK HEALTH CENTRE,33326470,"3,786.97",QUASPG,S2 3TA
Department of Health,NHS Sheffield CCG,7/31/2020,C&M-GMS Cost of Drugs -Prescribing,LOCAL ENHANCED SERVICES,NORWOOD MEDICAL CENTRE SHEFFIELD,33326472,242.83,DRGP,S5 7HD
Department of Health,NHS Sheffield CCG,7/31/2020,C&M-GMS DES Minor Surgery,PRC DELEGATED CO-COMMISSIONING,NORWOOD MEDICAL CENTRE SHEFFIELD,33326472,"2,368.00",DEMSUG,S5 7HD
Department of Health,NHS Sheffield CCG,7/31/2020,C&M-GMS Global Sum,PRC DELEGATED CO-COMMISSIONING,NORWOOD MEDICAL CENTRE SHEFFIELD,33326472,"68,098.13",GSUMG,S5 7HD
Department of Health,NHS Sheffield CCG,7/31/2020,C&M-GMS PCN DES Participation,PRC DELEGATED CO-COMMISSIONING,NORWOOD MEDICAL CENTRE SHEFFIELD,33326472,"1,343.92",PARTIG,S5 7HD
Department of Health,NHS Sheffield CCG,7/31/2020,C&M-GMS PCO Other,PRC DELEGATED CO-COMMISSIONING,NORWOOD MEDICAL CENTRE SHEFFIELD,33326472,513.80,CQCRG,S5 7HD
Department of Health,NHS Sheffield CCG,7/31/2020,C&M-GMS Prem Notional Rent,PRC DELEGATED CO-COMMISSIONING,NORWOOD MEDICAL CENTRE SHEFFIELD,33326472,"5,187.50",NRENT,S5 7HD
Department of Health,NHS Sheffield CCG,7/31/2020,C&M-GMS Prof Fees Prescribing,PRC DELEGATED CO-COMMISSIONING,NORWOOD MEDICAL CENTRE SHEFFIELD,33326472,55.26,DRGPPF,S5 7HD
Department of Health,NHS Sheffield CCG,7/31/2020,C&M-GMS QOF Aspiration,PRC DELEGATED CO-COMMISSIONING,NORWOOD MEDICAL CENTRE SHEFFIELD,33326472,"7,662.56",QUASPG,S5 7HD
Department of Health,NHS Sheffield CCG,7/31/2020,C&M-GMS Cost of Drugs -Dispensing,LOCAL ENHANCED SERVICES,OUGHTIBRIDGE SURGERY,33326476,"30,203.44","DRGD,DRGADV",S35 0FW
Department of Health,NHS Sheffield CCG,7/31/2020,C&M-GMS DES Minor Surgery,PRC DELEGATED CO-COMMISSIONING,OUGHTIBRIDGE SURGERY,33326476,550.00,DEMSUG,S35 0FW
Department of Health,NHS Sheffield CCG,7/31/2020,C&M-GMS Global Sum,PRC DELEGATED CO-COMMISSIONING,OUGHTIBRIDGE SURGERY,33326476,"44,937.34",GSUMG,S35 0FW
Department of Health,NHS Sheffield CCG,7/31/2020,C&M-GMS PCN DES Participation,PRC DELEGATED CO-COMMISSIONING,OUGHTIBRIDGE SURGERY,33326476,892.20,PARTIG,S35 0FW
Department of Health,NHS Sheffield CCG,7/31/2020,C&M-GMS Prem Notional Rent,PRC DELEGATED CO-COMMISSIONING,OUGHTIBRIDGE SURGERY,33326476,"3,957.33",NRENT,S35 0FW
Department of Health,NHS Sheffield CCG,7/31/2020,C&M-GMS Prem Rates,PRC DELEGATED CO-COMMISSIONING,OUGHTIBRIDGE SURGERY,33326476,"1,073.00",RANDR,S35 0FW
Department of Health,NHS Sheffield CCG,7/31/2020,C&M-GMS Prof Fees Dispensing,PRC DELEGATED CO-COMMISSIONING,OUGHTIBRIDGE SURGERY,33326476,"4,443.06",DRGDPF,S35 0FW
Department of Health,NHS Sheffield CCG,7/31/2020,C&M-GMS PrscrptnChrgsColl&RmttdbyGP,LOCAL ENHANCED SERVICES,OUGHTIBRIDGE SURGERY,33326476,503.25,DRGPR,S35 0FW
Department of Health,NHS Sheffield CCG,7/31/2020,C&M-GMS QOF Aspiration,PRC DELEGATED CO-COMMISSIONING,OUGHTIBRIDGE SURGERY,33326476,"4,196.46",QUASPG,S35 0FW
Department of Health,NHS Sheffield CCG,7/31/2020,C&M-GMS Cost of Drugs -Prescribing,LOCAL ENHANCED SERVICES,SHARROW LANE MEDICAL CENTRE,33326479,11.44,DRGP,S11 8AN
Department of Health,NHS Sheffield CCG,7/31/2020,C&M-GMS DES Minor Surgery,PRC DELEGATED CO-COMMISSIONING,SHARROW LANE MEDICAL CENTRE,33326479,170.00,DEMSUG,S11 8AN
Department of Health,NHS Sheffield CCG,7/31/2020,C&M-GMS Global Sum,PRC DELEGATED CO-COMMISSIONING,SHARROW LANE MEDICAL CENTRE,33326479,"24,642.00",GSUMG,S11 8AN
Department of Health,NHS Sheffield CCG,7/31/2020,C&M-GMS PCN DES Participation,PRC DELEGATED CO-COMMISSIONING,SHARROW LANE MEDICAL CENTRE,33326479,487.93,PARTIG,S11 8AN
Department of Health,NHS Sheffield CCG,7/31/2020,C&M-GMS PCO Other,PRC DELEGATED CO-COMMISSIONING,SHARROW LANE MEDICAL CENTRE,33326479,274.00,CQCRG,S11 8AN
Department of Health,NHS Sheffield CCG,7/31/2020,C&M-GMS Prem Notional Rent,PRC DELEGATED CO-COMMISSIONING,SHARROW LANE MEDICAL CENTRE,33326479,"2,741.67",NRENT,S11 8AN
Department of Health,NHS Sheffield CCG,7/31/2020,C&M-GMS Prof Fees Prescribing,PRC DELEGATED CO-COMMISSIONING,SHARROW LANE MEDICAL CENTRE,33326479,13.82,DRGPPF,S11 8AN
Department of Health,NHS Sheffield CCG,7/31/2020,C&M-GMS QOF Achievement,PRC DELEGATED CO-COMMISSIONING,SHARROW LANE MEDICAL CENTRE,33326479,"6,180.62",QUACHG,S11 8AN
Department of Health,NHS Sheffield CCG,7/31/2020,C&M-GMS QOF Aspiration,PRC DELEGATED CO-COMMISSIONING,SHARROW LANE MEDICAL CENTRE,33326479,"2,300.87",QUASPG,S11 8AN
Department of Health,NHS Sheffield CCG,7/31/2020,C&M-GMS Cost of Drugs -Prescribing,LOCAL ENHANCED SERVICES,SHIREGREEN MEDICAL CENTRE,33326487,590.72,DRGP,S5 0RG
Department of Health,NHS Sheffield CCG,7/31/2020,C&M-GMS DES Minor Surgery,PRC DELEGATED CO-COMMISSIONING,SHIREGREEN MEDICAL CENTRE,33326487,120.00,DEMSUG,S5 0RG
Department of Health,NHS Sheffield CCG,7/31/2020,C&M-GMS Global Sum,PRC DELEGATED CO-COMMISSIONING,SHIREGREEN MEDICAL CENTRE,33326487,"59,351.78",GSUMG,S5 0RG
Department of Health,NHS Sheffield CCG,7/31/2020,C&M-GMS PCN DES Participation,PRC DELEGATED CO-COMMISSIONING,SHIREGREEN MEDICAL CENTRE,33326487,"1,193.58",PARTIG,S5 0RG
Department of Health,NHS Sheffield CCG,7/31/2020,C&M-GMS PCO Other,PRC DELEGATED CO-COMMISSIONING,SHIREGREEN MEDICAL CENTRE,33326487,496.00,CQCRG,S5 0RG
Department of Health,NHS Sheffield CCG,7/31/2020,C&M-GMS Prem Cost Rent,PRC DELEGATED CO-COMMISSIONING,SHIREGREEN MEDICAL CENTRE,33326487,"1,792.33",COST,S5 0RG
Department of Health,NHS Sheffield CCG,7/31/2020,C&M-GMS Prem Notional Rent,PRC DELEGATED CO-COMMISSIONING,SHIREGREEN MEDICAL CENTRE,33326487,"5,375.00",NRENT,S5 0RG
Department of Health,NHS Sheffield CCG,7/31/2020,C&M-GMS Prof Fees Prescribing,PRC DELEGATED CO-COMMISSIONING,SHIREGREEN MEDICAL CENTRE,33326487,55.27,DRGPPF,S5 0RG
Department of Health,NHS Sheffield CCG,7/31/2020,C&M-GMS QOF Achievement,PRC DELEGATED CO-COMMISSIONING,SHIREGREEN MEDICAL CENTRE,33326487,"14,649.58",QUACHG,S5 0RG
Department of Health,NHS Sheffield CCG,7/31/2020,C&M-GMS QOF Aspiration,PRC DELEGATED CO-COMMISSIONING,SHIREGREEN MEDICAL CENTRE,33326487,"5,985.10",QUASPG,S5 0RG
Department of Health,NHS Sheffield CCG,7/31/2020,C&M-GMS Cost of Drugs -Prescribing,LOCAL ENHANCED SERVICES,STONECROFT MEDICAL CENTRE,33326489,106.52,DRGP,S12 2LJ
Department of Health,NHS Sheffield CCG,7/31/2020,C&M-GMS DES Minor Surgery,PRC DELEGATED CO-COMMISSIONING,STONECROFT MEDICAL CENTRE,33326489,940.00,DEMSUG,S12 2LJ
Department of Health,NHS Sheffield CCG,7/31/2020,C&M-GMS Global Sum,PRC DELEGATED CO-COMMISSIONING,STONECROFT MEDICAL CENTRE,33326489,"33,911.03",GSUMG,S12 2LJ
Department of Health,NHS Sheffield CCG,7/31/2020,C&M-GMS PCN DES Participation,PRC DELEGATED CO-COMMISSIONING,STONECROFT MEDICAL CENTRE,33326489,668.04,PARTIG,S12 2LJ
Department of Health,NHS Sheffield CCG,7/31/2020,C&M-GMS PCO Other,PRC DELEGATED CO-COMMISSIONING,STONECROFT MEDICAL CENTRE,33326489,"1,146.40",CQCRG,S12 2LJ
Department of Health,NHS Sheffield CCG,7/31/2020,C&M-GMS Prem Notional Rent,PRC DELEGATED CO-COMMISSIONING,STONECROFT MEDICAL CENTRE,33326489,"2,808.33",NRENT,S12 2LJ
Department of Health,NHS Sheffield CCG,7/31/2020,C&M-GMS Prem Rates,PRC DELEGATED CO-COMMISSIONING,STONECROFT MEDICAL CENTRE,33326489,"1,235.00",RANDR,S12 2LJ
Department of Health,NHS Sheffield CCG,7/31/2020,C&M-GMS Prem Water Rates,PRC DELEGATED CO-COMMISSIONING,STONECROFT MEDICAL CENTRE,33326489,111.00,RAMW,S12 2LJ
Department of Health,NHS Sheffield CCG,7/31/2020,C&M-GMS Prof Fees Prescribing,PRC DELEGATED CO-COMMISSIONING,STONECROFT MEDICAL CENTRE,33326489,50.66,DRGPPF,S12 2LJ
Department of Health,NHS Sheffield CCG,7/31/2020,C&M-GMS QOF Achievement,PRC DELEGATED CO-COMMISSIONING,STONECROFT MEDICAL CENTRE,33326489,"6,115.46",QUACHG,S12 2LJ
Department of Health,NHS Sheffield CCG,7/31/2020,C&M-GMS QOF Aspiration,PRC DELEGATED CO-COMMISSIONING,STONECROFT MEDICAL CENTRE,33326489,"3,874.33",QUASPG,S12 2LJ
Department of Health,NHS Sheffield CCG,7/31/2020,C&M-GMS DES Minor Surgery,PRC DELEGATED CO-COMMISSIONING,STANNINGTON MEDICAL CENTRE,33326491,141.00,DEMSUG,S6 6BX
Department of Health,NHS Sheffield CCG,7/31/2020,C&M-GMS Global Sum,PRC DELEGATED CO-COMMISSIONING,STANNINGTON MEDICAL CENTRE,33326491,"26,928.84",GSUMG,S6 6BX
Department of Health,NHS Sheffield CCG,7/31/2020,C&M-GMS PCO Other,PRC DELEGATED CO-COMMISSIONING,STANNINGTON MEDICAL CENTRE,33326491,243.40,CQCRG,S6 6BX
Department of Health,NHS Sheffield CCG,7/31/2020,C&M-GMS Prem Notional Rent,PRC DELEGATED CO-COMMISSIONING,STANNINGTON MEDICAL CENTRE,33326491,"2,575.00",NRENT,S6 6BX
Department of Health,NHS Sheffield CCG,7/31/2020,C&M-GMS Prem Rates,PRC DELEGATED CO-COMMISSIONING,STANNINGTON MEDICAL CENTRE,33326491,500.00,RANDR,S6 6BX
Department of Health,NHS Sheffield CCG,7/31/2020,C&M-GMS QOF Aspiration,PRC DELEGATED CO-COMMISSIONING,STANNINGTON MEDICAL CENTRE,33326491,"3,017.79",QUASPG,S6 6BX
Department of Health,NHS Sheffield CCG,7/31/2020,C&M-GMS Cost of Drugs -Prescribing,LOCAL ENHANCED SERVICES,TOTLEY RISE MEDICAL CENTRE,33326493,955.33,DRGP,S17 4DQ
Department of Health,NHS Sheffield CCG,7/31/2020,C&M-GMS DES Minor Surgery,PRC DELEGATED CO-COMMISSIONING,TOTLEY RISE MEDICAL CENTRE,33326493,211.00,DEMSUG,S17 4DQ
Department of Health,NHS Sheffield CCG,7/31/2020,C&M-GMS Global Sum,PRC DELEGATED CO-COMMISSIONING,TOTLEY RISE MEDICAL CENTRE,33326493,"27,309.63",GSUMG,S17 4DQ
Department of Health,NHS Sheffield CCG,7/31/2020,C&M-GMS PCN DES Participation,PRC DELEGATED CO-COMMISSIONING,TOTLEY RISE MEDICAL CENTRE,33326493,531.20,PARTIG,S17 4DQ
Department of Health,NHS Sheffield CCG,7/31/2020,C&M-GMS Prem Notional Rent,PRC DELEGATED CO-COMMISSIONING,TOTLEY RISE MEDICAL CENTRE,33326493,"1,604.17",NRENT,S17 4DQ
Department of Health,NHS Sheffield CCG,7/31/2020,C&M-GMS Prem Rates,PRC DELEGATED CO-COMMISSIONING,TOTLEY RISE MEDICAL CENTRE,33326493,159.00,RANDR,S17 4DQ
Department of Health,NHS Sheffield CCG,7/31/2020,C&M-GMS Prof Fees Prescribing,PRC DELEGATED CO-COMMISSIONING,TOTLEY RISE MEDICAL CENTRE,33326493,96.73,DRGPPF,S17 4DQ
Department of Health,NHS Sheffield CCG,7/31/2020,C&M-GMS QOF Aspiration,PRC DELEGATED CO-COMMISSIONING,TOTLEY RISE MEDICAL CENTRE,33326493,"2,402.35",QUASPG,S17 4DQ
Department of Health,NHS Sheffield CCG,7/31/2020,C&M-GMS Cost of Drugs -Prescribing,LOCAL ENHANCED SERVICES,TRAMWAYS MEDICAL CENTRE,33326495,"1,502.43",DRGP,S6 4JQ
Department of Health,NHS Sheffield CCG,7/31/2020,C&M-GMS DES Minor Surgery,PRC DELEGATED CO-COMMISSIONING,TRAMWAYS MEDICAL CENTRE,33326495,"8,369.00",DEMSUG,S6 4JQ
Department of Health,NHS Sheffield CCG,7/31/2020,C&M-GMS Global Sum,PRC DELEGATED CO-COMMISSIONING,TRAMWAYS MEDICAL CENTRE,33326495,"63,415.24",GSUMG,S6 4JQ
Department of Health,NHS Sheffield CCG,7/31/2020,C&M-GMS PCN DES Participation,PRC DELEGATED CO-COMMISSIONING,TRAMWAYS MEDICAL CENTRE,33326495,"1,257.39",PARTIG,S6 4JQ
Department of Health,NHS Sheffield CCG,7/31/2020,C&M-GMS PCO Other,PRC DELEGATED CO-COMMISSIONING,TRAMWAYS MEDICAL CENTRE,33326495,530.40,CQCRG,S6 4JQ
Department of Health,NHS Sheffield CCG,7/31/2020,C&M-GMS Prem Cost Rent,PRC DELEGATED CO-COMMISSIONING,TRAMWAYS MEDICAL CENTRE,33326495,"4,012.75",COST,S6 4JQ
Department of Health,NHS Sheffield CCG,7/31/2020,C&M-GMS Prem Rates,PRC DELEGATED CO-COMMISSIONING,TRAMWAYS MEDICAL CENTRE,33326495,"1,310.00",RANDR,S6 4JQ
Department of Health,NHS Sheffield CCG,7/31/2020,C&M-GMS Prem Water Rates,PRC DELEGATED CO-COMMISSIONING,TRAMWAYS MEDICAL CENTRE,33326495,284.19,RAMW,S6 4JQ
Department of Health,NHS Sheffield CCG,7/31/2020,C&M-GMS Prof Fees Prescribing,PRC DELEGATED CO-COMMISSIONING,TRAMWAYS MEDICAL CENTRE,33326495,80.60,DRGPPF,S6 4JQ
Department of Health,NHS Sheffield CCG,7/31/2020,C&M-GMS QOF Aspiration,PRC DELEGATED CO-COMMISSIONING,TRAMWAYS MEDICAL CENTRE,33326495,"5,986.86",QUASPG,S6 4JQ
Department of Health,NHS Sheffield CCG,7/31/2020,C&M-GMS Cost of Drugs -Prescribing,LOCAL ENHANCED SERVICES,UPPERTHORPE MEDICAL CENTRE,33326498,"1,520.65",DRGP,S6 3FT
Department of Health,NHS Sheffield CCG,7/31/2020,C&M-GMS DES Minor Surgery,PRC DELEGATED CO-COMMISSIONING,UPPERTHORPE MEDICAL CENTRE,33326498,"1,143.00",DEMSUG,S6 3FT
Department of Health,NHS Sheffield CCG,7/31/2020,C&M-GMS Global Sum,PRC DELEGATED CO-COMMISSIONING,UPPERTHORPE MEDICAL CENTRE,33326498,"89,188.96",GSUMG,S6 3FT
Department of Health,NHS Sheffield CCG,7/31/2020,C&M-GMS PCN DES Participation,PRC DELEGATED CO-COMMISSIONING,UPPERTHORPE MEDICAL CENTRE,33326498,"1,742.53",PARTIG,S6 3FT
Department of Health,NHS Sheffield CCG,7/31/2020,C&M-GMS Prem Notional Rent,PRC DELEGATED CO-COMMISSIONING,UPPERTHORPE MEDICAL CENTRE,33326498,"2,547.83",NRENT,S6 3FT
Department of Health,NHS Sheffield CCG,7/31/2020,C&M-GMS Prem Rates,PRC DELEGATED CO-COMMISSIONING,UPPERTHORPE MEDICAL CENTRE,33326498,"2,620.00",RANDR,S6 3FT
Department of Health,NHS Sheffield CCG,7/31/2020,C&M-GMS Prof Fees Prescribing,PRC DELEGATED CO-COMMISSIONING,UPPERTHORPE MEDICAL CENTRE,33326498,165.81,DRGPPF,S6 3FT
Department of Health,NHS Sheffield CCG,7/31/2020,C&M-GMS QOF Aspiration,PRC DELEGATED CO-COMMISSIONING,UPPERTHORPE MEDICAL CENTRE,33326498,"9,300.36",QUASPG,S6 3FT
Department of Health,NHS Sheffield CCG,7/31/2020,C&M-GMS Cost of Drugs -Prescribing,LOCAL ENHANCED SERVICES,WHITE HOUSE SURGERY SHEFFIELD,33326501,334.80,DRGP,S2 1SL
Department of Health,NHS Sheffield CCG,7/31/2020,C&M-GMS DES Minor Surgery,PRC DELEGATED CO-COMMISSIONING,WHITE HOUSE SURGERY SHEFFIELD,33326501,299.00,DEMSUG,S2 1SL
Department of Health,NHS Sheffield CCG,7/31/2020,C&M-GMS Global Sum,PRC DELEGATED CO-COMMISSIONING,WHITE HOUSE SURGERY SHEFFIELD,33326501,"54,455.09",GSUMG,S2 1SL
Department of Health,NHS Sheffield CCG,7/31/2020,C&M-GMS PCN DES Participation,PRC DELEGATED CO-COMMISSIONING,WHITE HOUSE SURGERY SHEFFIELD,33326501,"1,055.34",PARTIG,S2 1SL
Department of Health,NHS Sheffield CCG,7/31/2020,C&M-GMS Prem Notional Rent,PRC DELEGATED CO-COMMISSIONING,WHITE HOUSE SURGERY SHEFFIELD,33326501,"9,412.50",NRENT,S2 1SL
Department of Health,NHS Sheffield CCG,7/31/2020,C&M-GMS Prem Rates,PRC DELEGATED CO-COMMISSIONING,WHITE HOUSE SURGERY SHEFFIELD,33326501,"2,483.00",RANDR,S2 1SL
Department of Health,NHS Sheffield CCG,7/31/2020,C&M-GMS Prof Fees Prescribing,PRC DELEGATED CO-COMMISSIONING,WHITE HOUSE SURGERY SHEFFIELD,33326501,119.76,DRGPPF,S2 1SL
Department of Health,NHS Sheffield CCG,7/31/2020,C&M-GMS QOF Aspiration,PRC DELEGATED CO-COMMISSIONING,WHITE HOUSE SURGERY SHEFFIELD,33326501,"6,054.80",QUASPG,S2 1SL
Department of Health,NHS Sheffield CCG,7/31/2020,C&M-GMS GP Statutory Levy,PRC DELEGATED CO-COMMISSIONING,WALKLEY HOUSE MEDICAL CENTRE,33326502,-428.26,STATL,S6 3TN
Department of Health,NHS Sheffield CCG,7/31/2020,C&M-GMS Cost of Drugs -Prescribing,LOCAL ENHANCED SERVICES,WALKLEY HOUSE MEDICAL CENTRE,33326503,668.50,DRGP,S6 3TN
Department of Health,NHS Sheffield CCG,7/31/2020,C&M-GMS DES Minor Surgery,PRC DELEGATED CO-COMMISSIONING,WALKLEY HOUSE MEDICAL CENTRE,33326503,"1,056.00",DEMSUG,S6 3TN
Department of Health,NHS Sheffield CCG,7/31/2020,C&M-GMS Global Sum,PRC DELEGATED CO-COMMISSIONING,WALKLEY HOUSE MEDICAL CENTRE,33326503,"90,350.11",GSUMG,S6 3TN
Department of Health,NHS Sheffield CCG,7/31/2020,C&M-GMS PCN DES Participation,PRC DELEGATED CO-COMMISSIONING,WALKLEY HOUSE MEDICAL CENTRE,33326503,"1,759.55",PARTIG,S6 3TN
Department of Health,NHS Sheffield CCG,7/31/2020,C&M-GMS Prem Notional Rent,PRC DELEGATED CO-COMMISSIONING,WALKLEY HOUSE MEDICAL CENTRE,33326503,"5,635.50",NRENT,S6 3TN
Department of Health,NHS Sheffield CCG,7/31/2020,C&M-GMS Prof Fees Prescribing,PRC DELEGATED CO-COMMISSIONING,WALKLEY HOUSE MEDICAL CENTRE,33326503,172.73,DRGPPF,S6 3TN
Department of Health,NHS Sheffield CCG,7/31/2020,C&M-GMS QOF Aspiration,PRC DELEGATED CO-COMMISSIONING,WALKLEY HOUSE MEDICAL CENTRE,33326503,"8,465.16",QUASPG,S6 3TN
Department of Health,NHS Sheffield CCG,7/31/2020,Rent,ESTATES AND FACILITIES,NHS PROPERTY SERVICES LTD,33329706,"120,583.84",https://nww.einvoice-prod.sbs.nhs.uk:8179/invoicepdf/dae7a819-0449-5182-8693-e1330512bd8a,EC2V 7NG
Department of Health,NHS Sheffield CCG,7/31/2020,Service Charge,ESTATES AND FACILITIES,NHS PROPERTY SERVICES LTD,33329706,"47,170.33",,EC2V 7NG
Department of Health,NHS Sheffield CCG,7/31/2020,Service Charge,ESTATES AND FACILITIES,NHS PROPERTY SERVICES LTD,33329714,"74,984.90",https://nww.einvoice-prod.sbs.nhs.uk:8179/invoicepdf/35f15607-5100-54a8-a35e-de54b96a8ef1,EC2V 7NG
Department of Health,NHS Sheffield CCG,7/31/2020,Charges from CSU,BUSINESS INFORMATICS,NHS NORTH OF ENGLAND CSU,33329731,"27,375.92",NHS CCG INCOME - SLA 44811016,WF3 1WE
Department of Health,NHS Sheffield CCG,7/31/2020,C&M-APMS DES Extended Hours Access,GP FORWARD VIEW,PRIMARY CARE SHEFFIELD LTD,33329734,"302,608.33",,S9 4EU
Department of Health,NHS Sheffield CCG,7/31/2020,C&M-GMS LES Basket of Procedures,LOCAL ENHANCED SERVICES,PRIMARY CARE SHEFFIELD LTD,33329738,"53,558.33",,S9 4EU
Department of Health,NHS Sheffield CCG,7/31/2020,C&M-GMS Cost of Drugs -Prescribing,LOCAL ENHANCED SERVICES,DUKE MEDICAL CENTRE,33348167,383.84,DRGP,S2 2TD
Department of Health,NHS Sheffield CCG,7/31/2020,C&M-GMS DES Learn Dsblty Hlth Chk,PRC DELEGATED CO-COMMISSIONING,DUKE MEDICAL CENTRE,33348167,140.00,LEARNG,S2 2TD
Department of Health,NHS Sheffield CCG,7/31/2020,C&M-GMS DES Minor Surgery,PRC DELEGATED CO-COMMISSIONING,DUKE MEDICAL CENTRE,33348167,790.00,DEMSUG,S2 2TD
Department of Health,NHS Sheffield CCG,7/31/2020,C&M-GMS Global Sum,PRC DELEGATED CO-COMMISSIONING,DUKE MEDICAL CENTRE,33348167,"61,654.13",GSUMG,S2 2TD
Department of Health,NHS Sheffield CCG,7/31/2020,C&M-GMS PCN DES Participation,PRC DELEGATED CO-COMMISSIONING,DUKE MEDICAL CENTRE,33348167,"1,155.59",PARTIG,S2 2TD
Department of Health,NHS Sheffield CCG,7/31/2020,C&M-GMS PCO Locum Sickness,PRC DELEGATED CO-COMMISSIONING,DUKE MEDICAL CENTRE,33348167,"22,592.88",LOCSIG,S2 2TD
Department of Health,NHS Sheffield CCG,7/31/2020,C&M-GMS Prem Notional Rent,PRC DELEGATED CO-COMMISSIONING,DUKE MEDICAL CENTRE,33348167,"5,721.67",NRENT,S2 2TD
Department of Health,NHS Sheffield CCG,7/31/2020,C&M-GMS Prof Fees Prescribing,PRC DELEGATED CO-COMMISSIONING,DUKE MEDICAL CENTRE,33348167,57.57,DRGPPF,S2 2TD
Department of Health,NHS Sheffield CCG,7/31/2020,C&M-GMS QOF Aspiration,PRC DELEGATED CO-COMMISSIONING,DUKE MEDICAL CENTRE,33348167,"5,286.81",QUASPG,S2 2TD
Department of Health,NHS Sheffield CCG,7/31/2020,C&M-GMS Cost of Drugs -Prescribing,LOCAL ENHANCED SERVICES,HEELEY GREEN SURGERY,33348168,"1,441.13",DRGP,S2 3AJ
Department of Health,NHS Sheffield CCG,7/31/2020,C&M-GMS Global Sum,PRC DELEGATED CO-COMMISSIONING,HEELEY GREEN SURGERY,33348168,"42,970.44",GSUMG,S2 3AJ
Department of Health,NHS Sheffield CCG,7/31/2020,C&M-GMS PCN DES Participation,PRC DELEGATED CO-COMMISSIONING,HEELEY GREEN SURGERY,33348168,857.46,PARTIG,S2 3AJ
Department of Health,NHS Sheffield CCG,7/31/2020,C&M-GMS Prem Notional Rent,PRC DELEGATED CO-COMMISSIONING,HEELEY GREEN SURGERY,33348168,"3,254.17",NRENT,S2 3AJ
Department of Health,NHS Sheffield CCG,7/31/2020,C&M-GMS Prof Fees Prescribing,PRC DELEGATED CO-COMMISSIONING,HEELEY GREEN SURGERY,33348168,87.52,DRGPPF,S2 3AJ
Department of Health,NHS Sheffield CCG,7/31/2020,C&M-GMS QOF Aspiration,PRC DELEGATED CO-COMMISSIONING,HEELEY GREEN SURGERY,33348168,"4,326.50",QUASPG,S2 3AJ
Department of Health,NHS Sheffield CCG,7/31/2020,Clinical&Medical-Independent Sector,Mental Health Services - S117 Mental Health,MOORVILLE RESIDENTIAL,33368496,"29,376.84",,S10 5FA
Department of Health,NHS Sheffield CCG,7/31/2020,Cont Care-Learning Disab(<65),CHC ADULT FULLY FUNDED,MOORVILLE RESIDENTIAL,33368496,"9,423.38",https://nww.einvoice-prod.sbs.nhs.uk:8179/invoicepdf/a885d69f-5438-5faf-9adb-c64856105bda,S10 5FA
Department of Health,NHS Sheffield CCG,7/31/2020,Cont Care-Learning Disab(<65),CHC ADULT JOINT FUNDED,MOORVILLE RESIDENTIAL,33368496,"4,333.18",,S10 5FA
Department of Health,NHS Sheffield CCG,7/31/2020,Cont Care-Mental Health (<65),CHC ADULT JOINT FUNDED,MOORVILLE RESIDENTIAL,33368496,506.23,,S10 5FA
Department of Health,NHS Sheffield CCG,7/31/2020,Computer Software/License,CONTINUING HEALTHCARE ASSESSMENT & SUPPORT,LIAISON VAT CONSULTANCY LTD,33380379,"30,000.00",https://nww.einvoice-prod.sbs.nhs.uk:8179/invoicepdf/56293d60-3d04-5870-800a-1ba23de71665,WR5 1BW
Department of Health,NHS Sheffield CCG,7/31/2020,Cont Care-Physical Disab (65+),CHC ADULT FULLY FUNDED,BC SHEFFIELD LTD,33380387,"39,504.08",https://nww.einvoice-prod.sbs.nhs.uk:8179/invoicepdf/5f69632d-a160-5531-a74f-8ae071d6a594,S9 2TJ
